Workbook

Sheet Desarrollador (hidden)
A1: Accion | B1: Grupo | C1: Tipo | D1: Imagen | E1: Left | F1: Top | G1: Height | H1: Width | I1: Visible | L1: Segmento | M1: Fila | N1: Alto | O1: Herramienta | P1: Version | Q1: Formato_Editar | R1: Avisos | S1: Cambios | T1: Tipo | U1: Inicio | V1: Volver_a | W1: Scrollrow
A2: Siempre | C2: Imagen | D2: Titulo_Segmento | E2: =E5+G5+20 -> 217 | F2: 10 | G2: 90 | H2: 600 | I2: =IF(Parametros[Segmento]="Fondo_Menu",1,0) -> 1 | L2: Fondo_Menu | M2: =IFERROR(MATCH(Parametros[[#This Row],[Segmento]],' '!$BD:$BD,0),0) -> 6 | N2: =IFERROR(COUNTIF(OFFSET(Ref_Segmento,0,0,100000),Parametros[[#This Row],[Segmento]]),0) -> 35 | O2: Actualicese 110 (2024) | P2: 20250122 | R2: 0 | S2: 1 | T2: 2 | W2: 0
C3: Imagen | D3: Picture 80 | I3: 1 | L3: =IF(Parametros[Segmento]="Fondo_Menu","Liquidador del impuesto de renta para personas jurídicas año gravable 2024","") -> Liquidador del impuesto de renta para personas jurídicas año gravable 2024 | U3: =TEXT(MAX(Parametros[Inicio]+10/(24*60)-NOW(),0),"mm:ss") -> 00:00
A4: Siempre | C4: Imagen | D4: Logo | E4: 30 | F4: 20 | G4: 70 | H4: 169 | I4: 1
A5: Siempre | C5: Imagen | D5: Division_1 | E5: =E4+H4-10 -> 189 | F5: 50 | G5: 8 | H5: 87 | I5: 1
C6: Imagen | D6: Guardar | E6: =IF($I$8=1,$E$8+80,$E$5+70) -> 259 | F6: 26 | G6: 47 | H6: 172 | I6: =IFERROR((Parametros[Segmento]<>"Fondo_Menu")*1,1) -> 0
C7: Imagen | D7: Regresar_Al_Menu | E7: =$E$6+H6+20 -> 451 | F7: =F6 -> 26 | G7: 47 | H7: 133 | I7: =IFERROR((Parametros[Segmento]<>"Fondo_Menu")*(Parametros[Volver_a]=""),1) -> 0
A8: Siempre | C8: Imagen | D8: Division_2 | E8: =E57+H57-30 -> 671 | F8: =F5 -> 50 | G8: =G5 -> 8 | H8: =H5 -> 87 | I8: =IFERROR((SUM($I$50:$I$75)>0)*1,0) -> 0
A9: Menu_Basico | C9: Imagen | D9: Información General | E9: 44 | F9: 130 | G9: 51 | H9: 156 | I9: =IFERROR((Parametros[Segmento]="Fondo_Menu")*1,0) -> 1
A10: Menu_Basico | C10: Imagen | D10: Cifras e Indicadores | E10: =$E$9 -> 44 | F10: =F9+G9+8 -> 189 | G10: 31 | H10: 151 | I10: =IFERROR((Parametros[Segmento]="Fondo_Menu")*1,0) -> 1
A11: Menu_Basico | C11: Imagen | D11: Vencimientos | E11: =$E$9 -> 44 | F11: =F10+G10 -> 220 | G11: 31 | H11: 151 | I11: =IFERROR((Parametros[Segmento]="Fondo_Menu")*1,0) -> 1
A12: Menu_Basico | C12: Imagen | D12: Tarifas de Impuestos | E12: =$E$9 -> 44 | F12: =F11+G11 -> 251 | G12: 31 | H12: 151 | I12: =IFERROR((Parametros[Segmento]="Fondo_Menu")*1,0) -> 1
A13: Menu_Detallado | C13: Imagen | D13: Información del Contribuyente | E13: =$E$9 -> 44 | F13: =F12+G12+35 -> 317 | G13: 51 | H13: 156 | I13: =IFERROR((Parametros[Segmento]="Fondo_Menu")*1,0) -> 1 | L13: m | M13: s | N13: l | O13: a
A14: Menu_Detallado | C14: Imagen | D14: Datos básicos contribuyente | E14: =$E$9 -> 44 | F14: =F13+G13+8 -> 376 | G14: 44 | H14: 151 | I14: =IFERROR((Parametros[Segmento]="Fondo_Menu")*1,0) -> 1 | L14: 1CFE20524153
A15: Menu_Detallado | C15: Imagen | D15: Patrimonios | E15: =$H$9+$E$9+44 -> 244 | F15: =$F$9 -> 130 | G15: 51 | H15: 158 | I15: =IFERROR((Parametros[Segmento]="Fondo_Menu")*1,0) -> 1 | L15: 1E5820524153
A16: Menu_Detallado | C16: Imagen | D16: Activos | E16: =$E$15 -> 244 | F16: =F15+G15+8 -> 189 | G16: 31 | H16: 151 | I16: =IFERROR((Parametros[Segmento]="Fondo_Menu")*1,0) -> 1 | L16: 1E5820524153
A17: Menu_Detallado | C17: Imagen | D17: Pasivos | E17: 244 | F17: =F16+G16 -> 220 | G17: 31 | H17: 151 | I17: =IFERROR((Parametros[Segmento]="Fondo_Menu")*1,0) -> 1 | L17: 48E7DAC5AF36
A18: Menu_Detallado | B18: =IF(Parametros[Tipo]=2,"Esta sección no está disponible en la versión de prueba de Actualícese 110.xls. Si quieres realizar tu declaración de renta de personas jurídicas de forma rápida y en solo 3 pasos, adquiere nuestra herramienta ingresando a:","") -> Esta sección no está disponible en la versión de prueba de Actualícese 110.xls. Si quieres realizar tu declaración de renta de personas jurídicas de forma rápida y en solo 3 pasos, adquiere nuestra herramienta ingresando a: | C18: Imagen | D18: Patrimonio | E18: 244 | F18: =F17+G17 -> 251 | G18: 31 | H18: 151 | I18: =IFERROR((Parametros[Segmento]="Fondo_Menu")*1,0) -> 1 | L18: 48E7DAC5AF37
A19: Menu_Detallado | C19: Imagen | D19: Ingresos Especiales | E19: 244 | F19: =F18+G18+35 -> 317 | G19: 51 | H19: 156 | I19: =IFERROR((Parametros[Segmento]="Fondo_Menu")*1,0) -> 1 | L19: 4AE7DAC5AF27
A20: Menu_Detallado | B20: =IF(Parametros[Tipo]=2,"Esta sección no está disponible en la versión de prueba de Actualícese 110.xls. Si quieres realizar tu declaración de renta de personas jurídicas de forma rápida y en solo 3 pasos, adquiere nuestra herramienta ingresando a:","") -> Esta sección no está disponible en la versión de prueba de Actualícese 110.xls. Si quieres realizar tu declaración de renta de personas jurídicas de forma rápida y en solo 3 pasos, adquiere nuestra herramienta ingresando a: | C20: Imagen | D20: Venta de Activos | E20: 244 | F20: =F19+G19+8 -> 376 | G20: 31 | H20: 151 | I20: =IFERROR((Parametros[Segmento]="Fondo_Menu")*1,0) -> 1 | L20: 4AE7DAC5AF37
A21: Menu_Detallado | B21: =IF(Parametros[Tipo]=2,"Esta sección no está disponible en la versión de prueba de Actualícese 110.xls. Si quieres realizar tu declaración de renta de personas jurídicas de forma rápida y en solo 3 pasos, adquiere nuestra herramienta ingresando a:","") -> Esta sección no está disponible en la versión de prueba de Actualícese 110.xls. Si quieres realizar tu declaración de renta de personas jurídicas de forma rápida y en solo 3 pasos, adquiere nuestra herramienta ingresando a: | C21: Imagen | D21: G. Ocasionales | E21: 244 | F21: =F20+G20 -> 407 | G21: 31 | H21: 151 | I21: =IFERROR((Parametros[Segmento]="Fondo_Menu")*1,0) -> 1
A22: Menu_Detallado | B22: =IF(Parametros[Tipo]=2,"Esta sección no está disponible en la versión de prueba de Actualícese 110.xls. Si quieres realizar tu declaración de renta de personas jurídicas de forma rápida y en solo 3 pasos, adquiere nuestra herramienta ingresando a:","") -> Esta sección no está disponible en la versión de prueba de Actualícese 110.xls. Si quieres realizar tu declaración de renta de personas jurídicas de forma rápida y en solo 3 pasos, adquiere nuestra herramienta ingresando a: | C22: Imagen | D22: Rentas pasivas ECE | E22: 244 | F22: =F21+G21 -> 438 | G22: 31 | H22: 151 | I22: =IFERROR((Parametros[Segmento]="Fondo_Menu")*1,0) -> 1
A23: Menu_Detallado | C23: Imagen | D23: Ingresos | E23: =$H$15+$E$15+44 -> 446 | F23: =$F$9 -> 130 | G23: 51 | H23: 156 | I23: =IFERROR((Parametros[Segmento]="Fondo_Menu")*1,0) -> 1
A24: Menu_Detallado | C24: Imagen | D24: Ing. Ordinarios | E24: =$E$23 -> 446 | F24: =F23+G23+8 -> 189 | G24: 31 | H24: 151 | I24: =IFERROR((Parametros[Segmento]="Fondo_Menu")*1,0) -> 1
A25: Menu_Detallado | C25: Imagen | D25: Ing. Financieros | E25: =$E$23 -> 446 | F25: =F24+G24 -> 220 | G25: 31 | H25: 151 | I25: =IFERROR((Parametros[Segmento]="Fondo_Menu")*1,0) -> 1
A26: Menu_Detallado | C26: Imagen | D26: Dividendos | E26: =$E$23 -> 446 | F26: =F25+G25 -> 251 | G26: 31 | H26: 151 | I26: =IFERROR((Parametros[Segmento]="Fondo_Menu")*1,0) -> 1
A27: Menu_Detallado | B27: =IF(Parametros[Tipo]=2,"Esta sección no está disponible en la versión de prueba de Actualícese 110.xls. Si quieres realizar tu declaración de renta de personas jurídicas de forma rápida y en solo 3 pasos, adquiere nuestra herramienta ingresando a:","") -> Esta sección no está disponible en la versión de prueba de Actualícese 110.xls. Si quieres realizar tu declaración de renta de personas jurídicas de forma rápida y en solo 3 pasos, adquiere nuestra herramienta ingresando a: | C27: Imagen | D27: Ing. Reversiones | E27: =$E$23 -> 446 | F27: =F26+G26 -> 282 | G27: 31 | H27: 151 | I27: =IFERROR((Parametros[Segmento]="Fondo_Menu")*1,0) -> 1
A28: Menu_Detallado | B28: =IF(Parametros[Tipo]=2,"Esta sección no está disponible en la versión de prueba de Actualícese 110.xls. Si quieres realizar tu declaración de renta de personas jurídicas de forma rápida y en solo 3 pasos, adquiere nuestra herramienta ingresando a:","") -> Esta sección no está disponible en la versión de prueba de Actualícese 110.xls. Si quieres realizar tu declaración de renta de personas jurídicas de forma rápida y en solo 3 pasos, adquiere nuestra herramienta ingresando a: | C28: Imagen | D28: Otros ingresos | E28: =$E$23 -> 446 | F28: =F27+G27 -> 313 | G28: 31 | H28: 151 | I28: =IFERROR((Parametros[Segmento]="Fondo_Menu")*1,0) -> 1
A29: Menu_Detallado | C29: Imagen | D29: Calculos Adicionales | E29: =$H$23+$E$23+44 -> 646 | F29: =$F$9 -> 130 | G29: 51 | H29: 156 | I29: =IFERROR((Parametros[Segmento]="Fondo_Menu")*1,0) -> 1
A30: Menu_Detallado | C30: Imagen | D30: Intereses presuntivos | E30: =$E$29 -> 646 | F30: =F29+G29+8 -> 189 | G30: 31 | H30: 151 | I30: =IFERROR((Parametros[Segmento]="Fondo_Menu")*1,0) -> 1
A31: Menu_Detallado | C31: Imagen | D31: Subcapitalización | E31: =$E$29 -> 646 | F31: =F30+G30 -> 220 | G31: 31 | H31: 151 | I31: =IFERROR((Parametros[Segmento]="Fondo_Menu")*1,0) -> 1
A32: Menu_Detallado | C32: Imagen | D32: Compensaciones | E32: 646 | F32: 251 | G32: 31 | H32: 151 | I32: =IFERROR((Parametros[Segmento]="Fondo_Menu")*1,0) -> 1
A33: Menu_Detallado | B33: =IF(Parametros[Tipo]=2,"Esta sección no está disponible en la versión de prueba de Actualícese 110.xls. Si quieres realizar tu declaración de renta de personas jurídicas de forma rápida y en solo 3 pasos, adquiere nuestra herramienta ingresando a:","") -> Esta sección no está disponible en la versión de prueba de Actualícese 110.xls. Si quieres realizar tu declaración de renta de personas jurídicas de forma rápida y en solo 3 pasos, adquiere nuestra herramienta ingresando a: | C33: Imagen | D33: Renta recup. Deducciones | E33: 646 | F33: =F32+G32 -> 282 | G33: 31 | H33: 151 | I33: =IFERROR((Parametros[Segmento]="Fondo_Menu")*1,0) -> 1
A34: Menu_Detallado | B34: =IF(Parametros[Tipo]=2,"Esta sección no está disponible en la versión de prueba de Actualícese 110.xls. Si quieres realizar tu declaración de renta de personas jurídicas de forma rápida y en solo 3 pasos, adquiere nuestra herramienta ingresando a:","") -> Esta sección no está disponible en la versión de prueba de Actualícese 110.xls. Si quieres realizar tu declaración de renta de personas jurídicas de forma rápida y en solo 3 pasos, adquiere nuestra herramienta ingresando a: | C34: Imagen | D34: Retenciones en la Fuente | E34: =$E$29 -> 646 | F34: =F33+G33 -> 313 | G34: 31 | H34: 151 | I34: =IFERROR((Parametros[Segmento]="Fondo_Menu")*1,0) -> 1
A35: Menu_Detallado | B35: =IF(Parametros[Tipo]=2,"Esta sección no está disponible en la versión de prueba de Actualícese 110.xls. Si quieres realizar tu declaración de renta de personas jurídicas de forma rápida y en solo 3 pasos, adquiere nuestra herramienta ingresando a:","") -> Esta sección no está disponible en la versión de prueba de Actualícese 110.xls. Si quieres realizar tu declaración de renta de personas jurídicas de forma rápida y en solo 3 pasos, adquiere nuestra herramienta ingresando a: | C35: Imagen | D35: Tasa Mínima | E35: =$E$29 -> 646 | F35: =F34+G34 -> 344 | G35: 45 | H35: 151 | I35: =IFERROR((Parametros[Segmento]="Fondo_Menu")*1,0) -> 1
A36: Menu_Detallado | C36: Imagen | D36: Cálculo impto | E36: 646 | F36: =F35+G35 -> 389 | G36: 31 | H36: 151 | I36: =IFERROR((Parametros[Segmento]="Fondo_Menu")*1,0) -> 1
A37: Menu_Detallado | B37: =IF(Parametros[Tipo]=2,"Esta sección no está disponible en la versión de prueba de Actualícese 110.xls. Si quieres realizar tu declaración de renta de personas jurídicas de forma rápida y en solo 3 pasos, adquiere nuestra herramienta ingresando a:","") -> Esta sección no está disponible en la versión de prueba de Actualícese 110.xls. Si quieres realizar tu declaración de renta de personas jurídicas de forma rápida y en solo 3 pasos, adquiere nuestra herramienta ingresando a: | C37: Imagen | D37: Descuentos Tributarios | E37: 646 | F37: 420 | G37: 31 | H37: 151 | I37: =IFERROR((Parametros[Segmento]="Fondo_Menu")*1,0) -> 1
A38: Menu_Detallado | C38: Imagen | D38: Anticipo de renta | E38: 646 | F38: 451 | G38: 31 | H38: 151 | I38: =IFERROR((Parametros[Segmento]="Fondo_Menu")*1,0) -> 1
A39: Menu_Detallado | C39: Imagen | D39: Sanciones | E39: 646 | F39: 482 | G39: 31 | H39: 151 | I39: =IFERROR((Parametros[Segmento]="Fondo_Menu")*1,0) -> 1
A40: Menu_Detallado | C40: Imagen | D40: Costos y deducciones | E40: =$H$15+$E$15+44 -> 446 | F40: =F28+G28+35 -> 379 | G40: 51 | H40: 156 | I40: =IFERROR((Parametros[Segmento]="Fondo_Menu")*1,0) -> 1
A41: Menu_Detallado | B41: =IF(Parametros[Tipo]=2,"Esta sección no está disponible en la versión de prueba de Actualícese 110.xls. Si quieres realizar tu declaración de renta de personas jurídicas de forma rápida y en solo 3 pasos, adquiere nuestra herramienta ingresando a:","") -> Esta sección no está disponible en la versión de prueba de Actualícese 110.xls. Si quieres realizar tu declaración de renta de personas jurídicas de forma rápida y en solo 3 pasos, adquiere nuestra herramienta ingresando a: | C41: Imagen | D41: Costos | E41: =$E$40 -> 446 | F41: =F40+G40+8 -> 438 | G41: 31 | H41: 151 | I41: =IFERROR((Parametros[Segmento]="Fondo_Menu")*1,0) -> 1
A42: Menu_Detallado | C42: Imagen | D42: Gastos | E42: =$E$40 -> 446 | F42: =F41+G41 -> 469 | G42: 31 | H42: 151 | I42: =IFERROR((Parametros[Segmento]="Fondo_Menu")*1,0) -> 1
A43: Menu_Detallado | B43: =IF(Parametros[Tipo]=2,"Esta sección no está disponible en la versión de prueba de Actualícese 110.xls. Si quieres realizar tu declaración de renta de personas jurídicas de forma rápida y en solo 3 pasos, adquiere nuestra herramienta ingresando a:","") -> Esta sección no está disponible en la versión de prueba de Actualícese 110.xls. Si quieres realizar tu declaración de renta de personas jurídicas de forma rápida y en solo 3 pasos, adquiere nuestra herramienta ingresando a: | C43: Imagen | D43: Rentas Exentas | E43: =$E$40 -> 446 | F43: =F42+G42 -> 500 | G43: 31 | H43: 151 | I43: =IFERROR((Parametros[Segmento]="Fondo_Menu")*1,0) -> 1
A44: Menu_Detallado | C44: Imagen | D44: Formulario y Anexos | E44: =$H$29+$E$29+44 -> 846 | F44: =$F$9 -> 130 | G44: 51 | H44: 156 | I44: =IFERROR((Parametros[Segmento]="Fondo_Menu")*1,0) -> 1
A45: Menu_Detallado | C45: Imagen | D45: Formulario 110 | E45: 846 | F45: =F44+G44+8 -> 189 | G45: 31 | H45: 151 | I45: =IFERROR((Parametros[Segmento]="Fondo_Menu")*1,0) -> 1
A46: Menu_Detallado | B46: =IF(Parametros[Tipo]=2,"Esta sección no está disponible en la versión de prueba de Actualícese 110.xls. Si quieres realizar tu declaración de renta de personas jurídicas de forma rápida y en solo 3 pasos, adquiere nuestra herramienta ingresando a:","") -> Esta sección no está disponible en la versión de prueba de Actualícese 110.xls. Si quieres realizar tu declaración de renta de personas jurídicas de forma rápida y en solo 3 pasos, adquiere nuestra herramienta ingresando a: | C46: Imagen | D46: H1 Carátula | E46: 846 | F46: =F45+G45 -> 220 | G46: 31 | H46: 151 | I46: =IFERROR((Parametros[Segmento]="Fondo_Menu")*1,0) -> 1
A47: Menu_Detallado | C47: Imagen | D47: Informes | E47: 846 | F47: =F46+G46 -> 251 | G47: 31 | H47: 151 | I47: =IFERROR((Parametros[Segmento]="Fondo_Menu")*1,0) -> 1
A48: Menu_Detallado | C48: Imagen | D48: Gráficos | E48: 846 | F48: =F47+G47 -> 282 | G48: 31 | H48: 151 | I48: =IFERROR((Parametros[Segmento]="Fondo_Menu")*1,0) -> 1
A49: Menu_Detallado | C49: Imagen | D49: Beneficios de Auditoría | E49: 846 | F49: =F48+G48 -> 313 | G49: 31 | H49: 151 | I49: =IFERROR((Parametros[Segmento]="Fondo_Menu")*1,0) -> 1
B50: =IF(Parametros[Tipo]=2,"Esta sección no está disponible en la versión de prueba de Actualícese 110.xls. Si quieres realizar tu declaración de renta de personas jurídicas de forma rápida y en solo 3 pasos, adquiere nuestra herramienta ingresando a:","") -> Esta sección no está disponible en la versión de prueba de Actualícese 110.xls. Si quieres realizar tu declaración de renta de personas jurídicas de forma rápida y en solo 3 pasos, adquiere nuestra herramienta ingresando a: | C50: Imagen | D50: Renta recup. deducciones_BSA | E50: =$E$5+$G$5+45 -> 242 | F50: 14 | G50: 40 | H50: 120 | I50: =$I$53+$I$55+$I$57 -> 0
C51: Imagen | D51: Renta recup. deducciones_BS | E51: =E50 -> 242 | F51: =F50 -> 14 | G51: =G50 -> 40 | H51: =H50 -> 120 | I51: =(SUBSTITUTE(Botones_e_Imagenes[[#This Row],[Imagen]],"_BS","")=Parametros[Segmento])*1 -> 0
B52: =IF(Parametros[Tipo]=2,"Esta sección no está disponible en la versión de prueba de Actualícese 110.xls. Si quieres realizar tu declaración de renta de personas jurídicas de forma rápida y en solo 3 pasos, adquiere nuestra herramienta ingresando a:","") -> Esta sección no está disponible en la versión de prueba de Actualícese 110.xls. Si quieres realizar tu declaración de renta de personas jurídicas de forma rápida y en solo 3 pasos, adquiere nuestra herramienta ingresando a: | C52: Imagen | D52: Conciliación Patrimonial_BSA | E52: =E50+H50-7 -> 355 | F52: =F$50 -> 14 | G52: =G$50 -> 40 | H52: =H$50 -> 120 | I52: =$I$51+$I$55+$I$57 -> 0
C53: Imagen | D53: Conciliación Patrimonial_BS | E53: =E52 -> 355 | F53: =F52 -> 14 | G53: =G52 -> 40 | H53: =H52 -> 120 | I53: =(SUBSTITUTE(Botones_e_Imagenes[[#This Row],[Imagen]],"_BS","")=Parametros[Segmento])*1 -> 0
B54: =IF(Parametros[Tipo]=2,"Esta sección no está disponible en la versión de prueba de Actualícese 110.xls. Si quieres realizar tu declaración de renta de personas jurídicas de forma rápida y en solo 3 pasos, adquiere nuestra herramienta ingresando a:","") -> Esta sección no está disponible en la versión de prueba de Actualícese 110.xls. Si quieres realizar tu declaración de renta de personas jurídicas de forma rápida y en solo 3 pasos, adquiere nuestra herramienta ingresando a: | C54: Imagen | D54: Otras rentas líq. gravab._BSA | E54: =E52+H52-7 -> 468 | F54: =F$50 -> 14 | G54: =G$50 -> 40 | H54: =H$50 -> 120 | I54: =$I$51+$I$53+$I$57 -> 0
C55: Imagen | D55: Otras rentas líq. gravab._BS | E55: =E54 -> 468 | F55: =F54 -> 14 | G55: =G54 -> 40 | H55: =H54 -> 120 | I55: =(SUBSTITUTE(Botones_e_Imagenes[[#This Row],[Imagen]],"_BS","")=Parametros[Segmento])*1 -> 0
B56: =IF(Parametros[Tipo]=2,"Esta sección no está disponible en la versión de prueba de Actualícese 110.xls. Si quieres realizar tu declaración de renta de personas jurídicas de forma rápida y en solo 3 pasos, adquiere nuestra herramienta ingresando a:","") -> Esta sección no está disponible en la versión de prueba de Actualícese 110.xls. Si quieres realizar tu declaración de renta de personas jurídicas de forma rápida y en solo 3 pasos, adquiere nuestra herramienta ingresando a: | C56: Imagen | D56: OtrasRentasLiqGravaESAL_BSA | E56: =E54+H54-7 -> 581 | F56: =F$50 -> 14 | G56: =G$50 -> 40 | H56: =H$50 -> 120 | I56: =$I$51+$I$53+$I$55 -> 0
C57: Imagen | D57: OtrasRentasLiqGravaESAL_BS | E57: =E56 -> 581 | F57: =F56 -> 14 | G57: =G56 -> 40 | H57: =H56 -> 120 | I57: =(SUBSTITUTE(Botones_e_Imagenes[[#This Row],[Imagen]],"_BS","")=Parametros[Segmento])*1 -> 0
B58: =IF(Parametros[Tipo]=2,"Esta sección no está disponible en la versión de prueba de Actualícese 110.xls. Si quieres realizar tu declaración de renta de personas jurídicas de forma rápida y en solo 3 pasos, adquiere nuestra herramienta ingresando a:","") -> Esta sección no está disponible en la versión de prueba de Actualícese 110.xls. Si quieres realizar tu declaración de renta de personas jurídicas de forma rápida y en solo 3 pasos, adquiere nuestra herramienta ingresando a: | C58: Imagen | D58: H1 Carátula_BSA | E58: =E$50 -> 242 | F58: =F$50 -> 14 | G58: =G$50 -> 40 | H58: =H$50 -> 120 | I58: =($I$59+$I$61+$I$63+$I$65+$I$67+$I$69+$I$71)*(I59=0) -> 0
C59: Imagen | D59: H1 Carátula_BS | E59: =E58 -> 242 | F59: =F58 -> 14 | G59: =G58 -> 40 | H59: =H58 -> 120 | I59: =(SUBSTITUTE(Botones_e_Imagenes[[#This Row],[Imagen]],"_BS","")=Parametros[Segmento])*1 -> 0
B60: =IF(Parametros[Tipo]=2,"Esta sección no está disponible en la versión de prueba de Actualícese 110.xls. Si quieres realizar tu declaración de renta de personas jurídicas de forma rápida y en solo 3 pasos, adquiere nuestra herramienta ingresando a:","") -> Esta sección no está disponible en la versión de prueba de Actualícese 110.xls. Si quieres realizar tu declaración de renta de personas jurídicas de forma rápida y en solo 3 pasos, adquiere nuestra herramienta ingresando a: | C60: Imagen | D60: H2 ESF Patrimonio_BSA | E60: =E58+H58-7 -> 355 | F60: =F$50 -> 14 | G60: =G$50 -> 40 | H60: =H$50 -> 120 | I60: =($I$59+$I$61+$I$63+$I$65+$I$67+$I$69+$I$71)*(I61=0) -> 0
C61: Imagen | D61: H2 ESF Patrimonio_BS | E61: =E60 -> 355 | F61: =F60 -> 14 | G61: =G60 -> 40 | H61: =H60 -> 120 | I61: =(SUBSTITUTE(Botones_e_Imagenes[[#This Row],[Imagen]],"_BS","")=Parametros[Segmento])*1 -> 0
B62: =IF(Parametros[Tipo]=2,"Esta sección no está disponible en la versión de prueba de Actualícese 110.xls. Si quieres realizar tu declaración de renta de personas jurídicas de forma rápida y en solo 3 pasos, adquiere nuestra herramienta ingresando a:","") -> Esta sección no está disponible en la versión de prueba de Actualícese 110.xls. Si quieres realizar tu declaración de renta de personas jurídicas de forma rápida y en solo 3 pasos, adquiere nuestra herramienta ingresando a: | C62: Imagen | D62: H3 ERI Renta líquida_BSA | E62: =E60+H60-7 -> 468 | F62: =F$50 -> 14 | G62: =G$50 -> 40 | H62: =H$50 -> 120 | I62: =($I$59+$I$61+$I$63+$I$65+$I$67+$I$69+$I$71)*(I63=0) -> 0
C63: Imagen | D63: H3 ERI Renta líquida_BS | E63: =E62 -> 468 | F63: =F62 -> 14 | G63: =G62 -> 40 | H63: =H62 -> 120 | I63: =(SUBSTITUTE(Botones_e_Imagenes[[#This Row],[Imagen]],"_BS","")=Parametros[Segmento])*1 -> 0
B64: =IF(Parametros[Tipo]=2,"Esta sección no está disponible en la versión de prueba de Actualícese 110.xls. Si quieres realizar tu declaración de renta de personas jurídicas de forma rápida y en solo 3 pasos, adquiere nuestra herramienta ingresando a:","") -> Esta sección no está disponible en la versión de prueba de Actualícese 110.xls. Si quieres realizar tu declaración de renta de personas jurídicas de forma rápida y en solo 3 pasos, adquiere nuestra herramienta ingresando a: | C64: Imagen | D64: H4 Impuesto diferido_BSA | E64: =E62+H62-7 -> 581 | F64: =F$50 -> 14 | G64: =G$50 -> 40 | H64: =H$50 -> 120 | I64: =($I$59+$I$61+$I$63+$I$65+$I$67+$I$69+$I$71)*(I65=0) -> 0
C65: Imagen | D65: H4 Impuesto diferido_BS | E65: =E64 -> 581 | F65: =F64 -> 14 | G65: =G64 -> 40 | H65: =H64 -> 120 | I65: =(SUBSTITUTE(Botones_e_Imagenes[[#This Row],[Imagen]],"_BS","")=Parametros[Segmento])*1 -> 0
B66: =IF(Parametros[Tipo]=2,"Esta sección no está disponible en la versión de prueba de Actualícese 110.xls. Si quieres realizar tu declaración de renta de personas jurídicas de forma rápida y en solo 3 pasos, adquiere nuestra herramienta ingresando a:","") -> Esta sección no está disponible en la versión de prueba de Actualícese 110.xls. Si quieres realizar tu declaración de renta de personas jurídicas de forma rápida y en solo 3 pasos, adquiere nuestra herramienta ingresando a: | C66: Imagen | D66: H5 Ingresos y fact._BSA | E66: =E$50 -> 242 | F66: =F$58+G58-4 -> 50 | G66: =G$50 -> 40 | H66: =H$50 -> 120 | I66: =($I$59+$I$61+$I$63+$I$65+$I$67+$I$69+$I$71)*(I67=0) -> 0
C67: Imagen | D67: H5 Ingresos y fact._BS | E67: =E66 -> 242 | F67: =F$66 -> 50 | G67: =G66 -> 40 | H67: =H66 -> 120 | I67: =(SUBSTITUTE(Botones_e_Imagenes[[#This Row],[Imagen]],"_BS","")=Parametros[Segmento])*1 -> 0
B68: =IF(Parametros[Tipo]=2,"Esta sección no está disponible en la versión de prueba de Actualícese 110.xls. Si quieres realizar tu declaración de renta de personas jurídicas de forma rápida y en solo 3 pasos, adquiere nuestra herramienta ingresando a:","") -> Esta sección no está disponible en la versión de prueba de Actualícese 110.xls. Si quieres realizar tu declaración de renta de personas jurídicas de forma rápida y en solo 3 pasos, adquiere nuestra herramienta ingresando a: | C68: Imagen | D68: H6 Activos Fijos_BSA | E68: =E66+H66-7 -> 355 | F68: =F$66 -> 50 | G68: =G$50 -> 40 | H68: =H$50 -> 120 | I68: =($I$59+$I$61+$I$63+$I$65+$I$67+$I$69+$I$71)*(I69=0) -> 0
C69: Imagen | D69: H6 Activos Fijos_BS | E69: =E68 -> 355 | F69: =F$66 -> 50 | G69: =G68 -> 40 | H69: =H68 -> 120 | I69: =(SUBSTITUTE(Botones_e_Imagenes[[#This Row],[Imagen]],"_BS","")=Parametros[Segmento])*1 -> 0
B70: =IF(Parametros[Tipo]=2,"Esta sección no está disponible en la versión de prueba de Actualícese 110.xls. Si quieres realizar tu declaración de renta de personas jurídicas de forma rápida y en solo 3 pasos, adquiere nuestra herramienta ingresando a:","") -> Esta sección no está disponible en la versión de prueba de Actualícese 110.xls. Si quieres realizar tu declaración de renta de personas jurídicas de forma rápida y en solo 3 pasos, adquiere nuestra herramienta ingresando a: | C70: Imagen | D70: H7 Resumen ESF ERI_BSA | E70: =E68+H68-7 -> 468 | F70: =F$66 -> 50 | G70: =G$50 -> 40 | H70: =H$50 -> 120 | I70: =($I$59+$I$61+$I$63+$I$65+$I$67+$I$69+$I$71)*(I71=0) -> 0
C71: Imagen | D71: H7 Resumen ESF ERI_BS | E71: =E70 -> 468 | F71: =F$66 -> 50 | G71: =G70 -> 40 | H71: =H70 -> 120 | I71: =(SUBSTITUTE(Botones_e_Imagenes[[#This Row],[Imagen]],"_BS","")=Parametros[Segmento])*1 -> 0
C72: Imagen | D72: Descuentos Tributarios_BSA | E72: =$E$5+$G$5+45 -> 242 | F72: 14 | G72: 40 | H72: 120 | I72: =$I$75 -> 0
C73: Imagen | D73: Descuentos Tributarios_BS | E73: =E72 -> 242 | F73: =F72 -> 14 | G73: =G72 -> 40 | H73: =H72 -> 120 | I73: =(SUBSTITUTE(Botones_e_Imagenes[[#This Row],[Imagen]],"_BS","")=Parametros[Segmento])*1 -> 0
C74: Imagen | D74: Valor a Adicionar_BSA | E74: =E72+H72-7 -> 355 | F74: =F$50 -> 14 | G74: =G$50 -> 40 | H74: =H$50 -> 120 | I74: =$I$73 -> 0
C75: Imagen | D75: Valor a Adicionar_BS | E75: =E74 -> 355 | F75: =F74 -> 14 | G75: =G74 -> 40 | H75: =H74 -> 120 | I75: =(SUBSTITUTE(Botones_e_Imagenes[[#This Row],[Imagen]],"_BS","")=Parametros[Segmento])*1 -> 0
C76: Imagen | D76: Cronometro | E76: =MAX(($E$77+$H$77)*$I$77,($E$79+$H$79)*$I$79,($E$81+H81)*$I$81,($E$7+$H$7)*($I$7+$I$82+$I$83),($E$2+$H$2)*$I$2)+30 -> 847 | F76: =$F$7 -> 26 | G76: =$G$7 -> 47 | H76: =Botones_e_Imagenes[[#This Row],[Height]]*3 -> 141 | I76: =IF(Parametros[Tipo]=1,1,0) -> 0
B77: =IF(AND(Parametros[Tipo]<>0,Parametros[Tipo]<>""),"Esta sección no está disponible en la versión de prueba de Actualícese 110.xls. Si quieres realizar tu declaración de renta de personas jurídicas de forma rápida y en solo 3 pasos, adquiere nuestra herramienta ingresando a:","") -> Esta sección no está disponible en la versión de prueba de Actualícese 110.xls. Si quieres realizar tu declaración de renta de personas jurídicas de forma rápida y en solo 3 pasos, adquiere nuestra herramienta ingresando a: | C77: Imagen | D77: Exportar_PDF | E77: =$E$7+H7+20 -> 604 | F77: =F7 -> 26 | G77: =G7 -> 47 | H77: 160 | I77: =IFERROR(OR(Parametros[Segmento]=$D$45,Parametros[Segmento]=$D$47,Parametros[Segmento]=$D$48)*1,0) -> 0
A78: Menu_Detallado | C78: Imagen | D78: Barra Horizontal | E78: 55 | F78: 550 | G78: 14 | H78: 950 | I78: =IFERROR((Parametros[Segmento]="Fondo_Menu")*1,0) -> 1
C79: Imagen | D79: Ajustar_Filas | E79: =E7+H7+20 -> 604 | F79: =$F$7 -> 26 | G79: =$G$7 -> 47 | H79: 137 | I79: =(COUNTIF(Bloques[Segmento],Parametros[Segmento])>0)*1 -> 0
C80: Imagen | D80: Restablecer_Formulacion | E80: =E79+H79+20 -> 761 | F80: =$F$7 -> 26 | G80: =$G$7 -> 47 | H80: 169 | I80: =IFERROR((Parametros[Segmento]=$D$35)*1,0) -> 0
B81: =IF(AND(Parametros[Tipo]<>0,Parametros[Tipo]<>""),"Esta sección no está disponible en la versión de prueba de Actualícese 110.xls. Si quieres realizar tu declaración de renta de personas jurídicas de forma rápida y en solo 3 pasos, adquiere nuestra herramienta ingresando a:","") -> Esta sección no está disponible en la versión de prueba de Actualícese 110.xls. Si quieres realizar tu declaración de renta de personas jurídicas de forma rápida y en solo 3 pasos, adquiere nuestra herramienta ingresando a: | C81: Imagen | D81: Importar | E81: =$E$7+H7+20 -> 604 | F81: =F7 -> 26 | G81: =G7 -> 47 | H81: 190 | I81: =IFERROR((Parametros[Segmento]=$D$14)*1,0) -> 0
C82: Imagen | D82: Gastos_BSA | E82: =E$7 -> 451 | F82: =F$7 -> 26 | G82: 47 | H82: 133 | I82: =IFERROR((Parametros[Segmento]="Subcapitalización")*(Parametros[Volver_a]<>""),0) -> 0
C83: Imagen | D83: Otros ingresos_BSA | E83: =$E$7 -> 451 | F83: 26 | G83: 47 | H83: 133 | I83: =IFERROR((Parametros[Segmento]="Intereses presuntivos")*(Parametros[Volver_a]<>0),0) -> 0
A88: Segmento | B88: Grupo | C88: Bloque | D88: Actuales | E88: Temp | F88: Con_Datos | G88: Defecto
A89: Intereses presuntivos | B89: Intereses Presuntivos | C89: Información sobre préstamos a socios o accionistas | D89: =IF(Bloques[[#This Row],[Segmento]]=Parametros[Segmento],COUNTIFS(OFFSET(Ref_Segmento,Parametros[Fila]-1,0,Parametros[Alto]),Bloques[[#This Row],[Segmento]],OFFSET(Ref_Conteo,Parametros[Fila]-1,0,Parametros[Alto]),Bloques[[#This Row],[Bloque]],OFFSET(Ref_Conteo,Parametros[Fila]-1,-1,Parametros[Alto]),Bloques[[#This Row],[Grupo]])-1,0) -> 0
A90: Subcapitalización | B90: Subcapitalización | C90: Información general de los préstamos con vinculados económicos | D90: =IF(Bloques[[#This Row],[Segmento]]=Parametros[Segmento],COUNTIFS(OFFSET(Ref_Segmento,Parametros[Fila]-1,0,Parametros[Alto]),Bloques[[#This Row],[Segmento]],OFFSET(Ref_Conteo,Parametros[Fila]-1,0,Parametros[Alto]),Bloques[[#This Row],[Bloque]],OFFSET(Ref_Conteo,Parametros[Fila]-1,-1,Parametros[Alto]),Bloques[[#This Row],[Grupo]])-1,0) -> 0
A91: Activos | B91: Efectivo y Equivalentes del Efectivo | C91: Efectivo | D91: =IF(Bloques[[#This Row],[Segmento]]=Parametros[Segmento],COUNTIFS(OFFSET(Ref_Segmento,Parametros[Fila]-1,0,Parametros[Alto]),Bloques[[#This Row],[Segmento]],OFFSET(Ref_Conteo,Parametros[Fila]-1,0,Parametros[Alto]),Bloques[[#This Row],[Bloque]],OFFSET(Ref_Conteo,Parametros[Fila]-1,-1,Parametros[Alto]),Bloques[[#This Row],[Grupo]])-1,0) -> 0 | G91: Total efectivo
A92: Activos | B92: Efectivo y Equivalentes del Efectivo | C92: Equivalentes al efectivo | D92: =IF(Bloques[[#This Row],[Segmento]]=Parametros[Segmento],COUNTIFS(OFFSET(Ref_Segmento,Parametros[Fila]-1,0,Parametros[Alto]),Bloques[[#This Row],[Segmento]],OFFSET(Ref_Conteo,Parametros[Fila]-1,0,Parametros[Alto]),Bloques[[#This Row],[Bloque]],OFFSET(Ref_Conteo,Parametros[Fila]-1,-1,Parametros[Alto]),Bloques[[#This Row],[Grupo]])-1,0) -> 0
A93: Activos | B93: Efectivo y Equivalentes del Efectivo | C93: Efectivo restringido | D93: =IF(Bloques[[#This Row],[Segmento]]=Parametros[Segmento],COUNTIFS(OFFSET(Ref_Segmento,Parametros[Fila]-1,0,Parametros[Alto]),Bloques[[#This Row],[Segmento]],OFFSET(Ref_Conteo,Parametros[Fila]-1,0,Parametros[Alto]),Bloques[[#This Row],[Bloque]],OFFSET(Ref_Conteo,Parametros[Fila]-1,-1,Parametros[Alto]),Bloques[[#This Row],[Grupo]])-1,0) -> 0
A94: Activos | B94: Inversiones e Instrumentos Derivados | C94: Derechos de recompras de inversiones | D94: =IF(Bloques[[#This Row],[Segmento]]=Parametros[Segmento],COUNTIFS(OFFSET(Ref_Segmento,Parametros[Fila]-1,0,Parametros[Alto]),Bloques[[#This Row],[Segmento]],OFFSET(Ref_Conteo,Parametros[Fila]-1,0,Parametros[Alto]),Bloques[[#This Row],[Bloque]],OFFSET(Ref_Conteo,Parametros[Fila]-1,-1,Parametros[Alto]),Bloques[[#This Row],[Grupo]])-1,0) -> 0
A95: Activos | B95: Inversiones e Instrumentos Derivados | C95: Inversiones en subsidiarias, asociadas y negocios conjuntos medidas a valor razonable con cambios en resultados | D95: =IF(Bloques[[#This Row],[Segmento]]=Parametros[Segmento],COUNTIFS(OFFSET(Ref_Segmento,Parametros[Fila]-1,0,Parametros[Alto]),Bloques[[#This Row],[Segmento]],OFFSET(Ref_Conteo,Parametros[Fila]-1,0,Parametros[Alto]),Bloques[[#This Row],[Bloque]],OFFSET(Ref_Conteo,Parametros[Fila]-1,-1,Parametros[Alto]),Bloques[[#This Row],[Grupo]])-1,0) -> 0
A96: Activos | B96: Inversiones e Instrumentos Derivados | C96: Inversiones en subsidiarias, asociadas y negocios conjuntos medidas a valor razonable con cambios en el ORI | D96: =IF(Bloques[[#This Row],[Segmento]]=Parametros[Segmento],COUNTIFS(OFFSET(Ref_Segmento,Parametros[Fila]-1,0,Parametros[Alto]),Bloques[[#This Row],[Segmento]],OFFSET(Ref_Conteo,Parametros[Fila]-1,0,Parametros[Alto]),Bloques[[#This Row],[Bloque]],OFFSET(Ref_Conteo,Parametros[Fila]-1,-1,Parametros[Alto]),Bloques[[#This Row],[Grupo]])-1,0) -> 0
A97: Activos | B97: Inversiones e Instrumentos Derivados | C97: Inversiones en subsidiarias, asociadas y negocios conjuntos medidas con método de participación | D97: =IF(Bloques[[#This Row],[Segmento]]=Parametros[Segmento],COUNTIFS(OFFSET(Ref_Segmento,Parametros[Fila]-1,0,Parametros[Alto]),Bloques[[#This Row],[Segmento]],OFFSET(Ref_Conteo,Parametros[Fila]-1,0,Parametros[Alto]),Bloques[[#This Row],[Bloque]],OFFSET(Ref_Conteo,Parametros[Fila]-1,-1,Parametros[Alto]),Bloques[[#This Row],[Grupo]])-1,0) -> 0
A98: Activos | B98: Inversiones e Instrumentos Derivados | C98: Inversiones en subsidiarias, asociadas y negocios conjuntos medidas al costo | D98: =IF(Bloques[[#This Row],[Segmento]]=Parametros[Segmento],COUNTIFS(OFFSET(Ref_Segmento,Parametros[Fila]-1,0,Parametros[Alto]),Bloques[[#This Row],[Segmento]],OFFSET(Ref_Conteo,Parametros[Fila]-1,0,Parametros[Alto]),Bloques[[#This Row],[Bloque]],OFFSET(Ref_Conteo,Parametros[Fila]-1,-1,Parametros[Alto]),Bloques[[#This Row],[Grupo]])-1,0) -> 0
A99: Activos | B99: Inversiones e Instrumentos Derivados | C99: Instrumentos de deuda a costo amortizado | D99: =IF(Bloques[[#This Row],[Segmento]]=Parametros[Segmento],COUNTIFS(OFFSET(Ref_Segmento,Parametros[Fila]-1,0,Parametros[Alto]),Bloques[[#This Row],[Segmento]],OFFSET(Ref_Conteo,Parametros[Fila]-1,0,Parametros[Alto]),Bloques[[#This Row],[Bloque]],OFFSET(Ref_Conteo,Parametros[Fila]-1,-1,Parametros[Alto]),Bloques[[#This Row],[Grupo]])-1,0) -> 0
A100: Activos | B100: Inversiones e Instrumentos Derivados | C100: Instrumentos de deuda o patrimonio al costo | D100: =IF(Bloques[[#This Row],[Segmento]]=Parametros[Segmento],COUNTIFS(OFFSET(Ref_Segmento,Parametros[Fila]-1,0,Parametros[Alto]),Bloques[[#This Row],[Segmento]],OFFSET(Ref_Conteo,Parametros[Fila]-1,0,Parametros[Alto]),Bloques[[#This Row],[Bloque]],OFFSET(Ref_Conteo,Parametros[Fila]-1,-1,Parametros[Alto]),Bloques[[#This Row],[Grupo]])-1,0) -> 0
A101: Activos | B101: Inversiones e Instrumentos Derivados | C101: Instrumentos de deuda o patrimonio al valor razonable con cambios en resultados | D101: =IF(Bloques[[#This Row],[Segmento]]=Parametros[Segmento],COUNTIFS(OFFSET(Ref_Segmento,Parametros[Fila]-1,0,Parametros[Alto]),Bloques[[#This Row],[Segmento]],OFFSET(Ref_Conteo,Parametros[Fila]-1,0,Parametros[Alto]),Bloques[[#This Row],[Bloque]],OFFSET(Ref_Conteo,Parametros[Fila]-1,-1,Parametros[Alto]),Bloques[[#This Row],[Grupo]])-1,0) -> 0
A102: Activos | B102: Inversiones e Instrumentos Derivados | C102: Instrumentos de deuda o patrimonio al valor razonable con cambios en el ORI | D102: =IF(Bloques[[#This Row],[Segmento]]=Parametros[Segmento],COUNTIFS(OFFSET(Ref_Segmento,Parametros[Fila]-1,0,Parametros[Alto]),Bloques[[#This Row],[Segmento]],OFFSET(Ref_Conteo,Parametros[Fila]-1,0,Parametros[Alto]),Bloques[[#This Row],[Bloque]],OFFSET(Ref_Conteo,Parametros[Fila]-1,-1,Parametros[Alto]),Bloques[[#This Row],[Grupo]])-1,0) -> 0
A103: Activos | B103: Inversiones e Instrumentos Derivados | C103: Instrumentos financieros derivados con fines de negociación | D103: =IF(Bloques[[#This Row],[Segmento]]=Parametros[Segmento],COUNTIFS(OFFSET(Ref_Segmento,Parametros[Fila]-1,0,Parametros[Alto]),Bloques[[#This Row],[Segmento]],OFFSET(Ref_Conteo,Parametros[Fila]-1,0,Parametros[Alto]),Bloques[[#This Row],[Bloque]],OFFSET(Ref_Conteo,Parametros[Fila]-1,-1,Parametros[Alto]),Bloques[[#This Row],[Grupo]])-1,0) -> 0
A104: Activos | B104: Inversiones e Instrumentos Derivados | C104: Instrumentos financieros derivados con fines de cobertura | D104: =IF(Bloques[[#This Row],[Segmento]]=Parametros[Segmento],COUNTIFS(OFFSET(Ref_Segmento,Parametros[Fila]-1,0,Parametros[Alto]),Bloques[[#This Row],[Segmento]],OFFSET(Ref_Conteo,Parametros[Fila]-1,0,Parametros[Alto]),Bloques[[#This Row],[Bloque]],OFFSET(Ref_Conteo,Parametros[Fila]-1,-1,Parametros[Alto]),Bloques[[#This Row],[Grupo]])-1,0) -> 0
A105: Activos | B105: Inversiones e Instrumentos Derivados | C105: Derechos fiduciarios | D105: =IF(Bloques[[#This Row],[Segmento]]=Parametros[Segmento],COUNTIFS(OFFSET(Ref_Segmento,Parametros[Fila]-1,0,Parametros[Alto]),Bloques[[#This Row],[Segmento]],OFFSET(Ref_Conteo,Parametros[Fila]-1,0,Parametros[Alto]),Bloques[[#This Row],[Bloque]],OFFSET(Ref_Conteo,Parametros[Fila]-1,-1,Parametros[Alto]),Bloques[[#This Row],[Grupo]])-1,0) -> 0
A106: Activos | B106: Inversiones e Instrumentos Derivados | C106: Otros | D106: =IF(Bloques[[#This Row],[Segmento]]=Parametros[Segmento],COUNTIFS(OFFSET(Ref_Segmento,Parametros[Fila]-1,0,Parametros[Alto]),Bloques[[#This Row],[Segmento]],OFFSET(Ref_Conteo,Parametros[Fila]-1,0,Parametros[Alto]),Bloques[[#This Row],[Bloque]],OFFSET(Ref_Conteo,Parametros[Fila]-1,-1,Parametros[Alto]),Bloques[[#This Row],[Grupo]])-1,0) -> 0
A107: Activos | B107: Cuentas por Cobrar | C107: Cartera de crédito (préstamos bancarios) | D107: =IF(Bloques[[#This Row],[Segmento]]=Parametros[Segmento],COUNTIFS(OFFSET(Ref_Segmento,Parametros[Fila]-1,0,Parametros[Alto]),Bloques[[#This Row],[Segmento]],OFFSET(Ref_Conteo,Parametros[Fila]-1,0,Parametros[Alto]),Bloques[[#This Row],[Bloque]],OFFSET(Ref_Conteo,Parametros[Fila]-1,-1,Parametros[Alto]),Bloques[[#This Row],[Grupo]])-1,0) -> 0
A108: Activos | B108: Cuentas por Cobrar | C108: Cuentas comerciales por cobrar | D108: =IF(Bloques[[#This Row],[Segmento]]=Parametros[Segmento],COUNTIFS(OFFSET(Ref_Segmento,Parametros[Fila]-1,0,Parametros[Alto]),Bloques[[#This Row],[Segmento]],OFFSET(Ref_Conteo,Parametros[Fila]-1,0,Parametros[Alto]),Bloques[[#This Row],[Bloque]],OFFSET(Ref_Conteo,Parametros[Fila]-1,-1,Parametros[Alto]),Bloques[[#This Row],[Grupo]])-1,0) -> 0
A109: Activos | B109: Cuentas por Cobrar | C109: Cuentas por cobrar en acuerdos de concesión (modelos del activo financiero) | D109: =IF(Bloques[[#This Row],[Segmento]]=Parametros[Segmento],COUNTIFS(OFFSET(Ref_Segmento,Parametros[Fila]-1,0,Parametros[Alto]),Bloques[[#This Row],[Segmento]],OFFSET(Ref_Conteo,Parametros[Fila]-1,0,Parametros[Alto]),Bloques[[#This Row],[Bloque]],OFFSET(Ref_Conteo,Parametros[Fila]-1,-1,Parametros[Alto]),Bloques[[#This Row],[Grupo]])-1,0) -> 0
A110: Activos | B110: Cuentas por Cobrar | C110: Arrendamiento financiero o leasing financiero | D110: =IF(Bloques[[#This Row],[Segmento]]=Parametros[Segmento],COUNTIFS(OFFSET(Ref_Segmento,Parametros[Fila]-1,0,Parametros[Alto]),Bloques[[#This Row],[Segmento]],OFFSET(Ref_Conteo,Parametros[Fila]-1,0,Parametros[Alto]),Bloques[[#This Row],[Bloque]],OFFSET(Ref_Conteo,Parametros[Fila]-1,-1,Parametros[Alto]),Bloques[[#This Row],[Grupo]])-1,0) -> 0
A111: Activos | B111: Cuentas por Cobrar | C111: Dividendos y participaciones | D111: =IF(Bloques[[#This Row],[Segmento]]=Parametros[Segmento],COUNTIFS(OFFSET(Ref_Segmento,Parametros[Fila]-1,0,Parametros[Alto]),Bloques[[#This Row],[Segmento]],OFFSET(Ref_Conteo,Parametros[Fila]-1,0,Parametros[Alto]),Bloques[[#This Row],[Bloque]],OFFSET(Ref_Conteo,Parametros[Fila]-1,-1,Parametros[Alto]),Bloques[[#This Row],[Grupo]])-1,0) -> 0
A112: Activos | B112: Cuentas por Cobrar | C112: Cuentas por cobrar a socios, accionistas o partícipes | D112: =IF(Bloques[[#This Row],[Segmento]]=Parametros[Segmento],COUNTIFS(OFFSET(Ref_Segmento,Parametros[Fila]-1,0,Parametros[Alto]),Bloques[[#This Row],[Segmento]],OFFSET(Ref_Conteo,Parametros[Fila]-1,0,Parametros[Alto]),Bloques[[#This Row],[Bloque]],OFFSET(Ref_Conteo,Parametros[Fila]-1,-1,Parametros[Alto]),Bloques[[#This Row],[Grupo]])-1,0) -> 0
A113: Activos | B113: Cuentas por Cobrar | C113: Cuentas y documentos por cobrar a otras partes relacionadas y asociadas | D113: =IF(Bloques[[#This Row],[Segmento]]=Parametros[Segmento],COUNTIFS(OFFSET(Ref_Segmento,Parametros[Fila]-1,0,Parametros[Alto]),Bloques[[#This Row],[Segmento]],OFFSET(Ref_Conteo,Parametros[Fila]-1,0,Parametros[Alto]),Bloques[[#This Row],[Bloque]],OFFSET(Ref_Conteo,Parametros[Fila]-1,-1,Parametros[Alto]),Bloques[[#This Row],[Grupo]])-1,0) -> 0
A114: Activos | B114: Cuentas por Cobrar | C114: Primas de seguros por recaudar | D114: =IF(Bloques[[#This Row],[Segmento]]=Parametros[Segmento],COUNTIFS(OFFSET(Ref_Segmento,Parametros[Fila]-1,0,Parametros[Alto]),Bloques[[#This Row],[Segmento]],OFFSET(Ref_Conteo,Parametros[Fila]-1,0,Parametros[Alto]),Bloques[[#This Row],[Bloque]],OFFSET(Ref_Conteo,Parametros[Fila]-1,-1,Parametros[Alto]),Bloques[[#This Row],[Grupo]])-1,0) -> 0
A115: Activos | B115: Cuentas por Cobrar | C115: Cartera de difícil cobro | D115: =IF(Bloques[[#This Row],[Segmento]]=Parametros[Segmento],COUNTIFS(OFFSET(Ref_Segmento,Parametros[Fila]-1,0,Parametros[Alto]),Bloques[[#This Row],[Segmento]],OFFSET(Ref_Conteo,Parametros[Fila]-1,0,Parametros[Alto]),Bloques[[#This Row],[Bloque]],OFFSET(Ref_Conteo,Parametros[Fila]-1,-1,Parametros[Alto]),Bloques[[#This Row],[Grupo]])-1,0) -> 0
A116: Activos | B116: Cuentas por Cobrar | C116: Reclamaciones por cobrar | D116: =IF(Bloques[[#This Row],[Segmento]]=Parametros[Segmento],COUNTIFS(OFFSET(Ref_Segmento,Parametros[Fila]-1,0,Parametros[Alto]),Bloques[[#This Row],[Segmento]],OFFSET(Ref_Conteo,Parametros[Fila]-1,0,Parametros[Alto]),Bloques[[#This Row],[Bloque]],OFFSET(Ref_Conteo,Parametros[Fila]-1,-1,Parametros[Alto]),Bloques[[#This Row],[Grupo]])-1,0) -> 0
A117: Activos | B117: Cuentas por Cobrar | C117: Anticipos de pagos | D117: =IF(Bloques[[#This Row],[Segmento]]=Parametros[Segmento],COUNTIFS(OFFSET(Ref_Segmento,Parametros[Fila]-1,0,Parametros[Alto]),Bloques[[#This Row],[Segmento]],OFFSET(Ref_Conteo,Parametros[Fila]-1,0,Parametros[Alto]),Bloques[[#This Row],[Bloque]],OFFSET(Ref_Conteo,Parametros[Fila]-1,-1,Parametros[Alto]),Bloques[[#This Row],[Grupo]])-1,0) -> 0
A118: Activos | B118: Cuentas por Cobrar | C118: Otras cuentas y documentos por cobrar | D118: =IF(Bloques[[#This Row],[Segmento]]=Parametros[Segmento],COUNTIFS(OFFSET(Ref_Segmento,Parametros[Fila]-1,0,Parametros[Alto]),Bloques[[#This Row],[Segmento]],OFFSET(Ref_Conteo,Parametros[Fila]-1,0,Parametros[Alto]),Bloques[[#This Row],[Bloque]],OFFSET(Ref_Conteo,Parametros[Fila]-1,-1,Parametros[Alto]),Bloques[[#This Row],[Grupo]])-1,0) -> 0
A119: Activos | B119: Inventarios | C119: Inventarios para la venta no producidos por la empresa | D119: =IF(Bloques[[#This Row],[Segmento]]=Parametros[Segmento],COUNTIFS(OFFSET(Ref_Segmento,Parametros[Fila]-1,0,Parametros[Alto]),Bloques[[#This Row],[Segmento]],OFFSET(Ref_Conteo,Parametros[Fila]-1,0,Parametros[Alto]),Bloques[[#This Row],[Bloque]],OFFSET(Ref_Conteo,Parametros[Fila]-1,-1,Parametros[Alto]),Bloques[[#This Row],[Grupo]])-1,0) -> 0
A120: Activos | B120: Inventarios | C120: Inventarios en proceso (diferentes de obras o inmuebles en construcción para la venta) | D120: =IF(Bloques[[#This Row],[Segmento]]=Parametros[Segmento],COUNTIFS(OFFSET(Ref_Segmento,Parametros[Fila]-1,0,Parametros[Alto]),Bloques[[#This Row],[Segmento]],OFFSET(Ref_Conteo,Parametros[Fila]-1,0,Parametros[Alto]),Bloques[[#This Row],[Bloque]],OFFSET(Ref_Conteo,Parametros[Fila]-1,-1,Parametros[Alto]),Bloques[[#This Row],[Grupo]])-1,0) -> 0
A121: Activos | B121: Inventarios | C121: Materias primas, suministros y materiales | D121: =IF(Bloques[[#This Row],[Segmento]]=Parametros[Segmento],COUNTIFS(OFFSET(Ref_Segmento,Parametros[Fila]-1,0,Parametros[Alto]),Bloques[[#This Row],[Segmento]],OFFSET(Ref_Conteo,Parametros[Fila]-1,0,Parametros[Alto]),Bloques[[#This Row],[Bloque]],OFFSET(Ref_Conteo,Parametros[Fila]-1,-1,Parametros[Alto]),Bloques[[#This Row],[Grupo]])-1,0) -> 0
A122: Activos | B122: Inventarios | C122: Inventarios en tránsito | D122: =IF(Bloques[[#This Row],[Segmento]]=Parametros[Segmento],COUNTIFS(OFFSET(Ref_Segmento,Parametros[Fila]-1,0,Parametros[Alto]),Bloques[[#This Row],[Segmento]],OFFSET(Ref_Conteo,Parametros[Fila]-1,0,Parametros[Alto]),Bloques[[#This Row],[Bloque]],OFFSET(Ref_Conteo,Parametros[Fila]-1,-1,Parametros[Alto]),Bloques[[#This Row],[Grupo]])-1,0) -> 0
A123: Activos | B123: Inventarios | C123: Obras o inmuebles en construcción para la venta | D123: =IF(Bloques[[#This Row],[Segmento]]=Parametros[Segmento],COUNTIFS(OFFSET(Ref_Segmento,Parametros[Fila]-1,0,Parametros[Alto]),Bloques[[#This Row],[Segmento]],OFFSET(Ref_Conteo,Parametros[Fila]-1,0,Parametros[Alto]),Bloques[[#This Row],[Bloque]],OFFSET(Ref_Conteo,Parametros[Fila]-1,-1,Parametros[Alto]),Bloques[[#This Row],[Grupo]])-1,0) -> 0
A124: Activos | B124: Inventarios | C124: Obras o inmuebles terminados para la venta | D124: =IF(Bloques[[#This Row],[Segmento]]=Parametros[Segmento],COUNTIFS(OFFSET(Ref_Segmento,Parametros[Fila]-1,0,Parametros[Alto]),Bloques[[#This Row],[Segmento]],OFFSET(Ref_Conteo,Parametros[Fila]-1,0,Parametros[Alto]),Bloques[[#This Row],[Bloque]],OFFSET(Ref_Conteo,Parametros[Fila]-1,-1,Parametros[Alto]),Bloques[[#This Row],[Grupo]])-1,0) -> 0
A125: Activos | B125: Inventarios | C125: Producto terminado (diferentes de obras o inmuebles terminados para la venta) | D125: =IF(Bloques[[#This Row],[Segmento]]=Parametros[Segmento],COUNTIFS(OFFSET(Ref_Segmento,Parametros[Fila]-1,0,Parametros[Alto]),Bloques[[#This Row],[Segmento]],OFFSET(Ref_Conteo,Parametros[Fila]-1,0,Parametros[Alto]),Bloques[[#This Row],[Bloque]],OFFSET(Ref_Conteo,Parametros[Fila]-1,-1,Parametros[Alto]),Bloques[[#This Row],[Grupo]])-1,0) -> 0
A126: Activos | B126: Inventarios | C126: Piezas de repuesto y equipo auxiliar clasificados como inventarios | D126: =IF(Bloques[[#This Row],[Segmento]]=Parametros[Segmento],COUNTIFS(OFFSET(Ref_Segmento,Parametros[Fila]-1,0,Parametros[Alto]),Bloques[[#This Row],[Segmento]],OFFSET(Ref_Conteo,Parametros[Fila]-1,0,Parametros[Alto]),Bloques[[#This Row],[Bloque]],OFFSET(Ref_Conteo,Parametros[Fila]-1,-1,Parametros[Alto]),Bloques[[#This Row],[Grupo]])-1,0) -> 0
A127: Activos | B127: Inventarios | C127: Inventario que surge de la actividad de extracción | D127: =IF(Bloques[[#This Row],[Segmento]]=Parametros[Segmento],COUNTIFS(OFFSET(Ref_Segmento,Parametros[Fila]-1,0,Parametros[Alto]),Bloques[[#This Row],[Segmento]],OFFSET(Ref_Conteo,Parametros[Fila]-1,0,Parametros[Alto]),Bloques[[#This Row],[Bloque]],OFFSET(Ref_Conteo,Parametros[Fila]-1,-1,Parametros[Alto]),Bloques[[#This Row],[Grupo]])-1,0) -> 0
A128: Activos | B128: Inventarios | C128: Costos prestadores de servicios | D128: =IF(Bloques[[#This Row],[Segmento]]=Parametros[Segmento],COUNTIFS(OFFSET(Ref_Segmento,Parametros[Fila]-1,0,Parametros[Alto]),Bloques[[#This Row],[Segmento]],OFFSET(Ref_Conteo,Parametros[Fila]-1,0,Parametros[Alto]),Bloques[[#This Row],[Bloque]],OFFSET(Ref_Conteo,Parametros[Fila]-1,-1,Parametros[Alto]),Bloques[[#This Row],[Grupo]])-1,0) -> 0
A129: Activos | B129: Propiedades, Planta y Equipo | C129: Terrenos | D129: =IF(Bloques[[#This Row],[Segmento]]=Parametros[Segmento],COUNTIFS(OFFSET(Ref_Segmento,Parametros[Fila]-1,0,Parametros[Alto]),Bloques[[#This Row],[Segmento]],OFFSET(Ref_Conteo,Parametros[Fila]-1,0,Parametros[Alto]),Bloques[[#This Row],[Bloque]],OFFSET(Ref_Conteo,Parametros[Fila]-1,-1,Parametros[Alto]),Bloques[[#This Row],[Grupo]])-1,0) -> 0
A130: Activos | B130: Propiedades, Planta y Equipo | C130: Construcciones en proceso | D130: =IF(Bloques[[#This Row],[Segmento]]=Parametros[Segmento],COUNTIFS(OFFSET(Ref_Segmento,Parametros[Fila]-1,0,Parametros[Alto]),Bloques[[#This Row],[Segmento]],OFFSET(Ref_Conteo,Parametros[Fila]-1,0,Parametros[Alto]),Bloques[[#This Row],[Bloque]],OFFSET(Ref_Conteo,Parametros[Fila]-1,-1,Parametros[Alto]),Bloques[[#This Row],[Grupo]])-1,0) -> 0
A131: Activos | B131: Propiedades, Planta y Equipo | C131: Edificios - Al costo | D131: =IF(Bloques[[#This Row],[Segmento]]=Parametros[Segmento],COUNTIFS(OFFSET(Ref_Segmento,Parametros[Fila]-1,0,Parametros[Alto]),Bloques[[#This Row],[Segmento]],OFFSET(Ref_Conteo,Parametros[Fila]-1,0,Parametros[Alto]),Bloques[[#This Row],[Bloque]],OFFSET(Ref_Conteo,Parametros[Fila]-1,-1,Parametros[Alto]),Bloques[[#This Row],[Grupo]])-1,0) -> 0
A132: Activos | B132: Propiedades, Planta y Equipo | C132: Edificios - Ajuste acumulado por revaluaciones o reexpresiones | D132: =IF(Bloques[[#This Row],[Segmento]]=Parametros[Segmento],COUNTIFS(OFFSET(Ref_Segmento,Parametros[Fila]-1,0,Parametros[Alto]),Bloques[[#This Row],[Segmento]],OFFSET(Ref_Conteo,Parametros[Fila]-1,0,Parametros[Alto]),Bloques[[#This Row],[Bloque]],OFFSET(Ref_Conteo,Parametros[Fila]-1,-1,Parametros[Alto]),Bloques[[#This Row],[Grupo]])-1,0) -> 0
A133: Activos | B133: Propiedades, Planta y Equipo | C133: Otras propiedades, plantas y equipo - Al costo | D133: =IF(Bloques[[#This Row],[Segmento]]=Parametros[Segmento],COUNTIFS(OFFSET(Ref_Segmento,Parametros[Fila]-1,0,Parametros[Alto]),Bloques[[#This Row],[Segmento]],OFFSET(Ref_Conteo,Parametros[Fila]-1,0,Parametros[Alto]),Bloques[[#This Row],[Bloque]],OFFSET(Ref_Conteo,Parametros[Fila]-1,-1,Parametros[Alto]),Bloques[[#This Row],[Grupo]])-1,0) -> 0
A134: Activos | B134: Propiedades, Planta y Equipo | C134: Otras propiedades, plantas y equipo - Ajuste acumulado por revaluaciones o reexpresiones | D134: =IF(Bloques[[#This Row],[Segmento]]=Parametros[Segmento],COUNTIFS(OFFSET(Ref_Segmento,Parametros[Fila]-1,0,Parametros[Alto]),Bloques[[#This Row],[Segmento]],OFFSET(Ref_Conteo,Parametros[Fila]-1,0,Parametros[Alto]),Bloques[[#This Row],[Bloque]],OFFSET(Ref_Conteo,Parametros[Fila]-1,-1,Parametros[Alto]),Bloques[[#This Row],[Grupo]])-1,0) -> 0
A135: Activos | B135: Propiedades, Planta y Equipo | C135: Activos tangibles para exploración y evaluación de recursos minerales | D135: =IF(Bloques[[#This Row],[Segmento]]=Parametros[Segmento],COUNTIFS(OFFSET(Ref_Segmento,Parametros[Fila]-1,0,Parametros[Alto]),Bloques[[#This Row],[Segmento]],OFFSET(Ref_Conteo,Parametros[Fila]-1,0,Parametros[Alto]),Bloques[[#This Row],[Bloque]],OFFSET(Ref_Conteo,Parametros[Fila]-1,-1,Parametros[Alto]),Bloques[[#This Row],[Grupo]])-1,0) -> 0
A136: Activos | B136: Activos Intangibles - Distintos a la plusvalía | C136: Acuerdos de concesión (modelo del activo intangible) | D136: =IF(Bloques[[#This Row],[Segmento]]=Parametros[Segmento],COUNTIFS(OFFSET(Ref_Segmento,Parametros[Fila]-1,0,Parametros[Alto]),Bloques[[#This Row],[Segmento]],OFFSET(Ref_Conteo,Parametros[Fila]-1,0,Parametros[Alto]),Bloques[[#This Row],[Bloque]],OFFSET(Ref_Conteo,Parametros[Fila]-1,-1,Parametros[Alto]),Bloques[[#This Row],[Grupo]])-1,0) -> 0
A137: Activos | B137: Activos Intangibles - Distintos a la plusvalía | C137: Activos intangibles exploración y evaluación de recursos minerales | D137: =IF(Bloques[[#This Row],[Segmento]]=Parametros[Segmento],COUNTIFS(OFFSET(Ref_Segmento,Parametros[Fila]-1,0,Parametros[Alto]),Bloques[[#This Row],[Segmento]],OFFSET(Ref_Conteo,Parametros[Fila]-1,0,Parametros[Alto]),Bloques[[#This Row],[Bloque]],OFFSET(Ref_Conteo,Parametros[Fila]-1,-1,Parametros[Alto]),Bloques[[#This Row],[Grupo]])-1,0) -> 0
A138: Activos | B138: Activos Intangibles - Distintos a la plusvalía | C138: Marcas, patentes, licencias y otros derechos - Al costo | D138: =IF(Bloques[[#This Row],[Segmento]]=Parametros[Segmento],COUNTIFS(OFFSET(Ref_Segmento,Parametros[Fila]-1,0,Parametros[Alto]),Bloques[[#This Row],[Segmento]],OFFSET(Ref_Conteo,Parametros[Fila]-1,0,Parametros[Alto]),Bloques[[#This Row],[Bloque]],OFFSET(Ref_Conteo,Parametros[Fila]-1,-1,Parametros[Alto]),Bloques[[#This Row],[Grupo]])-1,0) -> 0
A139: Activos | B139: Activos Intangibles - Distintos a la plusvalía | C139: Marcas, patentes, licencias y otros derechos - Ajuste acumulado por revaluaciones o reexpresiones | D139: =IF(Bloques[[#This Row],[Segmento]]=Parametros[Segmento],COUNTIFS(OFFSET(Ref_Segmento,Parametros[Fila]-1,0,Parametros[Alto]),Bloques[[#This Row],[Segmento]],OFFSET(Ref_Conteo,Parametros[Fila]-1,0,Parametros[Alto]),Bloques[[#This Row],[Bloque]],OFFSET(Ref_Conteo,Parametros[Fila]-1,-1,Parametros[Alto]),Bloques[[#This Row],[Grupo]])-1,0) -> 0
A140: Activos | B140: Activos Intangibles - Distintos a la plusvalía | C140: Arrendamiento Financiero - Al costo | D140: =IF(Bloques[[#This Row],[Segmento]]=Parametros[Segmento],COUNTIFS(OFFSET(Ref_Segmento,Parametros[Fila]-1,0,Parametros[Alto]),Bloques[[#This Row],[Segmento]],OFFSET(Ref_Conteo,Parametros[Fila]-1,0,Parametros[Alto]),Bloques[[#This Row],[Bloque]],OFFSET(Ref_Conteo,Parametros[Fila]-1,-1,Parametros[Alto]),Bloques[[#This Row],[Grupo]])-1,0) -> 0
A141: Activos | B141: Activos Intangibles - Distintos a la plusvalía | C141: Arrendamiento Financiero - Ajuste acumulado por revaluaciones o reexpresiones | D141: =IF(Bloques[[#This Row],[Segmento]]=Parametros[Segmento],COUNTIFS(OFFSET(Ref_Segmento,Parametros[Fila]-1,0,Parametros[Alto]),Bloques[[#This Row],[Segmento]],OFFSET(Ref_Conteo,Parametros[Fila]-1,0,Parametros[Alto]),Bloques[[#This Row],[Bloque]],OFFSET(Ref_Conteo,Parametros[Fila]-1,-1,Parametros[Alto]),Bloques[[#This Row],[Grupo]])-1,0) -> 0
A142: Activos | B142: Activos Intangibles - Distintos a la plusvalía | C142: Otros activos intangibles - Al costo | D142: =IF(Bloques[[#This Row],[Segmento]]=Parametros[Segmento],COUNTIFS(OFFSET(Ref_Segmento,Parametros[Fila]-1,0,Parametros[Alto]),Bloques[[#This Row],[Segmento]],OFFSET(Ref_Conteo,Parametros[Fila]-1,0,Parametros[Alto]),Bloques[[#This Row],[Bloque]],OFFSET(Ref_Conteo,Parametros[Fila]-1,-1,Parametros[Alto]),Bloques[[#This Row],[Grupo]])-1,0) -> 0
A143: Activos | B143: Activos Intangibles - Distintos a la plusvalía | C143: Otros activos intangibles - Ajuste acumulado por revaluaciones o reexpresiones | D143: =IF(Bloques[[#This Row],[Segmento]]=Parametros[Segmento],COUNTIFS(OFFSET(Ref_Segmento,Parametros[Fila]-1,0,Parametros[Alto]),Bloques[[#This Row],[Segmento]],OFFSET(Ref_Conteo,Parametros[Fila]-1,0,Parametros[Alto]),Bloques[[#This Row],[Bloque]],OFFSET(Ref_Conteo,Parametros[Fila]-1,-1,Parametros[Alto]),Bloques[[#This Row],[Grupo]])-1,0) -> 0
A144: Activos | B144: Activos Intangibles - Distintos a la plusvalía | C144: Amortización acumulada de activos intangibles distintos de la plusvalía | D144: =IF(Bloques[[#This Row],[Segmento]]=Parametros[Segmento],COUNTIFS(OFFSET(Ref_Segmento,Parametros[Fila]-1,0,Parametros[Alto]),Bloques[[#This Row],[Segmento]],OFFSET(Ref_Conteo,Parametros[Fila]-1,0,Parametros[Alto]),Bloques[[#This Row],[Bloque]],OFFSET(Ref_Conteo,Parametros[Fila]-1,-1,Parametros[Alto]),Bloques[[#This Row],[Grupo]])-1,0) -> 0
A145: Activos | B145: Activos Intangibles - Distintos a la plusvalía | C145: Deterioro acumulado de activos intangibles distintos de la plusvalía | D145: =IF(Bloques[[#This Row],[Segmento]]=Parametros[Segmento],COUNTIFS(OFFSET(Ref_Segmento,Parametros[Fila]-1,0,Parametros[Alto]),Bloques[[#This Row],[Segmento]],OFFSET(Ref_Conteo,Parametros[Fila]-1,0,Parametros[Alto]),Bloques[[#This Row],[Bloque]],OFFSET(Ref_Conteo,Parametros[Fila]-1,-1,Parametros[Alto]),Bloques[[#This Row],[Grupo]])-1,0) -> 0
A146: Activos | B146: Activos Intangibles - Plusvalía o Good Will | C146: Plusvalía o Good Will - Adquisición de establecimiento de comercio | D146: =IF(Bloques[[#This Row],[Segmento]]=Parametros[Segmento],COUNTIFS(OFFSET(Ref_Segmento,Parametros[Fila]-1,0,Parametros[Alto]),Bloques[[#This Row],[Segmento]],OFFSET(Ref_Conteo,Parametros[Fila]-1,0,Parametros[Alto]),Bloques[[#This Row],[Bloque]],OFFSET(Ref_Conteo,Parametros[Fila]-1,-1,Parametros[Alto]),Bloques[[#This Row],[Grupo]])-1,0) -> 0
A147: Activos | B147: Activos Intangibles - Plusvalía o Good Will | C147: Plusvalía o Good Will - Fusiones | D147: =IF(Bloques[[#This Row],[Segmento]]=Parametros[Segmento],COUNTIFS(OFFSET(Ref_Segmento,Parametros[Fila]-1,0,Parametros[Alto]),Bloques[[#This Row],[Segmento]],OFFSET(Ref_Conteo,Parametros[Fila]-1,0,Parametros[Alto]),Bloques[[#This Row],[Bloque]],OFFSET(Ref_Conteo,Parametros[Fila]-1,-1,Parametros[Alto]),Bloques[[#This Row],[Grupo]])-1,0) -> 0
A148: Activos | B148: Activos Intangibles - Plusvalía o Good Will | C148: Plusvalía o Good Will - Escisiones | D148: =IF(Bloques[[#This Row],[Segmento]]=Parametros[Segmento],COUNTIFS(OFFSET(Ref_Segmento,Parametros[Fila]-1,0,Parametros[Alto]),Bloques[[#This Row],[Segmento]],OFFSET(Ref_Conteo,Parametros[Fila]-1,0,Parametros[Alto]),Bloques[[#This Row],[Bloque]],OFFSET(Ref_Conteo,Parametros[Fila]-1,-1,Parametros[Alto]),Bloques[[#This Row],[Grupo]])-1,0) -> 0
A149: Activos | B149: Activos Intangibles - Plusvalía o Good Will | C149: Plusvalía o Good Will - Compras de Acciones | D149: =IF(Bloques[[#This Row],[Segmento]]=Parametros[Segmento],COUNTIFS(OFFSET(Ref_Segmento,Parametros[Fila]-1,0,Parametros[Alto]),Bloques[[#This Row],[Segmento]],OFFSET(Ref_Conteo,Parametros[Fila]-1,0,Parametros[Alto]),Bloques[[#This Row],[Bloque]],OFFSET(Ref_Conteo,Parametros[Fila]-1,-1,Parametros[Alto]),Bloques[[#This Row],[Grupo]])-1,0) -> 0
A150: Activos | B150: Activos Intangibles - Plusvalía o Good Will | C150: Amortización acumulada de la plusvalía o Good Will | D150: =IF(Bloques[[#This Row],[Segmento]]=Parametros[Segmento],COUNTIFS(OFFSET(Ref_Segmento,Parametros[Fila]-1,0,Parametros[Alto]),Bloques[[#This Row],[Segmento]],OFFSET(Ref_Conteo,Parametros[Fila]-1,0,Parametros[Alto]),Bloques[[#This Row],[Bloque]],OFFSET(Ref_Conteo,Parametros[Fila]-1,-1,Parametros[Alto]),Bloques[[#This Row],[Grupo]])-1,0) -> 0
A151: Activos | B151: Activos Intangibles - Plusvalía o Good Will | C151: Deterioro acumulado de la plusvalía o Good Will | D151: =IF(Bloques[[#This Row],[Segmento]]=Parametros[Segmento],COUNTIFS(OFFSET(Ref_Segmento,Parametros[Fila]-1,0,Parametros[Alto]),Bloques[[#This Row],[Segmento]],OFFSET(Ref_Conteo,Parametros[Fila]-1,0,Parametros[Alto]),Bloques[[#This Row],[Bloque]],OFFSET(Ref_Conteo,Parametros[Fila]-1,-1,Parametros[Alto]),Bloques[[#This Row],[Grupo]])-1,0) -> 0
A152: Activos | B152: Propiedades de Inversión | C152: Terrenos - Al costo | D152: =IF(Bloques[[#This Row],[Segmento]]=Parametros[Segmento],COUNTIFS(OFFSET(Ref_Segmento,Parametros[Fila]-1,0,Parametros[Alto]),Bloques[[#This Row],[Segmento]],OFFSET(Ref_Conteo,Parametros[Fila]-1,0,Parametros[Alto]),Bloques[[#This Row],[Bloque]],OFFSET(Ref_Conteo,Parametros[Fila]-1,-1,Parametros[Alto]),Bloques[[#This Row],[Grupo]])-1,0) -> 0
A153: Activos | B153: Propiedades de Inversión | C153: Terrenos - Al valor razonable | D153: =IF(Bloques[[#This Row],[Segmento]]=Parametros[Segmento],COUNTIFS(OFFSET(Ref_Segmento,Parametros[Fila]-1,0,Parametros[Alto]),Bloques[[#This Row],[Segmento]],OFFSET(Ref_Conteo,Parametros[Fila]-1,0,Parametros[Alto]),Bloques[[#This Row],[Bloque]],OFFSET(Ref_Conteo,Parametros[Fila]-1,-1,Parametros[Alto]),Bloques[[#This Row],[Grupo]])-1,0) -> 0
A154: Activos | B154: Propiedades de Inversión | C154: Edificaciones - Al costo | D154: =IF(Bloques[[#This Row],[Segmento]]=Parametros[Segmento],COUNTIFS(OFFSET(Ref_Segmento,Parametros[Fila]-1,0,Parametros[Alto]),Bloques[[#This Row],[Segmento]],OFFSET(Ref_Conteo,Parametros[Fila]-1,0,Parametros[Alto]),Bloques[[#This Row],[Bloque]],OFFSET(Ref_Conteo,Parametros[Fila]-1,-1,Parametros[Alto]),Bloques[[#This Row],[Grupo]])-1,0) -> 0
A155: Activos | B155: Propiedades de Inversión | C155: Edificaciones - Al valor razonable | D155: =IF(Bloques[[#This Row],[Segmento]]=Parametros[Segmento],COUNTIFS(OFFSET(Ref_Segmento,Parametros[Fila]-1,0,Parametros[Alto]),Bloques[[#This Row],[Segmento]],OFFSET(Ref_Conteo,Parametros[Fila]-1,0,Parametros[Alto]),Bloques[[#This Row],[Bloque]],OFFSET(Ref_Conteo,Parametros[Fila]-1,-1,Parametros[Alto]),Bloques[[#This Row],[Grupo]])-1,0) -> 0
A156: Activos | B156: Activos Biológicos | C156: Animales productores medidos al costo | D156: =IF(Bloques[[#This Row],[Segmento]]=Parametros[Segmento],COUNTIFS(OFFSET(Ref_Segmento,Parametros[Fila]-1,0,Parametros[Alto]),Bloques[[#This Row],[Segmento]],OFFSET(Ref_Conteo,Parametros[Fila]-1,0,Parametros[Alto]),Bloques[[#This Row],[Bloque]],OFFSET(Ref_Conteo,Parametros[Fila]-1,-1,Parametros[Alto]),Bloques[[#This Row],[Grupo]])-1,0) -> 0
A157: Activos | B157: Activos Biológicos | C157: Animales productores medidos al valor razonable menos costos de venta | D157: =IF(Bloques[[#This Row],[Segmento]]=Parametros[Segmento],COUNTIFS(OFFSET(Ref_Segmento,Parametros[Fila]-1,0,Parametros[Alto]),Bloques[[#This Row],[Segmento]],OFFSET(Ref_Conteo,Parametros[Fila]-1,0,Parametros[Alto]),Bloques[[#This Row],[Bloque]],OFFSET(Ref_Conteo,Parametros[Fila]-1,-1,Parametros[Alto]),Bloques[[#This Row],[Grupo]])-1,0) -> 0
A158: Activos | B158: Activos Biológicos | C158: Animales consumibles medidos al costo | D158: =IF(Bloques[[#This Row],[Segmento]]=Parametros[Segmento],COUNTIFS(OFFSET(Ref_Segmento,Parametros[Fila]-1,0,Parametros[Alto]),Bloques[[#This Row],[Segmento]],OFFSET(Ref_Conteo,Parametros[Fila]-1,0,Parametros[Alto]),Bloques[[#This Row],[Bloque]],OFFSET(Ref_Conteo,Parametros[Fila]-1,-1,Parametros[Alto]),Bloques[[#This Row],[Grupo]])-1,0) -> 0
A159: Activos | B159: Activos Biológicos | C159: Animales consumibles medidos al valor razonable menos costos de venta | D159: =IF(Bloques[[#This Row],[Segmento]]=Parametros[Segmento],COUNTIFS(OFFSET(Ref_Segmento,Parametros[Fila]-1,0,Parametros[Alto]),Bloques[[#This Row],[Segmento]],OFFSET(Ref_Conteo,Parametros[Fila]-1,0,Parametros[Alto]),Bloques[[#This Row],[Bloque]],OFFSET(Ref_Conteo,Parametros[Fila]-1,-1,Parametros[Alto]),Bloques[[#This Row],[Grupo]])-1,0) -> 0
A160: Activos | B160: Activos Biológicos | C160: Plantas productoras medidas al costo | D160: =IF(Bloques[[#This Row],[Segmento]]=Parametros[Segmento],COUNTIFS(OFFSET(Ref_Segmento,Parametros[Fila]-1,0,Parametros[Alto]),Bloques[[#This Row],[Segmento]],OFFSET(Ref_Conteo,Parametros[Fila]-1,0,Parametros[Alto]),Bloques[[#This Row],[Bloque]],OFFSET(Ref_Conteo,Parametros[Fila]-1,-1,Parametros[Alto]),Bloques[[#This Row],[Grupo]])-1,0) -> 0
A161: Activos | B161: Activos Biológicos | C161: Plantas productoras medidas al valor razonable | D161: =IF(Bloques[[#This Row],[Segmento]]=Parametros[Segmento],COUNTIFS(OFFSET(Ref_Segmento,Parametros[Fila]-1,0,Parametros[Alto]),Bloques[[#This Row],[Segmento]],OFFSET(Ref_Conteo,Parametros[Fila]-1,0,Parametros[Alto]),Bloques[[#This Row],[Bloque]],OFFSET(Ref_Conteo,Parametros[Fila]-1,-1,Parametros[Alto]),Bloques[[#This Row],[Grupo]])-1,0) -> 0
A162: Activos | B162: Activos Biológicos | C162: Cultivos consumibles medidos al costo | D162: =IF(Bloques[[#This Row],[Segmento]]=Parametros[Segmento],COUNTIFS(OFFSET(Ref_Segmento,Parametros[Fila]-1,0,Parametros[Alto]),Bloques[[#This Row],[Segmento]],OFFSET(Ref_Conteo,Parametros[Fila]-1,0,Parametros[Alto]),Bloques[[#This Row],[Bloque]],OFFSET(Ref_Conteo,Parametros[Fila]-1,-1,Parametros[Alto]),Bloques[[#This Row],[Grupo]])-1,0) -> 0
A163: Activos | B163: Activos Biológicos | C163: Cultivos consumibles medidos al valor razonable menos costos de venta | D163: =IF(Bloques[[#This Row],[Segmento]]=Parametros[Segmento],COUNTIFS(OFFSET(Ref_Segmento,Parametros[Fila]-1,0,Parametros[Alto]),Bloques[[#This Row],[Segmento]],OFFSET(Ref_Conteo,Parametros[Fila]-1,0,Parametros[Alto]),Bloques[[#This Row],[Bloque]],OFFSET(Ref_Conteo,Parametros[Fila]-1,-1,Parametros[Alto]),Bloques[[#This Row],[Grupo]])-1,0) -> 0
A164: Activos | B164: Activos no corrientes mantenidos para la venta y/o para distribuir a propietarios | C164: Mantenidos para la venta | D164: =IF(Bloques[[#This Row],[Segmento]]=Parametros[Segmento],COUNTIFS(OFFSET(Ref_Segmento,Parametros[Fila]-1,0,Parametros[Alto]),Bloques[[#This Row],[Segmento]],OFFSET(Ref_Conteo,Parametros[Fila]-1,0,Parametros[Alto]),Bloques[[#This Row],[Bloque]],OFFSET(Ref_Conteo,Parametros[Fila]-1,-1,Parametros[Alto]),Bloques[[#This Row],[Grupo]])-1,0) -> 0
A165: Activos | B165: Activos no corrientes mantenidos para la venta y/o para distribuir a propietarios | C165: Mantenidos para distribuir a propietarios | D165: =IF(Bloques[[#This Row],[Segmento]]=Parametros[Segmento],COUNTIFS(OFFSET(Ref_Segmento,Parametros[Fila]-1,0,Parametros[Alto]),Bloques[[#This Row],[Segmento]],OFFSET(Ref_Conteo,Parametros[Fila]-1,0,Parametros[Alto]),Bloques[[#This Row],[Bloque]],OFFSET(Ref_Conteo,Parametros[Fila]-1,-1,Parametros[Alto]),Bloques[[#This Row],[Grupo]])-1,0) -> 0
A166: Activos | B166: Otros Activos | C166: Por plan de beneficios a empleados | D166: =IF(Bloques[[#This Row],[Segmento]]=Parametros[Segmento],COUNTIFS(OFFSET(Ref_Segmento,Parametros[Fila]-1,0,Parametros[Alto]),Bloques[[#This Row],[Segmento]],OFFSET(Ref_Conteo,Parametros[Fila]-1,0,Parametros[Alto]),Bloques[[#This Row],[Bloque]],OFFSET(Ref_Conteo,Parametros[Fila]-1,-1,Parametros[Alto]),Bloques[[#This Row],[Grupo]])-1,0) -> 0
A167: Activos | B167: Otros Activos | C167: Gastos pagados por anticipado | D167: =IF(Bloques[[#This Row],[Segmento]]=Parametros[Segmento],COUNTIFS(OFFSET(Ref_Segmento,Parametros[Fila]-1,0,Parametros[Alto]),Bloques[[#This Row],[Segmento]],OFFSET(Ref_Conteo,Parametros[Fila]-1,0,Parametros[Alto]),Bloques[[#This Row],[Bloque]],OFFSET(Ref_Conteo,Parametros[Fila]-1,-1,Parametros[Alto]),Bloques[[#This Row],[Grupo]])-1,0) -> 0 | G167: Publicidad ;Prima de seguros ;Arrendamientos ;Otros
A168: Activos | B168: Otros Activos | C168: Por impuestos corrientes | D168: =IF(Bloques[[#This Row],[Segmento]]=Parametros[Segmento],COUNTIFS(OFFSET(Ref_Segmento,Parametros[Fila]-1,0,Parametros[Alto]),Bloques[[#This Row],[Segmento]],OFFSET(Ref_Conteo,Parametros[Fila]-1,0,Parametros[Alto]),Bloques[[#This Row],[Bloque]],OFFSET(Ref_Conteo,Parametros[Fila]-1,-1,Parametros[Alto]),Bloques[[#This Row],[Grupo]])-1,0) -> 0 | G168: Saldo a favor impuesto de renta ;Saldo a favor otros impuestos y gravámenes ;Descuentos Tributarios;Anticipos y otros
A169: Activos | B169: Otros Activos | C169: Otros activos | D169: =IF(Bloques[[#This Row],[Segmento]]=Parametros[Segmento],COUNTIFS(OFFSET(Ref_Segmento,Parametros[Fila]-1,0,Parametros[Alto]),Bloques[[#This Row],[Segmento]],OFFSET(Ref_Conteo,Parametros[Fila]-1,0,Parametros[Alto]),Bloques[[#This Row],[Bloque]],OFFSET(Ref_Conteo,Parametros[Fila]-1,-1,Parametros[Alto]),Bloques[[#This Row],[Grupo]])-1,0) -> 0
A170: Activos | B170: Otros Activos | C170: Activos reconocidos solo para fines fiscales | D170: =IF(Bloques[[#This Row],[Segmento]]=Parametros[Segmento],COUNTIFS(OFFSET(Ref_Segmento,Parametros[Fila]-1,0,Parametros[Alto]),Bloques[[#This Row],[Segmento]],OFFSET(Ref_Conteo,Parametros[Fila]-1,0,Parametros[Alto]),Bloques[[#This Row],[Bloque]],OFFSET(Ref_Conteo,Parametros[Fila]-1,-1,Parametros[Alto]),Bloques[[#This Row],[Grupo]])-1,0) -> 0
A171: Pasivos | B171: Pasivos Financieros y Cuentas por Pagar | C171: Obligaciones financieras en moneda local | D171: =IF(Bloques[[#This Row],[Segmento]]=Parametros[Segmento],COUNTIFS(OFFSET(Ref_Segmento,Parametros[Fila]-1,0,Parametros[Alto]),Bloques[[#This Row],[Segmento]],OFFSET(Ref_Conteo,Parametros[Fila]-1,0,Parametros[Alto]),Bloques[[#This Row],[Bloque]],OFFSET(Ref_Conteo,Parametros[Fila]-1,-1,Parametros[Alto]),Bloques[[#This Row],[Grupo]])-1,0) -> 0
A172: Pasivos | B172: Pasivos Financieros y Cuentas por Pagar | C172: Obligaciones financieras en moneda extranjera | D172: =IF(Bloques[[#This Row],[Segmento]]=Parametros[Segmento],COUNTIFS(OFFSET(Ref_Segmento,Parametros[Fila]-1,0,Parametros[Alto]),Bloques[[#This Row],[Segmento]],OFFSET(Ref_Conteo,Parametros[Fila]-1,0,Parametros[Alto]),Bloques[[#This Row],[Bloque]],OFFSET(Ref_Conteo,Parametros[Fila]-1,-1,Parametros[Alto]),Bloques[[#This Row],[Grupo]])-1,0) -> 0
A173: Pasivos | B173: Pasivos Financieros y Cuentas por Pagar | C173: Depósitos y exigibilidades | D173: =IF(Bloques[[#This Row],[Segmento]]=Parametros[Segmento],COUNTIFS(OFFSET(Ref_Segmento,Parametros[Fila]-1,0,Parametros[Alto]),Bloques[[#This Row],[Segmento]],OFFSET(Ref_Conteo,Parametros[Fila]-1,0,Parametros[Alto]),Bloques[[#This Row],[Bloque]],OFFSET(Ref_Conteo,Parametros[Fila]-1,-1,Parametros[Alto]),Bloques[[#This Row],[Grupo]])-1,0) -> 0
A174: Pasivos | B174: Pasivos Financieros y Cuentas por Pagar | C174: Cuentas comerciales por pagar en moneda local | D174: =IF(Bloques[[#This Row],[Segmento]]=Parametros[Segmento],COUNTIFS(OFFSET(Ref_Segmento,Parametros[Fila]-1,0,Parametros[Alto]),Bloques[[#This Row],[Segmento]],OFFSET(Ref_Conteo,Parametros[Fila]-1,0,Parametros[Alto]),Bloques[[#This Row],[Bloque]],OFFSET(Ref_Conteo,Parametros[Fila]-1,-1,Parametros[Alto]),Bloques[[#This Row],[Grupo]])-1,0) -> 0
A175: Pasivos | B175: Pasivos Financieros y Cuentas por Pagar | C175: Cuentas comerciales por pagar en moneda extranjera | D175: =IF(Bloques[[#This Row],[Segmento]]=Parametros[Segmento],COUNTIFS(OFFSET(Ref_Segmento,Parametros[Fila]-1,0,Parametros[Alto]),Bloques[[#This Row],[Segmento]],OFFSET(Ref_Conteo,Parametros[Fila]-1,0,Parametros[Alto]),Bloques[[#This Row],[Bloque]],OFFSET(Ref_Conteo,Parametros[Fila]-1,-1,Parametros[Alto]),Bloques[[#This Row],[Grupo]])-1,0) -> 0
A176: Pasivos | B176: Pasivos Financieros y Cuentas por Pagar | C176: Dividendos y participaciones por pagar | D176: =IF(Bloques[[#This Row],[Segmento]]=Parametros[Segmento],COUNTIFS(OFFSET(Ref_Segmento,Parametros[Fila]-1,0,Parametros[Alto]),Bloques[[#This Row],[Segmento]],OFFSET(Ref_Conteo,Parametros[Fila]-1,0,Parametros[Alto]),Bloques[[#This Row],[Bloque]],OFFSET(Ref_Conteo,Parametros[Fila]-1,-1,Parametros[Alto]),Bloques[[#This Row],[Grupo]])-1,0) -> 0
A177: Pasivos | B177: Pasivos Financieros y Cuentas por Pagar | C177: Cuentas por pagar a socios, accionistas o partícipes | D177: =IF(Bloques[[#This Row],[Segmento]]=Parametros[Segmento],COUNTIFS(OFFSET(Ref_Segmento,Parametros[Fila]-1,0,Parametros[Alto]),Bloques[[#This Row],[Segmento]],OFFSET(Ref_Conteo,Parametros[Fila]-1,0,Parametros[Alto]),Bloques[[#This Row],[Bloque]],OFFSET(Ref_Conteo,Parametros[Fila]-1,-1,Parametros[Alto]),Bloques[[#This Row],[Grupo]])-1,0) -> 0
A178: Pasivos | B178: Pasivos Financieros y Cuentas por Pagar | C178: Cuentas y documentos por pagar a otras partes relacionadas y asociadas | D178: =IF(Bloques[[#This Row],[Segmento]]=Parametros[Segmento],COUNTIFS(OFFSET(Ref_Segmento,Parametros[Fila]-1,0,Parametros[Alto]),Bloques[[#This Row],[Segmento]],OFFSET(Ref_Conteo,Parametros[Fila]-1,0,Parametros[Alto]),Bloques[[#This Row],[Bloque]],OFFSET(Ref_Conteo,Parametros[Fila]-1,-1,Parametros[Alto]),Bloques[[#This Row],[Grupo]])-1,0) -> 0
A179: Pasivos | B179: Pasivos Financieros y Cuentas por Pagar | C179: Reserva matemática y/o técnica y otros pasivos exclusivos en compañías de seguros | D179: =IF(Bloques[[#This Row],[Segmento]]=Parametros[Segmento],COUNTIFS(OFFSET(Ref_Segmento,Parametros[Fila]-1,0,Parametros[Alto]),Bloques[[#This Row],[Segmento]],OFFSET(Ref_Conteo,Parametros[Fila]-1,0,Parametros[Alto]),Bloques[[#This Row],[Bloque]],OFFSET(Ref_Conteo,Parametros[Fila]-1,-1,Parametros[Alto]),Bloques[[#This Row],[Grupo]])-1,0) -> 0
A180: Pasivos | B180: Pasivos Financieros y Cuentas por Pagar | C180: Recaudo a favor de terceros | D180: =IF(Bloques[[#This Row],[Segmento]]=Parametros[Segmento],COUNTIFS(OFFSET(Ref_Segmento,Parametros[Fila]-1,0,Parametros[Alto]),Bloques[[#This Row],[Segmento]],OFFSET(Ref_Conteo,Parametros[Fila]-1,0,Parametros[Alto]),Bloques[[#This Row],[Bloque]],OFFSET(Ref_Conteo,Parametros[Fila]-1,-1,Parametros[Alto]),Bloques[[#This Row],[Grupo]])-1,0) -> 0
A181: Pasivos | B181: Pasivos Financieros y Cuentas por Pagar | C181: Otras cuentas y documentos por pagar en moneda local | D181: =IF(Bloques[[#This Row],[Segmento]]=Parametros[Segmento],COUNTIFS(OFFSET(Ref_Segmento,Parametros[Fila]-1,0,Parametros[Alto]),Bloques[[#This Row],[Segmento]],OFFSET(Ref_Conteo,Parametros[Fila]-1,0,Parametros[Alto]),Bloques[[#This Row],[Bloque]],OFFSET(Ref_Conteo,Parametros[Fila]-1,-1,Parametros[Alto]),Bloques[[#This Row],[Grupo]])-1,0) -> 0
A182: Pasivos | B182: Pasivos Financieros y Cuentas por Pagar | C182: Otras cuentas y documentos por pagar en moneda extranjera | D182: =IF(Bloques[[#This Row],[Segmento]]=Parametros[Segmento],COUNTIFS(OFFSET(Ref_Segmento,Parametros[Fila]-1,0,Parametros[Alto]),Bloques[[#This Row],[Segmento]],OFFSET(Ref_Conteo,Parametros[Fila]-1,0,Parametros[Alto]),Bloques[[#This Row],[Bloque]],OFFSET(Ref_Conteo,Parametros[Fila]-1,-1,Parametros[Alto]),Bloques[[#This Row],[Grupo]])-1,0) -> 0
A183: Pasivos | B183: Arrendamientos por pagar | C183: Financiero o leasing - partes no relacionadas | D183: =IF(Bloques[[#This Row],[Segmento]]=Parametros[Segmento],COUNTIFS(OFFSET(Ref_Segmento,Parametros[Fila]-1,0,Parametros[Alto]),Bloques[[#This Row],[Segmento]],OFFSET(Ref_Conteo,Parametros[Fila]-1,0,Parametros[Alto]),Bloques[[#This Row],[Bloque]],OFFSET(Ref_Conteo,Parametros[Fila]-1,-1,Parametros[Alto]),Bloques[[#This Row],[Grupo]])-1,0) -> 0
A184: Pasivos | B184: Arrendamientos por pagar | C184: Financiero o leasing - Partes relacionadas | D184: =IF(Bloques[[#This Row],[Segmento]]=Parametros[Segmento],COUNTIFS(OFFSET(Ref_Segmento,Parametros[Fila]-1,0,Parametros[Alto]),Bloques[[#This Row],[Segmento]],OFFSET(Ref_Conteo,Parametros[Fila]-1,0,Parametros[Alto]),Bloques[[#This Row],[Bloque]],OFFSET(Ref_Conteo,Parametros[Fila]-1,-1,Parametros[Alto]),Bloques[[#This Row],[Grupo]])-1,0) -> 0
A185: Pasivos | B185: Arrendamientos por pagar | C185: Operativo | D185: =IF(Bloques[[#This Row],[Segmento]]=Parametros[Segmento],COUNTIFS(OFFSET(Ref_Segmento,Parametros[Fila]-1,0,Parametros[Alto]),Bloques[[#This Row],[Segmento]],OFFSET(Ref_Conteo,Parametros[Fila]-1,0,Parametros[Alto]),Bloques[[#This Row],[Bloque]],OFFSET(Ref_Conteo,Parametros[Fila]-1,-1,Parametros[Alto]),Bloques[[#This Row],[Grupo]])-1,0) -> 0
A186: Pasivos | B186: Impuestos, Gravámenes y Tasas | C186: Impuesto de renta | D186: =IF(Bloques[[#This Row],[Segmento]]=Parametros[Segmento],COUNTIFS(OFFSET(Ref_Segmento,Parametros[Fila]-1,0,Parametros[Alto]),Bloques[[#This Row],[Segmento]],OFFSET(Ref_Conteo,Parametros[Fila]-1,0,Parametros[Alto]),Bloques[[#This Row],[Bloque]],OFFSET(Ref_Conteo,Parametros[Fila]-1,-1,Parametros[Alto]),Bloques[[#This Row],[Grupo]])-1,0) -> 0
A187: Pasivos | B187: Impuestos, Gravámenes y Tasas | C187: Impuesto a las ventas - IVA | D187: =IF(Bloques[[#This Row],[Segmento]]=Parametros[Segmento],COUNTIFS(OFFSET(Ref_Segmento,Parametros[Fila]-1,0,Parametros[Alto]),Bloques[[#This Row],[Segmento]],OFFSET(Ref_Conteo,Parametros[Fila]-1,0,Parametros[Alto]),Bloques[[#This Row],[Bloque]],OFFSET(Ref_Conteo,Parametros[Fila]-1,-1,Parametros[Alto]),Bloques[[#This Row],[Grupo]])-1,0) -> 0
A188: Pasivos | B188: Impuestos, Gravámenes y Tasas | C188: Otros impuestos, gravámenes y tasas por pagar | D188: =IF(Bloques[[#This Row],[Segmento]]=Parametros[Segmento],COUNTIFS(OFFSET(Ref_Segmento,Parametros[Fila]-1,0,Parametros[Alto]),Bloques[[#This Row],[Segmento]],OFFSET(Ref_Conteo,Parametros[Fila]-1,0,Parametros[Alto]),Bloques[[#This Row],[Bloque]],OFFSET(Ref_Conteo,Parametros[Fila]-1,-1,Parametros[Alto]),Bloques[[#This Row],[Grupo]])-1,0) -> 0
A189: Pasivos | B189: Otros pasivos financieros | C189: Bonos y documentos equivalentes | D189: =IF(Bloques[[#This Row],[Segmento]]=Parametros[Segmento],COUNTIFS(OFFSET(Ref_Segmento,Parametros[Fila]-1,0,Parametros[Alto]),Bloques[[#This Row],[Segmento]],OFFSET(Ref_Conteo,Parametros[Fila]-1,0,Parametros[Alto]),Bloques[[#This Row],[Bloque]],OFFSET(Ref_Conteo,Parametros[Fila]-1,-1,Parametros[Alto]),Bloques[[#This Row],[Grupo]])-1,0) -> 0
A190: Pasivos | B190: Otros pasivos financieros | C190: Instrumentos financieros derivados | D190: =IF(Bloques[[#This Row],[Segmento]]=Parametros[Segmento],COUNTIFS(OFFSET(Ref_Segmento,Parametros[Fila]-1,0,Parametros[Alto]),Bloques[[#This Row],[Segmento]],OFFSET(Ref_Conteo,Parametros[Fila]-1,0,Parametros[Alto]),Bloques[[#This Row],[Bloque]],OFFSET(Ref_Conteo,Parametros[Fila]-1,-1,Parametros[Alto]),Bloques[[#This Row],[Grupo]])-1,0) -> 0
A191: Pasivos | B191: Otros pasivos financieros | C191: Acciones preferenciales o aportes de capital clasificados como pasivos | D191: =IF(Bloques[[#This Row],[Segmento]]=Parametros[Segmento],COUNTIFS(OFFSET(Ref_Segmento,Parametros[Fila]-1,0,Parametros[Alto]),Bloques[[#This Row],[Segmento]],OFFSET(Ref_Conteo,Parametros[Fila]-1,0,Parametros[Alto]),Bloques[[#This Row],[Bloque]],OFFSET(Ref_Conteo,Parametros[Fila]-1,-1,Parametros[Alto]),Bloques[[#This Row],[Grupo]])-1,0) -> 0
A192: Pasivos | B192: Otros pasivos financieros | C192: Derechos fiduciarios | D192: =IF(Bloques[[#This Row],[Segmento]]=Parametros[Segmento],COUNTIFS(OFFSET(Ref_Segmento,Parametros[Fila]-1,0,Parametros[Alto]),Bloques[[#This Row],[Segmento]],OFFSET(Ref_Conteo,Parametros[Fila]-1,0,Parametros[Alto]),Bloques[[#This Row],[Bloque]],OFFSET(Ref_Conteo,Parametros[Fila]-1,-1,Parametros[Alto]),Bloques[[#This Row],[Grupo]])-1,0) -> 0
A193: Pasivos | B193: Otros pasivos financieros | C193: Otros pasivos financieros | D193: =IF(Bloques[[#This Row],[Segmento]]=Parametros[Segmento],COUNTIFS(OFFSET(Ref_Segmento,Parametros[Fila]-1,0,Parametros[Alto]),Bloques[[#This Row],[Segmento]],OFFSET(Ref_Conteo,Parametros[Fila]-1,0,Parametros[Alto]),Bloques[[#This Row],[Bloque]],OFFSET(Ref_Conteo,Parametros[Fila]-1,-1,Parametros[Alto]),Bloques[[#This Row],[Grupo]])-1,0) -> 0
A194: Pasivos | B194: Beneficios a empleados | C194: De corto plazo | D194: =IF(Bloques[[#This Row],[Segmento]]=Parametros[Segmento],COUNTIFS(OFFSET(Ref_Segmento,Parametros[Fila]-1,0,Parametros[Alto]),Bloques[[#This Row],[Segmento]],OFFSET(Ref_Conteo,Parametros[Fila]-1,0,Parametros[Alto]),Bloques[[#This Row],[Bloque]],OFFSET(Ref_Conteo,Parametros[Fila]-1,-1,Parametros[Alto]),Bloques[[#This Row],[Grupo]])-1,0) -> 0
A195: Pasivos | B195: Beneficios a empleados | C195: De largo plazo | D195: =IF(Bloques[[#This Row],[Segmento]]=Parametros[Segmento],COUNTIFS(OFFSET(Ref_Segmento,Parametros[Fila]-1,0,Parametros[Alto]),Bloques[[#This Row],[Segmento]],OFFSET(Ref_Conteo,Parametros[Fila]-1,0,Parametros[Alto]),Bloques[[#This Row],[Bloque]],OFFSET(Ref_Conteo,Parametros[Fila]-1,-1,Parametros[Alto]),Bloques[[#This Row],[Grupo]])-1,0) -> 0
A196: Pasivos | B196: Beneficios a empleados | C196: Por terminación de vínculo laboral o contractual | D196: =IF(Bloques[[#This Row],[Segmento]]=Parametros[Segmento],COUNTIFS(OFFSET(Ref_Segmento,Parametros[Fila]-1,0,Parametros[Alto]),Bloques[[#This Row],[Segmento]],OFFSET(Ref_Conteo,Parametros[Fila]-1,0,Parametros[Alto]),Bloques[[#This Row],[Bloque]],OFFSET(Ref_Conteo,Parametros[Fila]-1,-1,Parametros[Alto]),Bloques[[#This Row],[Grupo]])-1,0) -> 0
A197: Pasivos | B197: Beneficios a empleados | C197: Post empleo | D197: =IF(Bloques[[#This Row],[Segmento]]=Parametros[Segmento],COUNTIFS(OFFSET(Ref_Segmento,Parametros[Fila]-1,0,Parametros[Alto]),Bloques[[#This Row],[Segmento]],OFFSET(Ref_Conteo,Parametros[Fila]-1,0,Parametros[Alto]),Bloques[[#This Row],[Bloque]],OFFSET(Ref_Conteo,Parametros[Fila]-1,-1,Parametros[Alto]),Bloques[[#This Row],[Grupo]])-1,0) -> 0
A198: Pasivos | B198: Provisiones | C198: Procesos legales (litigios y demandas) | D198: =IF(Bloques[[#This Row],[Segmento]]=Parametros[Segmento],COUNTIFS(OFFSET(Ref_Segmento,Parametros[Fila]-1,0,Parametros[Alto]),Bloques[[#This Row],[Segmento]],OFFSET(Ref_Conteo,Parametros[Fila]-1,0,Parametros[Alto]),Bloques[[#This Row],[Bloque]],OFFSET(Ref_Conteo,Parametros[Fila]-1,-1,Parametros[Alto]),Bloques[[#This Row],[Grupo]])-1,0) -> 0
A199: Pasivos | B199: Provisiones | C199: Mantenimiento y reparaciones | D199: =IF(Bloques[[#This Row],[Segmento]]=Parametros[Segmento],COUNTIFS(OFFSET(Ref_Segmento,Parametros[Fila]-1,0,Parametros[Alto]),Bloques[[#This Row],[Segmento]],OFFSET(Ref_Conteo,Parametros[Fila]-1,0,Parametros[Alto]),Bloques[[#This Row],[Bloque]],OFFSET(Ref_Conteo,Parametros[Fila]-1,-1,Parametros[Alto]),Bloques[[#This Row],[Grupo]])-1,0) -> 0
A200: Pasivos | B200: Provisiones | C200: Obligaciones fiscales | D200: =IF(Bloques[[#This Row],[Segmento]]=Parametros[Segmento],COUNTIFS(OFFSET(Ref_Segmento,Parametros[Fila]-1,0,Parametros[Alto]),Bloques[[#This Row],[Segmento]],OFFSET(Ref_Conteo,Parametros[Fila]-1,0,Parametros[Alto]),Bloques[[#This Row],[Bloque]],OFFSET(Ref_Conteo,Parametros[Fila]-1,-1,Parametros[Alto]),Bloques[[#This Row],[Grupo]])-1,0) -> 0
A201: Pasivos | B201: Provisiones | C201: Desmantelamientos, restauración y rehabilitación | D201: =IF(Bloques[[#This Row],[Segmento]]=Parametros[Segmento],COUNTIFS(OFFSET(Ref_Segmento,Parametros[Fila]-1,0,Parametros[Alto]),Bloques[[#This Row],[Segmento]],OFFSET(Ref_Conteo,Parametros[Fila]-1,0,Parametros[Alto]),Bloques[[#This Row],[Bloque]],OFFSET(Ref_Conteo,Parametros[Fila]-1,-1,Parametros[Alto]),Bloques[[#This Row],[Grupo]])-1,0) -> 0
A202: Pasivos | B202: Provisiones | C202: Garantías | D202: =IF(Bloques[[#This Row],[Segmento]]=Parametros[Segmento],COUNTIFS(OFFSET(Ref_Segmento,Parametros[Fila]-1,0,Parametros[Alto]),Bloques[[#This Row],[Segmento]],OFFSET(Ref_Conteo,Parametros[Fila]-1,0,Parametros[Alto]),Bloques[[#This Row],[Bloque]],OFFSET(Ref_Conteo,Parametros[Fila]-1,-1,Parametros[Alto]),Bloques[[#This Row],[Grupo]])-1,0) -> 0
A203: Pasivos | B203: Provisiones | C203: Contratos onerosos | D203: =IF(Bloques[[#This Row],[Segmento]]=Parametros[Segmento],COUNTIFS(OFFSET(Ref_Segmento,Parametros[Fila]-1,0,Parametros[Alto]),Bloques[[#This Row],[Segmento]],OFFSET(Ref_Conteo,Parametros[Fila]-1,0,Parametros[Alto]),Bloques[[#This Row],[Bloque]],OFFSET(Ref_Conteo,Parametros[Fila]-1,-1,Parametros[Alto]),Bloques[[#This Row],[Grupo]])-1,0) -> 0
A204: Pasivos | B204: Provisiones | C204: Reembolsos a clientes | D204: =IF(Bloques[[#This Row],[Segmento]]=Parametros[Segmento],COUNTIFS(OFFSET(Ref_Segmento,Parametros[Fila]-1,0,Parametros[Alto]),Bloques[[#This Row],[Segmento]],OFFSET(Ref_Conteo,Parametros[Fila]-1,0,Parametros[Alto]),Bloques[[#This Row],[Bloque]],OFFSET(Ref_Conteo,Parametros[Fila]-1,-1,Parametros[Alto]),Bloques[[#This Row],[Grupo]])-1,0) -> 0
... 452 more rows

Sheet Listas (hidden)
B2: Sí | C2: Modalidad de pago 1 | D2: Temporaria | E2: Colombia | F2: Pago pendiente | G2: S | U2: 5800000
B3: No | C3: Modalidad de pago 2 | D3: Permanente | E3: Exterior | F3: Pago realizado | G3: N | U3: 159.7444089
B4: N/A
B5: Lista de países | E5: Lista de actividades económicas | J5: Códigos direcciones seccionales DIAN | T5: 0 | U5: 350 | V5: 1 | W5: =+IF(U3>T5,IF((U3<=U5),V5,0),0) -> 1
M6: Dígito de verificación | T6: 350 | U6: 410 | V6: 0.9 | W6: =+IF(U3>T6,IF((U3<=U6),V6,0),0) -> 0
B7: No Aplica | J7: Código | K7: Lugares Administrativos | M7: 0 | P7: Esta es la primera vez | T7: 410 | U7: 470 | V7: 0.8 | W7: =+IF(U3>T7,IF((U3<=U7),V7,0),0) -> 0
B8: Afganistán | I8: =+CONCATENATE(J8," - ",K8) -> 00 - Nivel Central | J8: 00 | K8: Nivel Central | M8: 1 | P8: Esta es la segunda vez | T8: 470 | U8: 530 | V8: 0.6 | W8: =+IF(U3>T8,IF((U3<=U8),V8,0),0) -> 0
B9: Albania | I9: 01 - Dirección Seccional de Impuestos y Aduanas de Armenia | J9: 01 | K9: Dirección Seccional de Impuestos y Aduanas de Armenia | M9: 2 | P9: Esta es la tercera vez o más | T9: 530 | U9: 590 | V9: 0.4 | W9: =+IF(U3>T9,IF((U3<=U9),V9,0),0) -> 0
B10: Alemania | I10: 02 - Dirección Seccional de Impuestos de Barranquilla | J10: 02 | K10: Dirección Seccional de Impuestos de Barranquilla | M10: 3 | T10: 590 | U10: 650 | V10: 0.2 | W10: =+IF(U3>T10,IF((U3<=U10),V10,0),0) -> 0
B11: Andorra | I11: 03 - Dirección Seccional de Aduanas de Bogotá – Aeropuerto El Dorado | J11: 03 | K11: Dirección Seccional de Aduanas de Bogotá – Aeropuerto El Dorado | M11: 4 | T11: 650 | V11: 0 | W11: =+IF(U3>T11,V11,0) -> 0
B12: Angola | D12: =+CONCATENATE(E12," - ",F12) -> 0111 - Cultivo de cereales (excepto arroz), legumbres y semillas oleaginosas | E12: 0111 | F12: Cultivo de cereales (excepto arroz), legumbres y semillas oleaginosas | I12: 04 - Dirección Seccional de Impuestos y Aduanas de Bucaramanga | J12: 04 | K12: Dirección Seccional de Impuestos y Aduanas de Bucaramanga | M12: 5
B13: Antigua y Barbuda | D13: 0112 - Cultivo de arroz | E13: 0112 | F13: Cultivo de arroz | I13: 05 - Dirección Seccional de Impuestos de Cali | J13: 05 | K13: Dirección Seccional de Impuestos de Cali | M13: 6
B14: Arabia Saudita | D14: 0113 - Cultivo de hortalizas, raíces y tubérculos | E14: 0113 | F14: Cultivo de hortalizas, raíces y tubérculos | I14: 06 - Dirección Seccional de Impuestos de Cartagena | J14: 06 | K14: Dirección Seccional de Impuestos de Cartagena | M14: 7 | P14: Opción 1
B15: Argelia | D15: 0114 - Cultivo de tabaco | E15: 0114 | F15: Cultivo de tabaco | I15: 07 - Dirección Seccional de Impuestos de Cúcuta | J15: 07 | K15: Dirección Seccional de Impuestos de Cúcuta | M15: 8 | P15: Opción 2
B16: Argentina | D16: 0115 - Cultivo de plantas textiles | E16: 0115 | F16: Cultivo de plantas textiles | I16: 08 - Dirección Seccional de Impuestos y Aduanas de Girardot | J16: 08 | K16: Dirección Seccional de Impuestos y Aduanas de Girardot | M16: 9
B17: Armenia | D17: 0119 - Otros cultivos transitorios n.c.p. | E17: 0119 | F17: Otros cultivos transitorios n.c.p. | I17: 09 - Dirección Seccional de Impuestos y Aduanas de Ibagué | J17: 09 | K17: Dirección Seccional de Impuestos y Aduanas de Ibagué | P17: Rentas - Honorarios
B18: Australia | D18: 0121 - Cultivo de frutas tropicales y subtropicales | E18: 0121 | F18: Cultivo de frutas tropicales y subtropicales | I18: 10 - Dirección Seccional de Impuestos y Aduanas de Manizales | J18: 10 | K18: Dirección Seccional de Impuestos y Aduanas de Manizales | M18: Utilidad en casa o apartamento de habitación | P18: Rentas de capital
B19: Austria | D19: 0122 - Cultivo de plátano y banano | E19: 0122 | F19: Cultivo de plátano y banano | I19: 11 - Dirección Seccional de Impuestos de Medellín | J19: 11 | K19: Dirección Seccional de Impuestos de Medellín | M19: 1986 | N19: 0.1 | P19: Rentas no laborales
B20: Azerbaiyán | D20: 0123 - Cultivo de café | E20: 0123 | F20: Cultivo de café | I20: 12 - Dirección Seccional de Impuestos y Aduanas de Montería | J20: 12 | K20: Dirección Seccional de Impuestos y Aduanas de Montería | M20: 1985 | N20: 0.2
B21: Bahamas | D21: 0124 - Cultivo de caña de azúcar | E21: 0124 | F21: Cultivo de caña de azúcar | I21: 13 - Dirección Seccional de Impuestos y Aduanas de Neiva | J21: 13 | K21: Dirección Seccional de Impuestos y Aduanas de Neiva | M21: 1984 | N21: 0.3
B22: Bangladés | D22: 0125 - Cultivo de flor de corte | E22: 0125 | F22: Cultivo de flor de corte | I22: 14 - Dirección Seccional de Impuestos y Aduanas de Pasto | J22: 14 | K22: Dirección Seccional de Impuestos y Aduanas de Pasto | M22: 1983 | N22: 0.4 | P22: Colombia
B23: Barbados | D23: 0126 - Cultivo de palma para aceite (palma africana) y otros frutos oleaginosos | E23: 0126 | F23: Cultivo de palma para aceite (palma africana) y otros frutos oleaginosos | I23: 15 - Dirección Seccional de Impuestos y Aduanas de Palmira | J23: 15 | K23: Dirección Seccional de Impuestos y Aduanas de Palmira | M23: 1982 | N23: 0.5 | P23: CAN
B24: Baréin | D24: 0127 - Cultivo de plantas con las que se preparan bebidas | E24: 0127 | F24: Cultivo de plantas con las que se preparan bebidas | I24: 16 - Dirección Seccional de Impuestos y Aduanas de Pereira | J24: 16 | K24: Dirección Seccional de Impuestos y Aduanas de Pereira | M24: 1981 | N24: 0.6 | P24: Otros países exterior
B25: Bélgica | D25: 0128 - Cultivo de especias y de plantas aromáticas y medicinales | E25: 0128 | F25: Cultivo de especias y de plantas aromáticas y medicinales | I25: 17 - Dirección Seccional de Impuestos y Aduanas de Popayán | J25: 17 | K25: Dirección Seccional de Impuestos y Aduanas de Popayán | M25: 1980 | N25: 0.7
B26: Belice | D26: 0129 - Otros cultivos permanentes n.c.p. | E26: 0129 | F26: Otros cultivos permanentes n.c.p. | I26: 18 - Dirección Seccional de Impuestos y Aduanas de Quibdó | J26: 18 | K26: Dirección Seccional de Impuestos y Aduanas de Quibdó | M26: 1979 | N26: 0.8
B27: Benín | D27: 0130 - Propagación de plantas (actividades de los viveros, excepto viveros forestales) | E27: 0130 | F27: Propagación de plantas (actividades de los viveros, excepto viveros forestales) | I27: 19 - Dirección Seccional de Impuestos y Aduanas de Santa Marta | J27: 19 | K27: Dirección Seccional de Impuestos y Aduanas de Santa Marta | M27: 1978 | N27: 0.9
B28: Bielorrusia | D28: 0141 - Cría de ganado bovino y bufalino | E28: 0141 | F28: Cría de ganado bovino y bufalino | I28: 20 - Dirección Seccional de Impuestos y Aduanas de Tunja | J28: 20 | K28: Dirección Seccional de Impuestos y Aduanas de Tunja | M28: 1977 | N28: 1
B29: Birmania | D29: 0142 - Cría de caballos y otros equinos | E29: 0142 | F29: Cría de caballos y otros equinos | I29: 21 - Dirección Seccional de Impuestos y Aduanas de Tuluá | J29: 21 | K29: Dirección Seccional de Impuestos y Aduanas de Tuluá
B30: Bolivia | D30: 0143 - Cría de ovejas y cabras | E30: 0143 | F30: Cría de ovejas y cabras | I30: 22 - Dirección Seccional de Impuestos y Aduanas de Villavicencio | J30: 22 | K30: Dirección Seccional de Impuestos y Aduanas de Villavicencio
B31: Bosnia-Herzegovina | D31: 0144 - Cría de ganado porcino | E31: 0144 | F31: Cría de ganado porcino | I31: 23 - Dirección Seccional de Impuestos y Aduanas de Sincelejo | J31: 23 | K31: Dirección Seccional de Impuestos y Aduanas de Sincelejo
B32: Botsuana | D32: 0145 - Cría de aves de corral | E32: 0145 | F32: Cría de aves de corral | I32: 24 - Dirección Seccional de Impuestos y Aduanas de Valledupar | J32: 24 | K32: Dirección Seccional de Impuestos y Aduanas de Valledupar
B33: Brasil | D33: 0149 - Cría de otros animales n.c.p. | E33: 0149 | F33: Cría de otros animales n.c.p. | I33: 25 - Dirección Seccional de Impuestos y Aduanas de Riohacha | J33: 25 | K33: Dirección Seccional de Impuestos y Aduanas de Riohacha
B34: Brunéi | D34: 0150 - Explotación mixta (agrícola y pecuaria) | E34: 0150 | F34: Explotación mixta (agrícola y pecuaria) | I34: 26 - Dirección Seccional de Impuestos y Aduanas de Sogamoso | J34: 26 | K34: Dirección Seccional de Impuestos y Aduanas de Sogamoso
B35: Bulgaria | D35: 0161 - Actividades de apoyo a la agricultura | E35: 0161 | F35: Actividades de apoyo a la agricultura | I35: 27 - Dirección Seccional de Impuestos y Aduanas de San Andrés | J35: 27 | K35: Dirección Seccional de Impuestos y Aduanas de San Andrés
B36: Burkina Faso | D36: 0162 - Actividades de apoyo a la ganadería | E36: 0162 | F36: Actividades de apoyo a la ganadería | I36: 28 - Dirección Seccional de Impuestos y Aduanas de Florencia | J36: 28 | K36: Dirección Seccional de Impuestos y Aduanas de Florencia
B37: Burundi | D37: 0163 - Actividades posteriores a la cosecha | E37: 0163 | F37: Actividades posteriores a la cosecha | I37: 29 - Dirección Seccional de Impuestos y Aduanas de Barrancabermeja | J37: 29 | K37: Dirección Seccional de Impuestos y Aduanas de Barrancabermeja
B38: Bután | D38: 0164 - Tratamiento de semillas para propagación | E38: 0164 | F38: Tratamiento de semillas para propagación | I38: 31 - Dirección Operativa de Grandes Contribuyentes | J38: 31 | K38: Dirección Operativa de Grandes Contribuyentes
B39: Cabo Verde | D39: 0170 - Caza ordinaria y mediante trampas y actividades de servicios conexas | E39: 0170 | F39: Caza ordinaria y mediante trampas y actividades de servicios conexas | I39: 32 - Dirección Seccional de Impuestos de Bogotá | J39: 32 | K39: Dirección Seccional de Impuestos de Bogotá
B40: Camboya | D40: 0210 - Silvicultura y otras actividades forestales | E40: 0210 | F40: Silvicultura y otras actividades forestales | I40: =+CONCATENATE(J40," - ",K40) -> 34 - Dirección Seccional de Impuestos y Aduanas de Arauca | J40: 34 | K40: Dirección Seccional de Impuestos y Aduanas de Arauca
B41: Camerún | D41: 0220 - Extracción de madera | E41: 0220 | F41: Extracción de madera | I41: 35 - Dirección Seccional de Impuestos y Aduanas de Buenaventura | J41: 35 | K41: Dirección Seccional de Impuestos y Aduanas de Buenaventura
B42: Canadá | D42: 0230 - Recolección de productos forestales diferentes a la madera | E42: 0230 | F42: Recolección de productos forestales diferentes a la madera | I42: 37 - Dirección Seccional de Impuestos y Aduanas de Ipiales | J42: 37 | K42: Dirección Seccional de Impuestos y Aduanas de Ipiales
B43: Catar | D43: 0240 - Servicios de apoyo a la silvicultura | E43: 0240 | F43: Servicios de apoyo a la silvicultura | I43: 38 - Dirección Seccional de Impuestos y Aduanas de Leticia | J43: 38 | K43: Dirección Seccional de Impuestos y Aduanas de Leticia
B44: Chad | D44: 0311 - Pesca marítima | E44: 0311 | F44: Pesca marítima | I44: 39 - Dirección Seccional de Impuestos y Aduanas de Maicao | J44: 39 | K44: Dirección Seccional de Impuestos y Aduanas de Maicao
B45: Chile | D45: 0312 - Pesca de agua dulce | E45: 0312 | F45: Pesca de agua dulce | I45: 40 - Dirección Seccional de Impuestos y Aduanas de Tumaco | J45: 40 | K45: Dirección Seccional de Impuestos y Aduanas de Tumaco
B46: China | D46: 0321 - Acuicultura marítima | E46: 0321 | F46: Acuicultura marítima | I46: 41 - Dirección Seccional de Impuestos y Aduanas de Urabá | J46: 41 | K46: Dirección Seccional de Impuestos y Aduanas de Urabá
B47: Chipre | D47: 0322 - Acuicultura de agua dulce | E47: 0322 | F47: Acuicultura de agua dulce | I47: 42 - Dirección Seccional Delegada de Impuestos y Aduanas de Puerto Carreño | J47: 42 | K47: Dirección Seccional Delegada de Impuestos y Aduanas de Puerto Carreño
B48: Colombia | D48: 0510 - Extracción de hulla (carbón de piedra) | E48: 0510 | F48: Extracción de hulla (carbón de piedra) | I48: 43 - Dirección Seccional Delegada de Impuestos y Aduanas de Puerto Inírida | J48: 43 | K48: Dirección Seccional Delegada de Impuestos y Aduanas de Puerto Inírida
B49: Comoras | D49: 0520 - Extracción de carbón lignito | E49: 0520 | F49: Extracción de carbón lignito | I49: 44 - Dirección Seccional de Impuestos y Aduanas de Yopal | J49: 44 | K49: Dirección Seccional de Impuestos y Aduanas de Yopal
B50: Congo | D50: 0610 - Extracción de petróleo crudo | E50: 0610 | F50: Extracción de petróleo crudo | I50: 45 - Dirección Seccional Delegada de Impuestos y Aduanas Mitú | J50: 45 | K50: Dirección Seccional Delegada de Impuestos y Aduanas Mitú
B51: Corea del Norte | D51: 0620 - Extracción de gas natural | E51: 0620 | F51: Extracción de gas natural | I51: 46 - Dirección Seccional de Impuestos y Aduanas de Puerto Asís | J51: 46 | K51: Dirección Seccional de Impuestos y Aduanas de Puerto Asís
B52: Corea del Sur | D52: 0710 - Extracción de minerales de hierro | E52: 0710 | F52: Extracción de minerales de hierro | I52: 48 - Dirección Seccional de Aduanas de Cartagena | J52: 48 | K52: Dirección Seccional de Aduanas de Cartagena
B53: Costa de Marfil | D53: 0721 - Extracción de minerales de uranio y de torio | E53: 0721 | F53: Extracción de minerales de uranio y de torio | I53: 78 - Dirección Seccional Delegada de Impuestos y Aduanas de San José de Guaviare | J53: 78 | K53: Dirección Seccional Delegada de Impuestos y Aduanas de San José de Guaviare
B54: Costa Rica | D54: 0722 - Extracción de oro y otros metales preciosos | E54: 0722 | F54: Extracción de oro y otros metales preciosos | I54: 86 - Dirección Seccional Delegada de Impuestos y Aduanas de Pamplona | J54: 86 | K54: Dirección Seccional Delegada de Impuestos y Aduanas de Pamplona
B55: Croacia | D55: 0723 - Extracción de minerales de níquel | E55: 0723 | F55: Extracción de minerales de níquel | I55: 87 - Dirección Seccional de Aduanas de Barranquilla | J55: 87 | K55: Dirección Seccional de Aduanas de Barranquilla
B56: Cuba | D56: 0729 - Extracción de otros minerales metalíferos no ferrosos n.c.p. | E56: 0729 | F56: Extracción de otros minerales metalíferos no ferrosos n.c.p. | I56: 88 - Dirección Seccional de Aduanas de Cali | J56: 88 | K56: Dirección Seccional de Aduanas de Cali
B57: Dinamarca | D57: 0811 - Extracción de piedra, arena, arcillas comunes, yeso y anhidrita | E57: 0811 | F57: Extracción de piedra, arena, arcillas comunes, yeso y anhidrita | I57: 89 - Dirección Seccional de Aduanas de Cúcuta | J57: 89 | K57: Dirección Seccional de Aduanas de Cúcuta
B58: Dominica | D58: 0812 - Extracción de arcillas de uso industrial, caliza, caolín y bentonitas | E58: 0812 | F58: Extracción de arcillas de uso industrial, caliza, caolín y bentonitas | I58: 90 - Dirección Seccional de Aduanas de Medellín | J58: 90 | K58: Dirección Seccional de Aduanas de Medellín
B59: Ecuador | D59: 0820 - Extracción de esmeraldas, piedras preciosas y semipreciosas | E59: 0820 | F59: Extracción de esmeraldas, piedras preciosas y semipreciosas | I59: 91 - Dirección Seccional de Aduanas de Bogotá | J59: 91 | K59: Dirección Seccional de Aduanas de Bogotá
B60: Egipto | D60: 0891 - Extracción de minerales para la fabricación de abonos y productos químicos | E60: 0891 | F60: Extracción de minerales para la fabricación de abonos y productos químicos
B61: El Salvador | D61: 0892 - Extracción de halita (sal) | E61: 0892 | F61: Extracción de halita (sal)
B62: Emiratos Árabes Unidos | D62: 0899 - Extracción de otros minerales no metálicos n.c.p. | E62: 0899 | F62: Extracción de otros minerales no metálicos n.c.p.
B63: Eritrea | D63: 0910 - Actividades de apoyo para la extracción de petróleo y de gas natural | E63: 0910 | F63: Actividades de apoyo para la extracción de petróleo y de gas natural
B64: Eslovaquia | D64: 0990 - Actividades de apoyo para otras actividades de explotación de minas y canteras | E64: 0990 | F64: Actividades de apoyo para otras actividades de explotación de minas y canteras
B65: Eslovenia | D65: 1011 - Procesamiento y conservación de carne y productos cárnicos | E65: 1011 | F65: Procesamiento y conservación de carne y productos cárnicos
B66: España | D66: 1012 - Procesamiento y conservación de pescados, crustáceos y moluscos | E66: 1012 | F66: Procesamiento y conservación de pescados, crustáceos y moluscos
B67: Estados Unidos | D67: 1020 - Procesamiento y conservación de frutas, legumbres, hortalizas y tubérculos | E67: 1020 | F67: Procesamiento y conservación de frutas, legumbres, hortalizas y tubérculos
B68: Estonia | D68: 1031 - Extracción de aceites de origen vegetal crudos | E68: 1031 | F68: Extracción de aceites de origen vegetal crudos
B69: Esuatini | D69: 1032 - Elaboración de aceites y grasas de origen vegetal refinados | E69: 1032 | F69: Elaboración de aceites y grasas de origen vegetal refinados
B70: Etiopía | D70: 1033 - Elaboración de aceites y grasas de origen animal | E70: 1033 | F70: Elaboración de aceites y grasas de origen animal
B71: Filipinas | D71: 1040 - Elaboración de productos lácteos | E71: 1040 | F71: Elaboración de productos lácteos
B72: Finlandia | D72: 1051 - Elaboración de productos de molinería | E72: 1051 | F72: Elaboración de productos de molinería
B73: Fiyi | D73: 1052 - Elaboración de almidones y productos derivados del almidón | E73: 1052 | F73: Elaboración de almidones y productos derivados del almidón
B74: Francia | D74: 1061 - Trilla de café | E74: 1061 | F74: Trilla de café
B75: Gabón | D75: 1062 - Descafeinado, tostión y molienda del café | E75: 1062 | F75: Descafeinado, tostión y molienda del café
B76: Gambia | D76: 1063 - Otros derivados del café | E76: 1063 | F76: Otros derivados del café
B77: Georgia | D77: 1071 - Elaboración y refinación de azúcar | E77: 1071 | F77: Elaboración y refinación de azúcar
B78: Ghana | D78: =+CONCATENATE(E78," - ",F78) -> 1072 - Elaboración de panela | E78: 1072 | F78: Elaboración de panela
B79: Granada | D79: 1081 - Elaboración de productos de panadería | E79: 1081 | F79: Elaboración de productos de panadería
B80: Grecia | D80: 1082 - Elaboración de cacao, chocolate y productos de confitería | E80: 1082 | F80: Elaboración de cacao, chocolate y productos de confitería
B81: Guatemala | D81: 1083 - Elaboración de macarrones, fideos, alcuzcuz y productos farináceos similares | E81: 1083 | F81: Elaboración de macarrones, fideos, alcuzcuz y productos farináceos similares
B82: Guinea | D82: 1084 - Elaboración de comidas y platos preparados | E82: 1084 | F82: Elaboración de comidas y platos preparados
B83: Guinea Ecuatorial | D83: 1089 - Elaboración de otros productos alimenticios n.c.p. | E83: 1089 | F83: Elaboración de otros productos alimenticios n.c.p.
B84: Guinea-Bisáu | D84: 1090 - Elaboración de alimentos preparados para animales | E84: 1090 | F84: Elaboración de alimentos preparados para animales
B85: Guyana | D85: 1101 - Destilación, rectificación y mezcla de bebidas alcohólicas | E85: 1101 | F85: Destilación, rectificación y mezcla de bebidas alcohólicas
B86: Haití | D86: 1102 - Elaboración de bebidas fermentadas no destiladas | E86: 1102 | F86: Elaboración de bebidas fermentadas no destiladas
B87: Honduras | D87: 1103 - Producción de malta, elaboración de cervezas y otras bebidas malteadas | E87: 1103 | F87: Producción de malta, elaboración de cervezas y otras bebidas malteadas
B88: Hungría | D88: 1104 - Elaboración de bebidas no alcohólicas, producción de aguas minerales y otras aguas embotelladas | E88: 1104 | F88: Elaboración de bebidas no alcohólicas, producción de aguas minerales y otras aguas embotelladas
B89: India | D89: 1200 - Elaboración de productos de tabaco | E89: 1200 | F89: Elaboración de productos de tabaco
B90: Indonesia | D90: 1311 - Preparación e hilatura de fibras textiles | E90: 1311 | F90: Preparación e hilatura de fibras textiles
B91: Irak | D91: 1312 - Tejeduría de productos textiles | E91: 1312 | F91: Tejeduría de productos textiles
B92: Irán | D92: 1313 - Acabado de productos textiles | E92: 1313 | F92: Acabado de productos textiles
B93: Irlanda | D93: 1391 - Fabricación de tejidos de punto y ganchillo | E93: 1391 | F93: Fabricación de tejidos de punto y ganchillo
B94: Islandia | D94: 1392 - Confección de artículos con materiales textiles, excepto prendas de vestir | E94: 1392 | F94: Confección de artículos con materiales textiles, excepto prendas de vestir
B95: Islas Marshall | D95: 1393 - Fabricación de tapetes y alfombras para pisos | E95: 1393 | F95: Fabricación de tapetes y alfombras para pisos
B96: Islas Salomón | D96: 1394 - Fabricación de cuerdas, cordeles, cables, bramantes y redes | E96: 1394 | F96: Fabricación de cuerdas, cordeles, cables, bramantes y redes
B97: Israel | D97: 1399 - Fabricación de otros artículos textiles n.c.p. | E97: 1399 | F97: Fabricación de otros artículos textiles n.c.p.
B98: Italia | D98: 1410 - Confección de prendas de vestir, excepto prendas de piel | E98: 1410 | F98: Confección de prendas de vestir, excepto prendas de piel
B99: Jamaica | D99: 1420 - Fabricación de artículos de piel | E99: 1420 | F99: Fabricación de artículos de piel
B100: Japón | D100: 1430 - Fabricación de artículos de punto y ganchillo | E100: 1430 | F100: Fabricación de artículos de punto y ganchillo
B101: Jordania | D101: 1511 - Curtido y recurtido de cueros; recurtido y teñido de pieles | E101: 1511 | F101: Curtido y recurtido de cueros; recurtido y teñido de pieles
B102: Kazajistán | D102: 1512 - Fabricación de artículos de viaje, bolsos de mano y artículos similares elaborados en cuero, y fabricación de artículos de talabartería y guarnicionería | E102: 1512 | F102: Fabricación de artículos de viaje, bolsos de mano y artículos similares elaborados en cuero, y fabricación de artículos de talabartería y guarnicionería
B103: Kenia | D103: 1513 - Fabricación de artículos de viaje, bolsos de mano y artículos similares; artículos de talabartería y guarnicionería elaborados en otros materiales | E103: 1513 | F103: Fabricación de artículos de viaje, bolsos de mano y artículos similares; artículos de talabartería y guarnicionería elaborados en otros materiales
B104: Kirguistán | D104: 1521 - Fabricación de calzado de cuero y piel, con cualquier tipo de suela | E104: 1521 | F104: Fabricación de calzado de cuero y piel, con cualquier tipo de suela
B105: Kiribati | D105: 1522 - Fabricación de otros tipos de calzado, excepto calzado de cuero y piel | E105: 1522 | F105: Fabricación de otros tipos de calzado, excepto calzado de cuero y piel
B106: Kosovo | D106: 1523 - Fabricación de partes del calzado | E106: 1523 | F106: Fabricación de partes del calzado
B107: Kuwait | D107: 1610 - Aserrado, acepillado e impregnación de la madera | E107: 1610 | F107: Aserrado, acepillado e impregnación de la madera
B108: Laos | D108: 1620 - Fabricación de hojas de madera para enchapado; fabricación de tableros contrachapados, tableros laminados, tableros de partículas y otros tableros y paneles | E108: 1620 | F108: Fabricación de hojas de madera para enchapado; fabricación de tableros contrachapados, tableros laminados, tableros de partículas y otros tableros y paneles
B109: Lesoto | D109: 1630 - Fabricación de partes y piezas de madera, de carpintería y ebanistería para la construcción | E109: 1630 | F109: Fabricación de partes y piezas de madera, de carpintería y ebanistería para la construcción
B110: Letonia | D110: 1640 - Fabricación de recipientes de madera | E110: 1640 | F110: Fabricación de recipientes de madera
B111: Líbano | D111: 1690 - Fabricación de otros productos de madera; fabricación de artículos de corcho, cestería y espartería | E111: 1690 | F111: Fabricación de otros productos de madera; fabricación de artículos de corcho, cestería y espartería
B112: Liberia | D112: 1701 - Fabricación de pulpas (pastas) celulósicas; papel y cartón | E112: 1701 | F112: Fabricación de pulpas (pastas) celulósicas; papel y cartón
B113: Libia | D113: 1702 - Fabricación de papel y cartón ondulado (corrugado); fabricación de envases, empaques y de embalajes de papel y cartón | E113: 1702 | F113: Fabricación de papel y cartón ondulado (corrugado); fabricación de envases, empaques y de embalajes de papel y cartón
B114: Liechtenstein | D114: 1709 - Fabricación de otros artículos de papel y cartón | E114: 1709 | F114: Fabricación de otros artículos de papel y cartón
B115: Lituania | D115: 1811 - Actividades de impresión | E115: 1811 | F115: Actividades de impresión
B116: Luxemburgo | D116: 1812 - Actividades de servicios relacionados con la impresión | E116: 1812 | F116: Actividades de servicios relacionados con la impresión
B117: Macedonia del Norte | D117: 1820 - Producción de copias a partir de grabaciones originales | E117: 1820 | F117: Producción de copias a partir de grabaciones originales
B118: Madagascar | D118: 1910 - Fabricación de productos de hornos de coque | E118: 1910 | F118: Fabricación de productos de hornos de coque
B119: Malasia | D119: 1921 - Fabricación de productos de la refinación del petróleo | E119: 1921 | F119: Fabricación de productos de la refinación del petróleo
B120: Malaui | D120: 1922 - Actividad de mezcla de combustibles | E120: 1922 | F120: Actividad de mezcla de combustibles
B121: Maldivas | D121: 2011 - Fabricación de sustancias y productos químicos básicos | E121: 2011 | F121: Fabricación de sustancias y productos químicos básicos
B122: Malí | D122: 2012 - Fabricación de abonos y compuestos inorgánicos nitrogenados | E122: 2012 | F122: Fabricación de abonos y compuestos inorgánicos nitrogenados
B123: Malta | D123: 2013 - Fabricación de plásticos en formas primarias | E123: 2013 | F123: Fabricación de plásticos en formas primarias
B124: Marruecos | D124: 2014 - Fabricación de caucho sintético en formas primarias | E124: 2014 | F124: Fabricación de caucho sintético en formas primarias
B125: Mauricio | D125: 2021 - Fabricación de plaguicidas y otros productos químicos de uso agropecuario | E125: 2021 | F125: Fabricación de plaguicidas y otros productos químicos de uso agropecuario
B126: Mauritania | D126: 2022 - Fabricación de pinturas, barnices y revestimientos similares, tintas para impresión y masillas | E126: 2022 | F126: Fabricación de pinturas, barnices y revestimientos similares, tintas para impresión y masillas
B127: México | D127: 2023 - Fabricación de jabones y detergentes, preparados para limpiar y pulir; perfumes y preparados de tocador | E127: 2023 | F127: Fabricación de jabones y detergentes, preparados para limpiar y pulir; perfumes y preparados de tocador
B128: Micronesia | D128: 2029 - Fabricación de otros productos químicos n.c.p. | E128: 2029 | F128: Fabricación de otros productos químicos n.c.p.
B129: Moldavia | D129: 2030 - Fabricación de fibras sintéticas y artificiales | E129: 2030 | F129: Fabricación de fibras sintéticas y artificiales
B130: Mónaco | D130: 2100 - Fabricación de productos farmacéuticos, sustancias químicas medicinales y productos botánicos de uso farmacéutico | E130: 2100 | F130: Fabricación de productos farmacéuticos, sustancias químicas medicinales y productos botánicos de uso farmacéutico
B131: Mongolia | D131: 2211 - Fabricación de llantas y neumáticos de caucho | E131: 2211 | F131: Fabricación de llantas y neumáticos de caucho
B132: Montenegro | D132: 2212 - Reencauche de llantas usadas | E132: 2212 | F132: Reencauche de llantas usadas
B133: Mozambique | D133: 2219 - Fabricación de formas básicas de caucho y otros productos de caucho n.c.p. | E133: 2219 | F133: Fabricación de formas básicas de caucho y otros productos de caucho n.c.p.
B134: Namibia | D134: 2221 - Fabricación de formas básicas de plástico | E134: 2221 | F134: Fabricación de formas básicas de plástico
B135: Nauru | D135: 2229 - Fabricación de artículos de plástico n.c.p. | E135: 2229 | F135: Fabricación de artículos de plástico n.c.p.
B136: Nepal | D136: 2310 - Fabricación de vidrio y productos de vidrio | E136: 2310 | F136: Fabricación de vidrio y productos de vidrio
B137: Nicaragua | D137: 2391 - Fabricación de productos refractarios | E137: 2391 | F137: Fabricación de productos refractarios
B138: Níger | D138: 2392 - Fabricación de materiales de arcilla para la construcción | E138: 2392 | F138: Fabricación de materiales de arcilla para la construcción
B139: Nigeria | D139: 2393 - Fabricación de otros productos de cerámica y porcelana | E139: 2393 | F139: Fabricación de otros productos de cerámica y porcelana
B140: Noruega | D140: 2394 - Fabricación de cemento, cal y yeso | E140: 2394 | F140: Fabricación de cemento, cal y yeso
B141: Nueva Zelanda | D141: 2395 - Fabricación de artículos de hormigón, cemento y yeso | E141: 2395 | F141: Fabricación de artículos de hormigón, cemento y yeso
B142: Omán | D142: =+CONCATENATE(E142," - ",F142) -> 2396 - Corte, tallado y acabado de la piedra | E142: 2396 | F142: Corte, tallado y acabado de la piedra
B143: Países Bajos | D143: 2399 - Fabricación de otros productos minerales no metálicos n.c.p. | E143: 2399 | F143: Fabricación de otros productos minerales no metálicos n.c.p.
B144: Pakistán | D144: 2410 - Industrias básicas de hierro y de acero | E144: 2410 | F144: Industrias básicas de hierro y de acero
B145: Palaos | D145: 2421 - Industrias básicas de metales preciosos | E145: 2421 | F145: Industrias básicas de metales preciosos
B146: Palestina | D146: 2429 - Industrias básicas de otros metales no ferrosos | E146: 2429 | F146: Industrias básicas de otros metales no ferrosos
B147: Panamá | D147: 2431 - Fundición de hierro y de acero | E147: 2431 | F147: Fundición de hierro y de acero
B148: Papúa Nueva Guinea | D148: 2432 - Fundición de metales no ferrosos | E148: 2432 | F148: Fundición de metales no ferrosos
B149: Paraguay | D149: 2511 - Fabricación de productos metálicos para uso estructural | E149: 2511 | F149: Fabricación de productos metálicos para uso estructural
B150: Perú | D150: 2512 - Fabricación de tanques, depósitos y recipientes de metal, excepto los utilizados para el envase o el transporte de mercancías | E150: 2512 | F150: Fabricación de tanques, depósitos y recipientes de metal, excepto los utilizados para el envase o el transporte de mercancías
B151: Polonia | D151: 2513 - Fabricación de generadores de vapor, excepto calderas de agua caliente para calefacción central | E151: 2513 | F151: Fabricación de generadores de vapor, excepto calderas de agua caliente para calefacción central
B152: Portugal | D152: 2520 - Fabricación de armas y municiones | E152: 2520 | F152: Fabricación de armas y municiones
B153: Reino Unido | D153: 2591 - Forja, prensado, estampado y laminado de metal; pulvimetalurgia | E153: 2591 | F153: Forja, prensado, estampado y laminado de metal; pulvimetalurgia
B154: República Centroafricana | D154: 2592 - Tratamiento y revestimiento de metales; mecanizado | E154: 2592 | F154: Tratamiento y revestimiento de metales; mecanizado
B155: República Checa | D155: 2593 - Fabricación de artículos de cuchillería, herramientas de mano y artículos de ferretería | E155: 2593 | F155: Fabricación de artículos de cuchillería, herramientas de mano y artículos de ferretería
B156: República Democrática del Congo | D156: 2599 - Fabricación de otros productos elaborados de metal n.c.p. | E156: 2599 | F156: Fabricación de otros productos elaborados de metal n.c.p.
B157: República Dominicana | D157: 2610 - Fabricación de componentes y tableros electrónicos | E157: 2610 | F157: Fabricación de componentes y tableros electrónicos
B158: Ruanda | D158: 2620 - Fabricación de computadoras y de equipo periférico | E158: 2620 | F158: Fabricación de computadoras y de equipo periférico
B159: Rumania | D159: 2630 - Fabricación de equipos de comunicación | E159: 2630 | F159: Fabricación de equipos de comunicación
B160: Rusia | D160: 2640 - Fabricación de aparatos electrónicos de consumo | E160: 2640 | F160: Fabricación de aparatos electrónicos de consumo
B161: Samoa | D161: 2651 - Fabricación de equipo de medición, prueba, navegación y control | E161: 2651 | F161: Fabricación de equipo de medición, prueba, navegación y control
B162: San Cristóbal y Nieves | D162: 2652 - Fabricación de relojes | E162: 2652 | F162: Fabricación de relojes
B163: San Marino | D163: 2660 - Fabricación de equipo de irradiación y equipo electrónico de uso médico y terapéutico | E163: 2660 | F163: Fabricación de equipo de irradiación y equipo electrónico de uso médico y terapéutico
B164: San Vicente y las Granadinas | D164: 2670 - Fabricación de instrumentos ópticos y equipo fotográfico | E164: 2670 | F164: Fabricación de instrumentos ópticos y equipo fotográfico
B165: Santa Lucía | D165: 2680 - Fabricación de medios magnéticos y ópticos para almacenamiento de datos | E165: 2680 | F165: Fabricación de medios magnéticos y ópticos para almacenamiento de datos
B166: Santo Tomé y Príncipe | D166: 2711 - Fabricación de motores, generadores y transformadores eléctricos | E166: 2711 | F166: Fabricación de motores, generadores y transformadores eléctricos
B167: Senegal | D167: 2712 - Fabricación de aparatos de distribución y control de la energía eléctrica | E167: 2712 | F167: Fabricación de aparatos de distribución y control de la energía eléctrica
B168: Serbia | D168: 2720 - Fabricación de pilas, baterías y acumuladores eléctricos | E168: 2720 | F168: Fabricación de pilas, baterías y acumuladores eléctricos
B169: Seychelles | D169: 2731 - Fabricación de hilos y cables eléctricos y de fibra óptica | E169: 2731 | F169: Fabricación de hilos y cables eléctricos y de fibra óptica
B170: Sierra Leona | D170: 2732 - Fabricación de dispositivos de cableado | E170: 2732 | F170: Fabricación de dispositivos de cableado
B171: Singapur | D171: 2740 - Fabricación de equipos eléctricos de iluminación | E171: 2740 | F171: Fabricación de equipos eléctricos de iluminación
B172: Siria | D172: 2750 - Fabricación de aparatos de uso doméstico | E172: 2750 | F172: Fabricación de aparatos de uso doméstico
B173: Somalia | D173: 2790 - Fabricación de otros tipos de equipo eléctrico n.c.p. | E173: 2790 | F173: Fabricación de otros tipos de equipo eléctrico n.c.p.
B174: Sri Lanka | D174: 2811 - Fabricación de motores, turbinas, y partes para motores de combustión interna | E174: 2811 | F174: Fabricación de motores, turbinas, y partes para motores de combustión interna
B175: Sudáfrica | D175: 2812 - Fabricación de equipos de potencia hidráulica y neumática | E175: 2812 | F175: Fabricación de equipos de potencia hidráulica y neumática
B176: Sudán | D176: 2813 - Fabricación de otras bombas, compresores, grifos y válvulas | E176: 2813 | F176: Fabricación de otras bombas, compresores, grifos y válvulas
B177: Sudán del Sur | D177: 2814 - Fabricación de cojinetes, engranajes, trenes de engranajes y piezas de transmisión | E177: 2814 | F177: Fabricación de cojinetes, engranajes, trenes de engranajes y piezas de transmisión
B178: Suecia | D178: 2815 - Fabricación de hornos, hogares y quemadores industriales | E178: 2815 | F178: Fabricación de hornos, hogares y quemadores industriales
B179: Suiza | D179: 2816 - Fabricación de equipo de elevación y manipulación | E179: 2816 | F179: Fabricación de equipo de elevación y manipulación
B180: Surinam | D180: 2817 - Fabricación de maquinaria y equipo de oficina (excepto computadoras y equipo periférico) | E180: 2817 | F180: Fabricación de maquinaria y equipo de oficina (excepto computadoras y equipo periférico)
B181: Tailandia | D181: 2818 - Fabricación de herramientas manuales con motor | E181: 2818 | F181: Fabricación de herramientas manuales con motor
B182: Taiwán | D182: 2819 - Fabricación de otros tipos de maquinaria y equipo de uso general n.c.p. | E182: 2819 | F182: Fabricación de otros tipos de maquinaria y equipo de uso general n.c.p.
B183: Tanzania | D183: 2821 - Fabricación de maquinaria agropecuaria y forestal | E183: 2821 | F183: Fabricación de maquinaria agropecuaria y forestal
B184: Tayikistán | D184: 2822 - Fabricación de máquinas formadoras de metal y de máquinas herramienta | E184: 2822 | F184: Fabricación de máquinas formadoras de metal y de máquinas herramienta
B185: Timor Oriental | D185: 2823 - Fabricación de maquinaria para la metalurgia | E185: 2823 | F185: Fabricación de maquinaria para la metalurgia
B186: Togo | D186: 2824 - Fabricación de maquinaria para explotación de minas y canteras y para obras de construcción | E186: 2824 | F186: Fabricación de maquinaria para explotación de minas y canteras y para obras de construcción
B187: Tonga | D187: 2825 - Fabricación de maquinaria para la elaboración de alimentos, bebidas y tabaco | E187: 2825 | F187: Fabricación de maquinaria para la elaboración de alimentos, bebidas y tabaco
B188: Trinidad y Tobago | D188: 2826 - Fabricación de maquinaria para la elaboración de productos textiles, prendas de vestir y cueros | E188: 2826 | F188: Fabricación de maquinaria para la elaboración de productos textiles, prendas de vestir y cueros
B189: Túnez | D189: 2829 - Fabricación de otros tipos de maquinaria y equipo de uso especial n.c.p. | E189: 2829 | F189: Fabricación de otros tipos de maquinaria y equipo de uso especial n.c.p.
B190: Turkmenistán | D190: 2910 - Fabricación de vehículos automotores y sus motores | E190: 2910 | F190: Fabricación de vehículos automotores y sus motores
B191: Turquía | D191: 2920 - Fabricación de carrocerías para vehículos automotores; fabricación de remolques y semirremolques | E191: 2920 | F191: Fabricación de carrocerías para vehículos automotores; fabricación de remolques y semirremolques
B192: Tuvalu | D192: 2930 - Fabricación de partes, piezas (autopartes) y accesorios (lujos) para vehículos automotores | E192: 2930 | F192: Fabricación de partes, piezas (autopartes) y accesorios (lujos) para vehículos automotores
B193: Ucrania | D193: 3011 - Construcción de barcos y de estructuras flotantes | E193: 3011 | F193: Construcción de barcos y de estructuras flotantes
B194: Uganda | D194: 3012 - Construcción de embarcaciones de recreo y deporte | E194: 3012 | F194: Construcción de embarcaciones de recreo y deporte
B195: Uruguay | D195: 3020 - Fabricación de locomotoras y de material rodante para ferrocarriles | E195: 3020 | F195: Fabricación de locomotoras y de material rodante para ferrocarriles
B196: Uzbekistán | D196: 3030 - Fabricación de aeronaves, naves espaciales y de maquinaria conexa | E196: 3030 | F196: Fabricación de aeronaves, naves espaciales y de maquinaria conexa
B197: Vanuatu | D197: 3040 - Fabricación de vehículos militares de combate | E197: 3040 | F197: Fabricación de vehículos militares de combate
B198: Vaticano | D198: 3091 - Fabricación de motocicletas | E198: 3091 | F198: Fabricación de motocicletas
B199: Venezuela | D199: 3092 - Fabricación de bicicletas y de sillas de ruedas para personas con discapacidad | E199: 3092 | F199: Fabricación de bicicletas y de sillas de ruedas para personas con discapacidad
B200: Vietnam | D200: 3099 - Fabricación de otros tipos de equipo de transporte n.c.p. | E200: 3099 | F200: Fabricación de otros tipos de equipo de transporte n.c.p.
B201: Yemen | D201: 3110 - Fabricación de muebles | E201: 3110 | F201: Fabricación de muebles
... 317 more rows

Sheet Campos_Ingreso_Datos (hidden)
A1: SEGMENTO | B1: Vinculo | C1: Rango | D1: Formato | E1: Lista | F1: Lista2 | G1: Restablacer | H1: Formula | I1: Bloque
A2: Intereses presuntivos | B2: =' '!$G$58 -> 0 | C2: =Formula_Local(Campos_Ingreso_Datos[[#This Row],[Vinculo]]) -> =' '!$G$58 | D2: #,##0
A3: Intereses presuntivos | B3: =' '!$G$59 -> 0 | C3: =Formula_Local(Campos_Ingreso_Datos[[#This Row],[Vinculo]]) -> =' '!$G$59 | D3: #,##0
A4: Intereses presuntivos | B4: =' '!$G$60 -> 0 | C4: =Formula_Local(Campos_Ingreso_Datos[[#This Row],[Vinculo]]) -> =' '!$G$60 | D4: #,##0
A5: Intereses presuntivos | B5: =' '!$G$61 -> 0 | C5: =Formula_Local(Campos_Ingreso_Datos[[#This Row],[Vinculo]]) -> =' '!$G$61 | D5: #,##0
A6: Intereses presuntivos | B6: =' '!$G$62 -> 0 | C6: =Formula_Local(Campos_Ingreso_Datos[[#This Row],[Vinculo]]) -> =' '!$G$62 | D6: #,##0
A7: Intereses presuntivos | B7: =' '!$G$63 -> 0 | C7: =Formula_Local(Campos_Ingreso_Datos[[#This Row],[Vinculo]]) -> =' '!$G$63 | D7: #,##0
A8: Intereses presuntivos | B8: =' '!$G$64 -> 0 | C8: =Formula_Local(Campos_Ingreso_Datos[[#This Row],[Vinculo]]) -> =' '!$G$64 | D8: #,##0
A9: Intereses presuntivos | B9: =' '!$G$65 -> 0 | C9: =Formula_Local(Campos_Ingreso_Datos[[#This Row],[Vinculo]]) -> =' '!$G$65 | D9: #,##0
A10: Intereses presuntivos | B10: =' '!$G$66 -> 0 | C10: =Formula_Local(Campos_Ingreso_Datos[[#This Row],[Vinculo]]) -> =' '!$G$66 | D10: #,##0
A11: Intereses presuntivos | B11: =' '!$G$67 -> 0 | C11: =Formula_Local(Campos_Ingreso_Datos[[#This Row],[Vinculo]]) -> =' '!$G$67 | D11: #,##0
A12: Intereses presuntivos | B12: =' '!$G$68 -> 0 | C12: =Formula_Local(Campos_Ingreso_Datos[[#This Row],[Vinculo]]) -> =' '!$G$68 | D12: #,##0
A13: Intereses presuntivos | B13: =' '!$G$69 -> 0 | C13: =Formula_Local(Campos_Ingreso_Datos[[#This Row],[Vinculo]]) -> =' '!$G$69 | D13: #,##0
A14: Subcapitalización | B14: =' '!$G$99 -> 0 | C14: =Formula_Local(Campos_Ingreso_Datos[[#This Row],[Vinculo]]) -> =' '!$G$99 | D14: #,##0
A15: Subcapitalización | B15: =' '!$G$100 -> 0 | C15: =Formula_Local(Campos_Ingreso_Datos[[#This Row],[Vinculo]]) -> =' '!$G$100 | D15: #,##0
A16: Subcapitalización | B16: =' '!$G$101 -> 0 | C16: =Formula_Local(Campos_Ingreso_Datos[[#This Row],[Vinculo]]) -> =' '!$G$101 | D16: #,##0
A17: Subcapitalización | B17: =' '!$G$102 -> 0 | C17: =Formula_Local(Campos_Ingreso_Datos[[#This Row],[Vinculo]]) -> =' '!$G$102 | D17: #,##0
A18: Subcapitalización | B18: =' '!$G$103 -> 0 | C18: =Formula_Local(Campos_Ingreso_Datos[[#This Row],[Vinculo]]) -> =' '!$G$103 | D18: #,##0
A19: Subcapitalización | B19: =' '!$G$104 -> 0 | C19: =Formula_Local(Campos_Ingreso_Datos[[#This Row],[Vinculo]]) -> =' '!$G$104 | D19: #,##0
A20: Subcapitalización | B20: =' '!$G$105 -> 0 | C20: =Formula_Local(Campos_Ingreso_Datos[[#This Row],[Vinculo]]) -> =' '!$G$105 | D20: #,##0
A21: Subcapitalización | B21: =' '!$G$106 -> 0 | C21: =Formula_Local(Campos_Ingreso_Datos[[#This Row],[Vinculo]]) -> =' '!$G$106 | D21: #,##0
A22: Subcapitalización | B22: =' '!$G$107 -> 0 | C22: =Formula_Local(Campos_Ingreso_Datos[[#This Row],[Vinculo]]) -> =' '!$G$107 | D22: #,##0
A23: Subcapitalización | B23: =' '!$G$108 -> 0 | C23: =Formula_Local(Campos_Ingreso_Datos[[#This Row],[Vinculo]]) -> =' '!$G$108 | D23: #,##0
A24: Subcapitalización | B24: =' '!$G$109 -> 0 | C24: =Formula_Local(Campos_Ingreso_Datos[[#This Row],[Vinculo]]) -> =' '!$G$109 | D24: #,##0
A25: Subcapitalización | B25: =' '!$G$110 -> 0 | C25: =Formula_Local(Campos_Ingreso_Datos[[#This Row],[Vinculo]]) -> =' '!$G$110 | D25: #,##0
A26: Tarifas de Impuestos | B26: =' '!$D$232 -> 0 | C26: =Formula_Local(Campos_Ingreso_Datos[[#This Row],[Vinculo]]) -> =' '!$D$232 | D26: 0.0%
A27: Datos básicos contribuyente | B27: =' '!$D$237 -> 0 | C27: =Formula_Local(Campos_Ingreso_Datos[[#This Row],[Vinculo]]) -> =' '!$D$237 | D27: General
A28: Datos básicos contribuyente | B28: =' '!$D$238 -> 0 | C28: =Formula_Local(Campos_Ingreso_Datos[[#This Row],[Vinculo]]) -> =' '!$D$238 | D28: #,##0
A29: Datos básicos contribuyente | B29: =' '!$D$242 -> 0 | C29: =Formula_Local(Campos_Ingreso_Datos[[#This Row],[Vinculo]]) -> =' '!$D$242 | D29: General | E29: =Lista_CIIU
A30: Datos básicos contribuyente | B30: =' '!$D$243 -> 0 | C30: =Formula_Local(Campos_Ingreso_Datos[[#This Row],[Vinculo]]) -> =' '!$D$243 | D30: General | E30: =Lista_Seccionales_DIAN
A31: Datos básicos contribuyente | B31: =' '!$D$244 -> 0 | C31: =Formula_Local(Campos_Ingreso_Datos[[#This Row],[Vinculo]]) -> =' '!$D$244 | D31: General | E31: =Listas!$B$2:$B$3
A32: Datos básicos contribuyente | B32: =' '!$D$245 -> 0 | C32: =Formula_Local(Campos_Ingreso_Datos[[#This Row],[Vinculo]]) -> =' '!$D$245 | D32: General | E32: =Lista_Tipo_Empresas
A33: Datos básicos contribuyente | B33: =' '!$D$247 -> 0 | C33: =Formula_Local(Campos_Ingreso_Datos[[#This Row],[Vinculo]]) -> =' '!$D$247 | D33: General | E33: =Listas!$B$2:$B$3
A34: Datos básicos contribuyente | B34: =' '!$D$248 -> 0 | C34: =Formula_Local(Campos_Ingreso_Datos[[#This Row],[Vinculo]]) -> =' '!$D$248 | D34: General | E34: =Listas!$P$7:$P$9
A35: Datos básicos contribuyente | B35: =' '!$D$252 -> 0 | C35: =Formula_Local(Campos_Ingreso_Datos[[#This Row],[Vinculo]]) -> =' '!$D$252 | D35: [$$-240A] #,##0
A36: Datos básicos contribuyente | B36: =' '!$D$253 -> 0 | C36: =Formula_Local(Campos_Ingreso_Datos[[#This Row],[Vinculo]]) -> =' '!$D$253 | D36: [$$-240A] #,##0
A37: Datos básicos contribuyente | B37: =' '!$D$254 -> 0 | C37: =Formula_Local(Campos_Ingreso_Datos[[#This Row],[Vinculo]]) -> =' '!$D$254 | D37: [$$-240A] #,##0
A38: Datos básicos contribuyente | B38: =' '!$D$255 -> 0 | C38: =Formula_Local(Campos_Ingreso_Datos[[#This Row],[Vinculo]]) -> =' '!$D$255 | D38: [$$-240A] #,##0
A39: Datos básicos contribuyente | B39: =' '!$D$256 -> 0 | C39: =Formula_Local(Campos_Ingreso_Datos[[#This Row],[Vinculo]]) -> =' '!$D$256 | D39: [$$-240A] #,##0
A40: Datos básicos contribuyente | B40: =' '!$D$257 -> 0 | C40: =Formula_Local(Campos_Ingreso_Datos[[#This Row],[Vinculo]]) -> =' '!$D$257 | D40: [$$-240A] #,##0
A41: Datos básicos contribuyente | B41: =' '!$D$258 -> 0 | C41: =Formula_Local(Campos_Ingreso_Datos[[#This Row],[Vinculo]]) -> =' '!$D$258 | D41: [$$-240A] #,##0
A42: Datos básicos contribuyente | B42: =' '!$D$259 -> 0 | C42: =Formula_Local(Campos_Ingreso_Datos[[#This Row],[Vinculo]]) -> =' '!$D$259 | D42: General | E42: =Listas!$B$2:$B$3
A43: Datos básicos contribuyente | B43: =' '!$D$260 -> 0 | C43: =Formula_Local(Campos_Ingreso_Datos[[#This Row],[Vinculo]]) -> =' '!$D$260 | D43: [$$-240A] #,##0
A44: Datos básicos contribuyente | B44: =' '!$D$261 -> 0 | C44: =Formula_Local(Campos_Ingreso_Datos[[#This Row],[Vinculo]]) -> =' '!$D$261 | D44: General | E44: =Listas!$B$2:$B$3
A45: Datos básicos contribuyente | B45: =' '!$D$262 -> 0 | C45: =Formula_Local(Campos_Ingreso_Datos[[#This Row],[Vinculo]]) -> =' '!$D$262 | D45: [$$-240A] #,##0
A46: Datos básicos contribuyente | B46: =' '!$D$266 -> 0 | C46: =Formula_Local(Campos_Ingreso_Datos[[#This Row],[Vinculo]]) -> =' '!$D$266 | D46: General | E46: =Listas!$B$2:$B$3
A47: Datos básicos contribuyente | B47: =' '!$D$267 -> 0 | C47: =Formula_Local(Campos_Ingreso_Datos[[#This Row],[Vinculo]]) -> =' '!$D$267 | D47: [$$-240A] #,##0
A48: Datos básicos contribuyente | B48: =' '!$D$268 -> 0 | C48: =Formula_Local(Campos_Ingreso_Datos[[#This Row],[Vinculo]]) -> =' '!$D$268 | D48: General | E48: =Listas!$C$2:$C$3
A49: Datos básicos contribuyente | B49: =' '!$D$269 -> 0 | C49: =Formula_Local(Campos_Ingreso_Datos[[#This Row],[Vinculo]]) -> =' '!$D$269 | D49: [$$-240A] #,##0
A50: Datos básicos contribuyente | B50: =' '!$D$270 -> 0 | C50: =Formula_Local(Campos_Ingreso_Datos[[#This Row],[Vinculo]]) -> =' '!$D$270 | D50: [$$-240A] #,##0
A51: Datos básicos contribuyente | B51: =' '!$D$271 -> 0 | C51: =Formula_Local(Campos_Ingreso_Datos[[#This Row],[Vinculo]]) -> =' '!$D$271 | D51: General | E51: =Listas!$B$2:$B$3
A52: Datos básicos contribuyente | B52: =' '!$D$272 -> 0 | C52: =Formula_Local(Campos_Ingreso_Datos[[#This Row],[Vinculo]]) -> =' '!$D$272 | D52: [$$-240A] #,##0
A53: Datos básicos contribuyente | B53: =' '!$D$273 -> 0 | C53: =Formula_Local(Campos_Ingreso_Datos[[#This Row],[Vinculo]]) -> =' '!$D$273 | D53: General | E53: =Listas!$B$2:$B$3
A54: Datos básicos contribuyente | B54: =' '!$D$274 -> 0 | C54: =Formula_Local(Campos_Ingreso_Datos[[#This Row],[Vinculo]]) -> =' '!$D$274 | D54: [$$-240A] #,##0
A55: Datos básicos contribuyente | B55: =' '!$D$275 -> 0 | C55: =Formula_Local(Campos_Ingreso_Datos[[#This Row],[Vinculo]]) -> =' '!$D$275 | D55: General | E55: =Listas!$B$2:$B$3
A56: Datos básicos contribuyente | B56: =' '!$D$276 -> 0 | C56: =Formula_Local(Campos_Ingreso_Datos[[#This Row],[Vinculo]]) -> =' '!$D$276 | D56: [$$-240A] #,##0
A57: Datos básicos contribuyente | B57: =' '!$D$277 -> 0 | C57: =Formula_Local(Campos_Ingreso_Datos[[#This Row],[Vinculo]]) -> =' '!$D$277 | D57: General | E57: =Listas!$B$2:$B$3
A58: Datos básicos contribuyente | B58: =' '!$D$278 -> 0 | C58: =Formula_Local(Campos_Ingreso_Datos[[#This Row],[Vinculo]]) -> =' '!$D$278 | D58: [$$-240A] #,##0
A59: Datos básicos contribuyente | B59: =' '!$D$279 -> 0 | C59: =Formula_Local(Campos_Ingreso_Datos[[#This Row],[Vinculo]]) -> =' '!$D$279 | D59: #,##0 | E59: =Listas!$B$2:$B$3
A60: Datos básicos contribuyente | B60: =' '!$D$285 -> 00:00:00 | C60: =Formula_Local(Campos_Ingreso_Datos[[#This Row],[Vinculo]]) -> =' '!$D$285 | D60: dd/mm/yyyy | E60: 2024-01-01 | F60: 2100-12-31
A61: Datos básicos contribuyente | B61: =' '!$D$288 -> 0 | C61: =Formula_Local(Campos_Ingreso_Datos[[#This Row],[Vinculo]]) -> =' '!$D$288 | D61: General | E61: =Listas!$B$2:$B$3
A62: Datos básicos contribuyente | B62: =' '!$D$295 -> 00:00:00 | C62: =Formula_Local(Campos_Ingreso_Datos[[#This Row],[Vinculo]]) -> =' '!$D$295 | D62: dd/mm/yyyy | E62: 2024-01-01 | F62: 2100-12-31
A63: Datos básicos contribuyente | B63: =' '!$D$298 -> 0 | C63: =Formula_Local(Campos_Ingreso_Datos[[#This Row],[Vinculo]]) -> =' '!$D$298 | D63: General | E63: =Listas!$B$2:$B$3
A64: Activos | B64: =' '!$C$323 -> 0 | C64: =Formula_Local(Campos_Ingreso_Datos[[#This Row],[Vinculo]]) -> =' '!$C$323 | D64: [$$-240A] #,##0
A65: Activos | B65: =' '!$E$323 -> 0 | C65: =Formula_Local(Campos_Ingreso_Datos[[#This Row],[Vinculo]]) -> =' '!$E$323 | D65: [$$-240A] #,##0
A66: Activos | B66: =' '!$F$323 -> 0 | C66: =Formula_Local(Campos_Ingreso_Datos[[#This Row],[Vinculo]]) -> =' '!$F$323 | D66: [$$-240A] #,##0
A67: Activos | B67: =' '!$C$333 -> 0 | C67: =Formula_Local(Campos_Ingreso_Datos[[#This Row],[Vinculo]]) -> =' '!$C$333 | D67: [$$-240A] #,##0
A68: Activos | B68: =' '!$E$333 -> 0 | C68: =Formula_Local(Campos_Ingreso_Datos[[#This Row],[Vinculo]]) -> =' '!$E$333 | D68: [$$-240A] #,##0
A69: Activos | B69: =' '!$F$333 -> 0 | C69: =Formula_Local(Campos_Ingreso_Datos[[#This Row],[Vinculo]]) -> =' '!$F$333 | D69: [$$-240A] #,##0
A70: Activos | B70: =' '!$C$337 -> 0 | C70: =Formula_Local(Campos_Ingreso_Datos[[#This Row],[Vinculo]]) -> =' '!$C$337 | D70: [$$-240A] #,##0
A71: Activos | B71: =' '!$E$337 -> 0 | C71: =Formula_Local(Campos_Ingreso_Datos[[#This Row],[Vinculo]]) -> =' '!$E$337 | D71: [$$-240A] #,##0
A72: Activos | B72: =' '!$F$337 -> 0 | C72: =Formula_Local(Campos_Ingreso_Datos[[#This Row],[Vinculo]]) -> =' '!$F$337 | D72: [$$-240A] #,##0
A73: Activos | B73: =' '!$C$341 -> 0 | C73: =Formula_Local(Campos_Ingreso_Datos[[#This Row],[Vinculo]]) -> =' '!$C$341 | D73: [$$-240A] #,##0
A74: Activos | B74: =' '!$E$341 -> 0 | C74: =Formula_Local(Campos_Ingreso_Datos[[#This Row],[Vinculo]]) -> =' '!$E$341 | D74: [$$-240A] #,##0
A75: Activos | B75: =' '!$F$341 -> 0 | C75: =Formula_Local(Campos_Ingreso_Datos[[#This Row],[Vinculo]]) -> =' '!$F$341 | D75: [$$-240A] #,##0
A76: Activos | B76: =' '!$C$345 -> 0 | C76: =Formula_Local(Campos_Ingreso_Datos[[#This Row],[Vinculo]]) -> =' '!$C$345 | D76: [$$-240A] #,##0
A77: Activos | B77: =' '!$E$345 -> 0 | C77: =Formula_Local(Campos_Ingreso_Datos[[#This Row],[Vinculo]]) -> =' '!$E$345 | D77: [$$-240A] #,##0
A78: Activos | B78: =' '!$F$345 -> 0 | C78: =Formula_Local(Campos_Ingreso_Datos[[#This Row],[Vinculo]]) -> =' '!$F$345 | D78: [$$-240A] #,##0
A79: Activos | B79: =' '!$C$361 -> 0 | C79: =Formula_Local(Campos_Ingreso_Datos[[#This Row],[Vinculo]]) -> =' '!$C$361 | D79: [$$-240A] #,##0
A80: Activos | B80: =' '!$E$361 -> 0 | C80: =Formula_Local(Campos_Ingreso_Datos[[#This Row],[Vinculo]]) -> =' '!$E$361 | D80: [$$-240A] #,##0
A81: Activos | B81: =' '!$F$361 -> 0 | C81: =Formula_Local(Campos_Ingreso_Datos[[#This Row],[Vinculo]]) -> =' '!$F$361 | D81: [$$-240A] #,##0
A82: Activos | B82: =' '!$C$365 -> 0 | C82: =Formula_Local(Campos_Ingreso_Datos[[#This Row],[Vinculo]]) -> =' '!$C$365 | D82: [$$-240A] #,##0
A83: Activos | B83: =' '!$E$365 -> 0 | C83: =Formula_Local(Campos_Ingreso_Datos[[#This Row],[Vinculo]]) -> =' '!$E$365 | D83: [$$-240A] #,##0
A84: Activos | B84: =' '!$F$365 -> 0 | C84: =Formula_Local(Campos_Ingreso_Datos[[#This Row],[Vinculo]]) -> =' '!$F$365 | D84: [$$-240A] #,##0
A85: Activos | B85: =' '!$C$374 -> 0 | C85: =Formula_Local(Campos_Ingreso_Datos[[#This Row],[Vinculo]]) -> =' '!$C$374 | D85: [$$-240A] #,##0
A86: Activos | B86: =' '!$E$374 -> 0 | C86: =Formula_Local(Campos_Ingreso_Datos[[#This Row],[Vinculo]]) -> =' '!$E$374 | D86: [$$-240A] #,##0
A87: Activos | B87: =' '!$F$374 -> 0 | C87: =Formula_Local(Campos_Ingreso_Datos[[#This Row],[Vinculo]]) -> =' '!$F$374 | D87: [$$-240A] #,##0
A88: Activos | B88: =' '!$C$378 -> 0 | C88: =Formula_Local(Campos_Ingreso_Datos[[#This Row],[Vinculo]]) -> =' '!$C$378 | D88: [$$-240A] #,##0
A89: Activos | B89: =' '!$E$378 -> 0 | C89: =Formula_Local(Campos_Ingreso_Datos[[#This Row],[Vinculo]]) -> =' '!$E$378 | D89: [$$-240A] #,##0
A90: Activos | B90: =' '!$F$378 -> 0 | C90: =Formula_Local(Campos_Ingreso_Datos[[#This Row],[Vinculo]]) -> =' '!$F$378 | D90: [$$-240A] #,##0
A91: Activos | B91: =' '!$C$382 -> 0 | C91: =Formula_Local(Campos_Ingreso_Datos[[#This Row],[Vinculo]]) -> =' '!$C$382 | D91: [$$-240A] #,##0
A92: Activos | B92: =' '!$E$382 -> 0 | C92: =Formula_Local(Campos_Ingreso_Datos[[#This Row],[Vinculo]]) -> =' '!$E$382 | D92: [$$-240A] #,##0
A93: Activos | B93: =' '!$F$382 -> 0 | C93: =Formula_Local(Campos_Ingreso_Datos[[#This Row],[Vinculo]]) -> =' '!$F$382 | D93: [$$-240A] #,##0
A94: Activos | B94: =' '!$C$386 -> 0 | C94: =Formula_Local(Campos_Ingreso_Datos[[#This Row],[Vinculo]]) -> =' '!$C$386 | D94: [$$-240A] #,##0
A95: Activos | B95: =' '!$E$386 -> 0 | C95: =Formula_Local(Campos_Ingreso_Datos[[#This Row],[Vinculo]]) -> =' '!$E$386 | D95: [$$-240A] #,##0
A96: Activos | B96: =' '!$F$386 -> 0 | C96: =Formula_Local(Campos_Ingreso_Datos[[#This Row],[Vinculo]]) -> =' '!$F$386 | D96: [$$-240A] #,##0
A97: Activos | B97: =' '!$C$390 -> 0 | C97: =Formula_Local(Campos_Ingreso_Datos[[#This Row],[Vinculo]]) -> =' '!$C$390 | D97: [$$-240A] #,##0
A98: Activos | B98: =' '!$E$390 -> 0 | C98: =Formula_Local(Campos_Ingreso_Datos[[#This Row],[Vinculo]]) -> =' '!$E$390 | D98: [$$-240A] #,##0
A99: Activos | B99: =' '!$F$390 -> 0 | C99: =Formula_Local(Campos_Ingreso_Datos[[#This Row],[Vinculo]]) -> =' '!$F$390 | D99: [$$-240A] #,##0
A100: Activos | B100: =' '!$C$394 -> 0 | C100: =Formula_Local(Campos_Ingreso_Datos[[#This Row],[Vinculo]]) -> =' '!$C$394 | D100: [$$-240A] #,##0
A101: Activos | B101: =' '!$E$394 -> 0 | C101: =Formula_Local(Campos_Ingreso_Datos[[#This Row],[Vinculo]]) -> =' '!$E$394 | D101: [$$-240A] #,##0
A102: Activos | B102: =' '!$F$394 -> 0 | C102: =Formula_Local(Campos_Ingreso_Datos[[#This Row],[Vinculo]]) -> =' '!$F$394 | D102: [$$-240A] #,##0
A103: Activos | B103: =' '!$C$398 -> 0 | C103: =Formula_Local(Campos_Ingreso_Datos[[#This Row],[Vinculo]]) -> =' '!$C$398 | D103: [$$-240A] #,##0
A104: Activos | B104: =' '!$E$398 -> 0 | C104: =Formula_Local(Campos_Ingreso_Datos[[#This Row],[Vinculo]]) -> =' '!$E$398 | D104: [$$-240A] #,##0
A105: Activos | B105: =' '!$F$398 -> 0 | C105: =Formula_Local(Campos_Ingreso_Datos[[#This Row],[Vinculo]]) -> =' '!$F$398 | D105: [$$-240A] #,##0
A106: Activos | B106: =' '!$C$414 -> 0 | C106: =Formula_Local(Campos_Ingreso_Datos[[#This Row],[Vinculo]]) -> =' '!$C$414 | D106: [$$-240A] #,##0
A107: Activos | B107: =' '!$E$414 -> 0 | C107: =Formula_Local(Campos_Ingreso_Datos[[#This Row],[Vinculo]]) -> =' '!$E$414 | D107: [$$-240A] #,##0
A108: Activos | B108: =' '!$F$414 -> 0 | C108: =Formula_Local(Campos_Ingreso_Datos[[#This Row],[Vinculo]]) -> =' '!$F$414 | D108: [$$-240A] #,##0
A109: Activos | B109: =' '!$C$423 -> 0 | C109: =Formula_Local(Campos_Ingreso_Datos[[#This Row],[Vinculo]]) -> =' '!$C$423 | D109: [$$-240A] #,##0
A110: Activos | B110: =' '!$E$423 -> 0 | C110: =Formula_Local(Campos_Ingreso_Datos[[#This Row],[Vinculo]]) -> =' '!$E$423 | D110: [$$-240A] #,##0
A111: Activos | B111: =' '!$F$423 -> 0 | C111: =Formula_Local(Campos_Ingreso_Datos[[#This Row],[Vinculo]]) -> =' '!$F$423 | D111: [$$-240A] #,##0
A112: Activos | B112: =' '!$C$427 -> 0 | C112: =Formula_Local(Campos_Ingreso_Datos[[#This Row],[Vinculo]]) -> =' '!$C$427 | D112: [$$-240A] #,##0
A113: Activos | B113: =' '!$E$427 -> 0 | C113: =Formula_Local(Campos_Ingreso_Datos[[#This Row],[Vinculo]]) -> =' '!$E$427 | D113: [$$-240A] #,##0
A114: Activos | B114: =' '!$F$427 -> 0 | C114: =Formula_Local(Campos_Ingreso_Datos[[#This Row],[Vinculo]]) -> =' '!$F$427 | D114: [$$-240A] #,##0
A115: Activos | B115: =' '!$C$431 -> 0 | C115: =Formula_Local(Campos_Ingreso_Datos[[#This Row],[Vinculo]]) -> =' '!$C$431 | D115: [$$-240A] #,##0
A116: Activos | B116: =' '!$E$431 -> 0 | C116: =Formula_Local(Campos_Ingreso_Datos[[#This Row],[Vinculo]]) -> =' '!$E$431 | D116: [$$-240A] #,##0
A117: Activos | B117: =' '!$F$431 -> 0 | C117: =Formula_Local(Campos_Ingreso_Datos[[#This Row],[Vinculo]]) -> =' '!$F$431 | D117: [$$-240A] #,##0
A118: Activos | B118: =' '!$C$435 -> 0 | C118: =Formula_Local(Campos_Ingreso_Datos[[#This Row],[Vinculo]]) -> =' '!$C$435 | D118: [$$-240A] #,##0
A119: Activos | B119: =' '!$E$435 -> 0 | C119: =Formula_Local(Campos_Ingreso_Datos[[#This Row],[Vinculo]]) -> =' '!$E$435 | D119: [$$-240A] #,##0
A120: Activos | B120: =' '!$F$435 -> 0 | C120: =Formula_Local(Campos_Ingreso_Datos[[#This Row],[Vinculo]]) -> =' '!$F$435 | D120: [$$-240A] #,##0
A121: Activos | B121: =' '!$C$439 -> 0 | C121: =Formula_Local(Campos_Ingreso_Datos[[#This Row],[Vinculo]]) -> =' '!$C$439 | D121: [$$-240A] #,##0
A122: Activos | B122: =' '!$E$439 -> 0 | C122: =Formula_Local(Campos_Ingreso_Datos[[#This Row],[Vinculo]]) -> =' '!$E$439 | D122: [$$-240A] #,##0
A123: Activos | B123: =' '!$F$439 -> 0 | C123: =Formula_Local(Campos_Ingreso_Datos[[#This Row],[Vinculo]]) -> =' '!$F$439 | D123: [$$-240A] #,##0
A124: Activos | B124: =' '!$C$443 -> 0 | C124: =Formula_Local(Campos_Ingreso_Datos[[#This Row],[Vinculo]]) -> =' '!$C$443 | D124: [$$-240A] #,##0
A125: Activos | B125: =' '!$E$443 -> 0 | C125: =Formula_Local(Campos_Ingreso_Datos[[#This Row],[Vinculo]]) -> =' '!$E$443 | D125: [$$-240A] #,##0
A126: Activos | B126: =' '!$F$443 -> 0 | C126: =Formula_Local(Campos_Ingreso_Datos[[#This Row],[Vinculo]]) -> =' '!$F$443 | D126: [$$-240A] #,##0
A127: Activos | B127: =' '!$C$447 -> 0 | C127: =Formula_Local(Campos_Ingreso_Datos[[#This Row],[Vinculo]]) -> =' '!$C$447 | D127: [$$-240A] #,##0
A128: Activos | B128: =' '!$E$447 -> 0 | C128: =Formula_Local(Campos_Ingreso_Datos[[#This Row],[Vinculo]]) -> =' '!$E$447 | D128: [$$-240A] #,##0
A129: Activos | B129: =' '!$F$447 -> 0 | C129: =Formula_Local(Campos_Ingreso_Datos[[#This Row],[Vinculo]]) -> =' '!$F$447 | D129: [$$-240A] #,##0
A130: Activos | B130: =' '!$C$451 -> 0 | C130: =Formula_Local(Campos_Ingreso_Datos[[#This Row],[Vinculo]]) -> =' '!$C$451 | D130: [$$-240A] #,##0
A131: Activos | B131: =' '!$E$451 -> 0 | C131: =Formula_Local(Campos_Ingreso_Datos[[#This Row],[Vinculo]]) -> =' '!$E$451 | D131: [$$-240A] #,##0
A132: Activos | B132: =' '!$F$451 -> 0 | C132: =Formula_Local(Campos_Ingreso_Datos[[#This Row],[Vinculo]]) -> =' '!$F$451 | D132: [$$-240A] #,##0
A133: Activos | B133: =' '!$C$455 -> 0 | C133: =Formula_Local(Campos_Ingreso_Datos[[#This Row],[Vinculo]]) -> =' '!$C$455 | D133: [$$-240A] #,##0
A134: Activos | B134: =' '!$E$455 -> 0 | C134: =Formula_Local(Campos_Ingreso_Datos[[#This Row],[Vinculo]]) -> =' '!$E$455 | D134: [$$-240A] #,##0
A135: Activos | B135: =' '!$F$455 -> 0 | C135: =Formula_Local(Campos_Ingreso_Datos[[#This Row],[Vinculo]]) -> =' '!$F$455 | D135: [$$-240A] #,##0
A136: Activos | B136: =' '!$C$467 -> 0 | C136: =Formula_Local(Campos_Ingreso_Datos[[#This Row],[Vinculo]]) -> =' '!$C$467 | D136: [$$-240A] #,##0
A137: Activos | B137: =' '!$E$467 -> 0 | C137: =Formula_Local(Campos_Ingreso_Datos[[#This Row],[Vinculo]]) -> =' '!$E$467 | D137: [$$-240A] #,##0
A138: Activos | B138: =' '!$F$467 -> 0 | C138: =Formula_Local(Campos_Ingreso_Datos[[#This Row],[Vinculo]]) -> =' '!$F$467 | D138: [$$-240A] #,##0
A139: Activos | B139: =' '!$C$468 -> 0 | C139: =Formula_Local(Campos_Ingreso_Datos[[#This Row],[Vinculo]]) -> =' '!$C$468 | D139: [$$-240A] #,##0
A140: Activos | B140: =' '!$E$468 -> 0 | C140: =Formula_Local(Campos_Ingreso_Datos[[#This Row],[Vinculo]]) -> =' '!$E$468 | D140: [$$-240A] #,##0
A141: Activos | B141: =' '!$F$468 -> 0 | C141: =Formula_Local(Campos_Ingreso_Datos[[#This Row],[Vinculo]]) -> =' '!$F$468 | D141: [$$-240A] #,##0
A142: Activos | B142: =' '!$C$472 -> 0 | C142: =Formula_Local(Campos_Ingreso_Datos[[#This Row],[Vinculo]]) -> =' '!$C$472 | D142: [$$-240A] #,##0
A143: Activos | B143: =' '!$E$472 -> 0 | C143: =Formula_Local(Campos_Ingreso_Datos[[#This Row],[Vinculo]]) -> =' '!$E$472 | D143: [$$-240A] #,##0
A144: Activos | B144: =' '!$F$472 -> 0 | C144: =Formula_Local(Campos_Ingreso_Datos[[#This Row],[Vinculo]]) -> =' '!$F$472 | D144: [$$-240A] #,##0
A145: Activos | B145: =' '!$C$473 -> 0 | C145: =Formula_Local(Campos_Ingreso_Datos[[#This Row],[Vinculo]]) -> =' '!$C$473 | D145: [$$-240A] #,##0
A146: Activos | B146: =' '!$E$473 -> 0 | C146: =Formula_Local(Campos_Ingreso_Datos[[#This Row],[Vinculo]]) -> =' '!$E$473 | D146: [$$-240A] #,##0
A147: Activos | B147: =' '!$F$473 -> 0 | C147: =Formula_Local(Campos_Ingreso_Datos[[#This Row],[Vinculo]]) -> =' '!$F$473 | D147: [$$-240A] #,##0
A148: Activos | B148: =' '!$C$477 -> 0 | C148: =Formula_Local(Campos_Ingreso_Datos[[#This Row],[Vinculo]]) -> =' '!$C$477 | D148: [$$-240A] #,##0
A149: Activos | B149: =' '!$E$477 -> 0 | C149: =Formula_Local(Campos_Ingreso_Datos[[#This Row],[Vinculo]]) -> =' '!$E$477 | D149: [$$-240A] #,##0
A150: Activos | B150: =' '!$F$477 -> 0 | C150: =Formula_Local(Campos_Ingreso_Datos[[#This Row],[Vinculo]]) -> =' '!$F$477 | D150: [$$-240A] #,##0
A151: Activos | B151: =' '!$C$478 -> 0 | C151: =Formula_Local(Campos_Ingreso_Datos[[#This Row],[Vinculo]]) -> =' '!$C$478 | D151: [$$-240A] #,##0
A152: Activos | B152: =' '!$E$478 -> 0 | C152: =Formula_Local(Campos_Ingreso_Datos[[#This Row],[Vinculo]]) -> =' '!$E$478 | D152: [$$-240A] #,##0
A153: Activos | B153: =' '!$F$478 -> 0 | C153: =Formula_Local(Campos_Ingreso_Datos[[#This Row],[Vinculo]]) -> =' '!$F$478 | D153: [$$-240A] #,##0
A154: Activos | B154: =' '!$C$485 -> 0 | C154: =Formula_Local(Campos_Ingreso_Datos[[#This Row],[Vinculo]]) -> =' '!$C$485 | D154: [$$-240A] #,##0
A155: Activos | B155: =' '!$E$485 -> 0 | C155: =Formula_Local(Campos_Ingreso_Datos[[#This Row],[Vinculo]]) -> =' '!$E$485 | D155: [$$-240A] #,##0
A156: Activos | B156: =' '!$F$485 -> 0 | C156: =Formula_Local(Campos_Ingreso_Datos[[#This Row],[Vinculo]]) -> =' '!$F$485 | D156: [$$-240A] #,##0
A157: Activos | B157: =' '!$C$486 -> 0 | C157: =Formula_Local(Campos_Ingreso_Datos[[#This Row],[Vinculo]]) -> =' '!$C$486 | D157: [$$-240A] #,##0
A158: Activos | B158: =' '!$E$486 -> 0 | C158: =Formula_Local(Campos_Ingreso_Datos[[#This Row],[Vinculo]]) -> =' '!$E$486 | D158: [$$-240A] #,##0
A159: Activos | B159: =' '!$F$486 -> 0 | C159: =Formula_Local(Campos_Ingreso_Datos[[#This Row],[Vinculo]]) -> =' '!$F$486 | D159: [$$-240A] #,##0
A160: Activos | B160: =' '!$C$493 -> 0 | C160: =Formula_Local(Campos_Ingreso_Datos[[#This Row],[Vinculo]]) -> =' '!$C$493 | D160: [$$-240A] #,##0
A161: Activos | B161: =' '!$E$493 -> 0 | C161: =Formula_Local(Campos_Ingreso_Datos[[#This Row],[Vinculo]]) -> =' '!$E$493 | D161: [$$-240A] #,##0
A162: Activos | B162: =' '!$F$493 -> 0 | C162: =Formula_Local(Campos_Ingreso_Datos[[#This Row],[Vinculo]]) -> =' '!$F$493 | D162: [$$-240A] #,##0
A163: Activos | B163: =' '!$C$494 -> 0 | C163: =Formula_Local(Campos_Ingreso_Datos[[#This Row],[Vinculo]]) -> =' '!$C$494 | D163: [$$-240A] #,##0
A164: Activos | B164: =' '!$E$494 -> 0 | C164: =Formula_Local(Campos_Ingreso_Datos[[#This Row],[Vinculo]]) -> =' '!$E$494 | D164: [$$-240A] #,##0
A165: Activos | B165: =' '!$F$494 -> 0 | C165: =Formula_Local(Campos_Ingreso_Datos[[#This Row],[Vinculo]]) -> =' '!$F$494 | D165: [$$-240A] #,##0
A166: Activos | B166: =' '!$C$561 -> 0 | C166: =Formula_Local(Campos_Ingreso_Datos[[#This Row],[Vinculo]]) -> =' '!$C$561 | D166: [$$-240A] #,##0
A167: Activos | B167: =' '!$E$561 -> 0 | C167: =Formula_Local(Campos_Ingreso_Datos[[#This Row],[Vinculo]]) -> =' '!$E$561 | D167: [$$-240A] #,##0
A168: Activos | B168: =' '!$F$561 -> 0 | C168: =Formula_Local(Campos_Ingreso_Datos[[#This Row],[Vinculo]]) -> =' '!$F$561 | D168: [$$-240A] #,##0
A169: Activos | B169: =' '!$C$562 -> 0 | C169: =Formula_Local(Campos_Ingreso_Datos[[#This Row],[Vinculo]]) -> =' '!$C$562 | D169: [$$-240A] #,##0
A170: Activos | B170: =' '!$E$562 -> 0 | C170: =Formula_Local(Campos_Ingreso_Datos[[#This Row],[Vinculo]]) -> =' '!$E$562 | D170: [$$-240A] #,##0
A171: Activos | B171: =' '!$F$562 -> 0 | C171: =Formula_Local(Campos_Ingreso_Datos[[#This Row],[Vinculo]]) -> =' '!$F$562 | D171: [$$-240A] #,##0
A172: Activos | B172: =' '!$C$569 -> 0 | C172: =Formula_Local(Campos_Ingreso_Datos[[#This Row],[Vinculo]]) -> =' '!$C$569 | D172: [$$-240A] #,##0
A173: Activos | B173: =' '!$E$569 -> 0 | C173: =Formula_Local(Campos_Ingreso_Datos[[#This Row],[Vinculo]]) -> =' '!$E$569 | D173: [$$-240A] #,##0
A174: Activos | B174: =' '!$F$569 -> 0 | C174: =Formula_Local(Campos_Ingreso_Datos[[#This Row],[Vinculo]]) -> =' '!$F$569 | D174: [$$-240A] #,##0
A175: Activos | B175: =' '!$C$570 -> 0 | C175: =Formula_Local(Campos_Ingreso_Datos[[#This Row],[Vinculo]]) -> =' '!$C$570 | D175: [$$-240A] #,##0
A176: Activos | B176: =' '!$E$570 -> 0 | C176: =Formula_Local(Campos_Ingreso_Datos[[#This Row],[Vinculo]]) -> =' '!$E$570 | D176: [$$-240A] #,##0
A177: Activos | B177: =' '!$F$570 -> 0 | C177: =Formula_Local(Campos_Ingreso_Datos[[#This Row],[Vinculo]]) -> =' '!$F$570 | D177: [$$-240A] #,##0
A178: Activos | B178: =' '!$C$582 -> 0 | C178: =Formula_Local(Campos_Ingreso_Datos[[#This Row],[Vinculo]]) -> =' '!$C$582 | D178: [$$-240A] #,##0
A179: Activos | B179: =' '!$E$582 -> 0 | C179: =Formula_Local(Campos_Ingreso_Datos[[#This Row],[Vinculo]]) -> =' '!$E$582 | D179: [$$-240A] #,##0
A180: Activos | B180: =' '!$F$582 -> 0 | C180: =Formula_Local(Campos_Ingreso_Datos[[#This Row],[Vinculo]]) -> =' '!$F$582 | D180: [$$-240A] #,##0
A181: Activos | B181: =' '!$C$583 -> 0 | C181: =Formula_Local(Campos_Ingreso_Datos[[#This Row],[Vinculo]]) -> =' '!$C$583 | D181: [$$-240A] #,##0
A182: Activos | B182: =' '!$E$583 -> 0 | C182: =Formula_Local(Campos_Ingreso_Datos[[#This Row],[Vinculo]]) -> =' '!$E$583 | D182: [$$-240A] #,##0
A183: Activos | B183: =' '!$F$583 -> 0 | C183: =Formula_Local(Campos_Ingreso_Datos[[#This Row],[Vinculo]]) -> =' '!$F$583 | D183: [$$-240A] #,##0
A184: Activos | B184: =' '!$C$590 -> 0 | C184: =Formula_Local(Campos_Ingreso_Datos[[#This Row],[Vinculo]]) -> =' '!$C$590 | D184: [$$-240A] #,##0
A185: Activos | B185: =' '!$E$590 -> 0 | C185: =Formula_Local(Campos_Ingreso_Datos[[#This Row],[Vinculo]]) -> =' '!$E$590 | D185: [$$-240A] #,##0
A186: Activos | B186: =' '!$F$590 -> 0 | C186: =Formula_Local(Campos_Ingreso_Datos[[#This Row],[Vinculo]]) -> =' '!$F$590 | D186: [$$-240A] #,##0
A187: Activos | B187: =' '!$C$597 -> 0 | C187: =Formula_Local(Campos_Ingreso_Datos[[#This Row],[Vinculo]]) -> =' '!$C$597 | D187: [$$-240A] #,##0
A188: Activos | B188: =' '!$E$597 -> 0 | C188: =Formula_Local(Campos_Ingreso_Datos[[#This Row],[Vinculo]]) -> =' '!$E$597 | D188: [$$-240A] #,##0
A189: Activos | B189: =' '!$F$597 -> 0 | C189: =Formula_Local(Campos_Ingreso_Datos[[#This Row],[Vinculo]]) -> =' '!$F$597 | D189: [$$-240A] #,##0
A190: Activos | B190: =' '!$C$598 -> 0 | C190: =Formula_Local(Campos_Ingreso_Datos[[#This Row],[Vinculo]]) -> =' '!$C$598 | D190: [$$-240A] #,##0
A191: Activos | B191: =' '!$E$598 -> 0 | C191: =Formula_Local(Campos_Ingreso_Datos[[#This Row],[Vinculo]]) -> =' '!$E$598 | D191: [$$-240A] #,##0
A192: Activos | B192: =' '!$F$598 -> 0 | C192: =Formula_Local(Campos_Ingreso_Datos[[#This Row],[Vinculo]]) -> =' '!$F$598 | D192: [$$-240A] #,##0
A193: Activos | B193: =' '!$C$605 -> 0 | C193: =Formula_Local(Campos_Ingreso_Datos[[#This Row],[Vinculo]]) -> =' '!$C$605 | D193: [$$-240A] #,##0
A194: Activos | B194: =' '!$E$605 -> 0 | C194: =Formula_Local(Campos_Ingreso_Datos[[#This Row],[Vinculo]]) -> =' '!$E$605 | D194: [$$-240A] #,##0
A195: Activos | B195: =' '!$F$605 -> 0 | C195: =Formula_Local(Campos_Ingreso_Datos[[#This Row],[Vinculo]]) -> =' '!$F$605 | D195: [$$-240A] #,##0
A196: Activos | B196: =' '!$C$617 -> 0 | C196: =Formula_Local(Campos_Ingreso_Datos[[#This Row],[Vinculo]]) -> =' '!$C$617 | D196: [$$-240A] #,##0
A197: Activos | B197: =' '!$E$617 -> 0 | C197: =Formula_Local(Campos_Ingreso_Datos[[#This Row],[Vinculo]]) -> =' '!$E$617 | D197: [$$-240A] #,##0
A198: Activos | B198: =' '!$F$617 -> 0 | C198: =Formula_Local(Campos_Ingreso_Datos[[#This Row],[Vinculo]]) -> =' '!$F$617 | D198: [$$-240A] #,##0
A199: Activos | B199: =' '!$C$621 -> 0 | C199: =Formula_Local(Campos_Ingreso_Datos[[#This Row],[Vinculo]]) -> =' '!$C$621 | D199: [$$-240A] #,##0
A200: Activos | B200: =' '!$E$621 -> 0 | C200: =Formula_Local(Campos_Ingreso_Datos[[#This Row],[Vinculo]]) -> =' '!$E$621 | D200: [$$-240A] #,##0
... 2166 more rows

Sheet Resumen (hidden)
B2: Resumen de información F110
B4: Datos informativos | G4: Sin conciliación / sin tasa | H4: Con tasa | I4: Conciliación
D5: Total costos y gastos de nómina | E5: 33 | G5: =ROUND(' '!H1773,-3) -> 0 | H5: =ROUND(' '!H1773,-3) -> 0 | I5: =ROUND(' '!H1773,-3) -> 0
D6: Aportes al sistema de seguridad social | E6: 34 | G6: =ROUND(' '!H1776,-3) -> 0 | H6: =ROUND(' '!H1776,-3) -> 0 | I6: =ROUND(' '!H1776,-3) -> 0
D7: Aportes al SENA, ICBF y cajas de compensación | E7: 35 | G7: =ROUND(' '!H1779,-3) -> 0 | H7: =ROUND(' '!H1779,-3) -> 0 | I7: =ROUND(' '!H1779,-3) -> 0
B8: Patrimonio
D9: Efectivo y equivalentes al efectivo | E9: 36 | G9: =ROUND(' '!H315,-3) -> 0 | H9: =ROUND(' '!H315,-3) -> 0 | I9: =ROUND(' '!H315,-3) -> 0
D10: Inversiones e instrumentos financieros derivados | E10: 37 | G10: =ROUND(' '!H366,-3) -> 0 | H10: =ROUND(' '!H366,-3) -> 0 | I10: =ROUND(' '!H366,-3) -> 0
D11: Cuentas, documentos y arrendamientos financieros por cobrar | E11: 38 | G11: =ROUND(' '!H415,-3) -> 0 | H11: =ROUND(' '!H415,-3) -> 0 | I11: =ROUND(' '!H415,-3) -> 0
D12: Inventarios | E12: 39 | G12: =ROUND(' '!H459,-3) -> 0 | H12: =ROUND(' '!H459,-3) -> 0 | I12: =ROUND(' '!H459,-3) -> 0
D13: Activos intangibles | E13: 40 | G13: =ROUND(' '!H530+' '!H553,-3) -> 0 | H13: =ROUND(' '!H530+' '!H553,-3) -> 0 | I13: =ROUND(' '!H530+' '!H553,-3) -> 0
D14: Activos biológicos | E14: 41 | G14: =ROUND(' '!H609,-3) -> 0 | H14: =ROUND(' '!H609,-3) -> 0 | I14: =ROUND(' '!H609,-3) -> 0
D15: Propiedades, planta y equipo, propiedades de inversión y ANCMV | E15: 42 | G15: =ROUND(' '!H495+' '!H574+' '!H622,-3) -> 0 | H15: =ROUND(' '!H495+' '!H574+' '!H622,-3) -> 0 | I15: =ROUND(' '!H495+' '!H574+' '!H622,-3) -> 0
D16: Otros activos | E16: 43 | G16: =ROUND(' '!H650,-3) -> 0 | H16: =ROUND(' '!H650,-3) -> 0 | I16: =ROUND(' '!H650,-3) -> 0
D17: Total patrimonio bruto | E17: 44 | G17: =ROUND(IF(SUM(G9:G16)>0,SUM(G9:G16),0),-3) -> 0 | H17: =ROUND(IF(SUM(G9:G16)>0,SUM(G9:G16),0),-3) -> 0 | I17: =ROUND(IF(SUM(I9:I16)>0,SUM(I9:I16),0),-3) -> 0
D18: Pasivos | E18: 45 | G18: =+ROUND(' '!H694+' '!H708+' '!H724+' '!H744+' '!H761+' '!H799+' '!H816+' '!H845,-3) -> 0 | H18: =+ROUND(' '!H694+' '!H708+' '!H724+' '!H744+' '!H761+' '!H799+' '!H816+' '!H845,-3) -> 0 | I18: =+ROUND(' '!H694+' '!H708+' '!H724+' '!H744+' '!H761+' '!H799+' '!H816+' '!H845,-3) -> 0
D19: Total patrimonio líquido | E19: 46 | G19: =ROUND(IF(G17-G18>0,G17-G18,0),-3) -> 0 | H19: =ROUND(IF(G17-G18>0,G17-G18,0),-3) -> 0 | I19: =ROUND(IF(I17-I18>0,I17-I18,0),-3) -> 0
B20: Ingresos
D21: Ingresos brutos de actividades ordinarias | E21: 47 | G21: =ROUND((+' '!H998+' '!H1021+' '!H1056+' '!H1319+' '!H1205+' '!H1248+' '!H1222),-3) -> 0 | H21: =ROUND((+' '!H998+' '!H1021+' '!H1056+' '!H1319+' '!H1205+' '!H1248+' '!H1222),-3) -> 0 | I21: =ROUND((+' '!H998+' '!H1021+' '!H1056+' '!H1319+' '!H1205+' '!H1248+' '!H1222),-3) -> 0
D22: Ingresos financieros | E22: 48 | G22: =ROUND(' '!H1107,-3) -> 0 | H22: =ROUND(' '!H1107,-3) -> 0 | I22: =ROUND(' '!H1107,-3) -> 0
D23: Dividendos y/o participaciones no constitutivos de renta ni ganancia ocasional (incluye capitalizaciones no gravadas) | E23: 49 | G23: =ROUND(' '!H1123,-3) -> 0 | H23: =ROUND(' '!H1123,-3) -> 0 | I23: =ROUND(' '!H1123,-3) -> 0
D24: Dividendos y/o participaciones distribuidos por entidades no residentes en Colombia a una CHC y prima en colocación de acciones | E24: 50 | G24: =ROUND(' '!H1126,-3) -> 0 | H24: =ROUND(' '!H1126,-3) -> 0 | I24: =ROUND(' '!H1126,-3) -> 0
D25: Dividendos y/o participaciones gravadas a la tarifa general provenientes de sociedades y entidades extranjeras o de sociedades nacionales | E25: 51 | G25: =ROUND(' '!H1129,-3) -> 0 | H25: =ROUND(' '!H1129,-3) -> 0 | I25: =ROUND(' '!H1129,-3) -> 0
D26: Dividendos y/o participaciones gravadas recibidas por personas naturales sin residencia fiscal (año 2016 y anteriores) | E26: 52 | G26: =ROUND(' '!H1132,-3) -> 0 | H26: =ROUND(' '!H1132,-3) -> 0 | I26: =ROUND(' '!H1132,-3) -> 0
D27: Dividendos y/o participaciones gravadas recibidas por personas naturales sin residencia fiscal (año 2017 y siguientes) | E27: 53 | G27: =ROUND(' '!H1135,-3) -> 0 | H27: =ROUND(' '!H1135,-3) -> 0 | I27: =ROUND(' '!H1135,-3) -> 0
D28: Dividendos y participaciones gravadas a las tarifas de los artículo 245 o 246 del ET | E28: 54 | G28: =ROUND(' '!H1138,-3) -> 0 | H28: =ROUND(' '!H1138,-3) -> 0 | I28: =ROUND(' '!H1138,-3) -> 0
D29: Dividendos y/o participaciones gravadas a la tarifa general (EP y sociedades extranjeras - utilidades generadas a partir del año 2017) | E29: 55 | G29: =ROUND(' '!H1141,-3) -> 0 | H29: =ROUND(' '!H1141,-3) -> 0 | I29: =ROUND(' '!H1141,-3) -> 0
D30: Dividendos y/o participaciones provenientes de proyectos calificados como megainversión gravadas al 27% | E30: 56 | G30: =ROUND(' '!H1144,-3) -> 0 | H30: =ROUND(' '!H1144,-3) -> 0 | I30: =ROUND(' '!H1144,-3) -> 0
D31: Otros ingresos | E31: 57 | G31: =ROUND((' '!H1299+' '!H1359),-3) -> 0 | H31: =ROUND((' '!H1299+' '!H1359),-3) -> 0 | I31: =ROUND((' '!H1299+' '!H1359),-3) -> 0
D32: Total ingresos brutos | E32: 58 | G32: =ROUND(IF(SUM(G21:G31)>0,SUM(G21:G31),0),-3) -> 0 | H32: =ROUND(IF(SUM(G21:G31)>0,SUM(G21:G31),0),-3) -> 0 | I32: =ROUND(IF(SUM(I21:I31)>0,SUM(I21:I31),0),-3) -> 0
D33: Devoluciones, rebajas y descuentos en ventas | E33: 59 | G33: =ROUND(' '!H1070,-3) -> 0 | H33: =ROUND(' '!H1070,-3) -> 0 | I33: =ROUND(' '!H1070,-3) -> 0
D34: Ingresos no constitutivos de renta ni ganancia ocasional | E34: 60 | G34: =ROUND((' '!H1078+' '!H1115+' '!H1123+' '!H1256+' '!H1327),-3) -> 0 | H34: =ROUND((' '!H1078+' '!H1115+' '!H1123+' '!H1256+' '!H1327),-3) -> 0 | I34: =ROUND((' '!H1078+' '!H1115+' '!H1123+' '!H1256+' '!H1327),-3) -> 0
D35: Total ingresos netos | E35: 61 | G35: =ROUND(IF((G32-G33-G34)>0,(G32-G33-G34),0),-3) -> 0 | H35: =ROUND(IF((G32-G33-G34)>0,(G32-G33-G34),0),-3) -> 0 | I35: =ROUND(IF((I32-I33-I34)>0,(I32-I33-I34),0),-3) -> 0
B36: Costos y deducciones
D37: Costos | E37: 62 | G37: =ROUND((' '!H1601+' '!H1618+' '!H1695+' '!H1739+' '!H1768),-3) -> 0 | H37: =ROUND((' '!H1601+' '!H1618+' '!H1695+' '!H1739+' '!H1768),-3) -> 0 | I37: =ROUND((' '!H1601+' '!H1618+' '!H1695+' '!H1739+' '!H1768),-3) -> 0
D38: Gasto de administración | E38: 63 | G38: =ROUND((' '!H1802+' '!H1867+' '!H1944),-3) -> 0 | H38: =ROUND((' '!H1802+' '!H1867+' '!H1944),-3) -> 0 | I38: =ROUND((' '!H1802+' '!H1867+' '!H1944),-3) -> 0
D39: Gastos de distribución y ventas | E39: 64 | G39: =ROUND((' '!H1961+' '!H2035+' '!H2112),-3) -> 0 | H39: =ROUND((' '!H1961+' '!H2035+' '!H2112),-3) -> 0 | I39: =ROUND((' '!H1961+' '!H2035+' '!H2112),-3) -> 0
D40: Gastos financieros | E40: 65 | G40: =ROUND(' '!H2152,-3) -> 0 | H40: =ROUND(' '!H2152,-3) -> 0 | I40: =ROUND(' '!H2152,-3) -> 0
D41: Otros gastos y deducciones | E41: 66 | G41: =ROUND(' '!H2247,-3) -> 0 | H41: =ROUND(' '!H2247,-3) -> 0 | I41: =ROUND(' '!H2247,-3) -> 0
D42: Total costos y gastos deducibles | E42: 67 | G42: =ROUND(SUM(G37:G41),-3) -> 0 | H42: =ROUND(SUM(G37:G41),-3) -> 0 | I42: =ROUND(SUM(I37:I41),-3) -> 0
B43: ESAL (RTE)
D44: Inversiones efectuadas en el año | E44: 68 | G44: =ROUND(IF(' '!D273="Sí",' '!D274,0),-3) -> 0 | H44: =ROUND(IF(' '!D273="Sí",' '!D274,0),-3) -> 0 | I44: =ROUND(IF(' '!D273="Sí",' '!D274,0),-3) -> 0
D45: Inversiones liquidadas en periodos gravables anteriores | E45: 69 | G45: =ROUND(IF(' '!D275="Sí",' '!D276,0),-3) -> 0 | H45: =ROUND(IF(' '!D275="Sí",' '!D276,0),-3) -> 0 | I45: =ROUND(IF(' '!D275="Sí",' '!D276,0),-3) -> 0
B46: Renta
D47: Renta por recuperación de deducciones | E47: 70 | G47: =ROUND(' '!H2307,-3) -> 0 | H47: =ROUND(' '!H2307,-3) -> 0 | I47: =ROUND(' '!H2307,-3) -> 0
D48: Renta pasiva - ECE sin residencia fiscal en Colombia | E48: 71 | G48: =ROUND((' '!H1388-' '!H1399),-3) -> 0 | H48: =ROUND((' '!H1388-' '!H1399),-3) -> 0 | I48: =ROUND((' '!H1388-' '!H1399),-3) -> 0
D49: Renta líquida ordinaria del ejercicio | E49: 72 | G49: =ROUND(IF((G35+G45+G47+G48-G26-G27-G28-G29-G30-G42-G44)>0,(G35+G45+G47+G48-G26-G27-G28-G29-G30-G42-G44),0),-3) -> 0 | H49: =ROUND(IF((G35+G45+G47+G48-G26-G27-G28-G29-G30-G42-G44)>0,(G35+G45+G47+G48-G26-G27-G28-G29-G30-G42-G44),0),-3) -> 0 | I49: =ROUND(IF((I35+I45+I47+I48-I26-I27-I28-I29-I30-I42-I44)>0,(I35+I45+I47+I48-I26-I27-I28-I29-I30-I42-I44),0),-3) -> 0
D50: Pérdida líquida del ejercicio | E50: 73 | G50: =ROUND(IF((G26+G27+G28+G29+G30+G42+G44-G35-G45-G47-G48)>0,(G26+G27+G28+G29+G30+G42+G44-G35-G45-G47-G48),0),-3) -> 0 | H50: =ROUND(IF((G26+G27+G28+G29+G30+G42+G44-G35-G45-G47-G48)>0,(G26+G27+G28+G29+G30+G42+G44-G35-G45-G47-G48),0),-3) -> 0 | I50: =ROUND(IF((I26+I27+I28+I29+I30+I42+I44-I35-I45-I47-I48)>0,(I26+I27+I28+I29+I30+I42+I44-I35-I45-I47-I48),0),-3) -> 0
D51: Compensaciones | E51: 74 | G51: =ROUND(IF((' '!C2271+' '!C2280)>Resumen!G49,Resumen!G49,(' '!C2271+' '!C2280)),-3) -> 0 | H51: =ROUND(IF((' '!C2271+' '!C2280)>Resumen!G49,Resumen!G49,(' '!C2271+' '!C2280)),-3) -> 0 | I51: =ROUND(IF((' '!C2271+' '!C2280)>Resumen!I49,Resumen!I49,(' '!C2271+' '!C2280)),-3) -> 0
D52: Renta líquida | E52: 75 | G52: =ROUND(IF((G49-G51)>0,(G49-G51),0),-3) -> 0 | H52: =ROUND(IF((H49-H51)>0,(H49-H51),0),-3) -> 0 | I52: =ROUND(IF((I49-I51)>0,(I49-I51),0),-3) -> 0
D53: Renta presuntiva | E53: 76 | G53: 0 | H53: 0 | I53: 0
D54: Renta exenta | E54: 77 | G54: =ROUND(' '!D2260,-3) -> 0 | H54: =ROUND(' '!D2260,-3) -> 0 | I54: =ROUND(' '!D2260,-3) -> 0
D55: Rentas gravables | E55: 78 | G55: =ROUND((' '!H2327+' '!H2347),-3) -> 0 | H55: =ROUND((' '!H2327+' '!H2347),-3) -> 0 | I55: =ROUND((' '!H2327+' '!H2347),-3) -> 0
D56: Conciliación patrimonial | I56: =+' '!D2995 -> 0
D57: Renta líquida gravable | E57: 79 | G57: =ROUND((MAX(G52,G53)-G54+G55),-3) -> 0 | H57: =ROUND((MAX(H52,H53)-H54+H55),-3) -> 0 | I57: =ROUND((MAX(I52,I53)-I54+I55+I56),-3) -> 0
B58: Ganancias Ocasionales
D59: Ingresos por ganancias ocasionales | E59: 80 | G59: =ROUND(' '!H1532,-3) -> 0 | H59: =ROUND(' '!H1532,-3) -> 0 | I59: =ROUND(' '!H1532,-3) -> 0
D60: Costos por ganancias ocasionales | E60: 81 | G60: =ROUND(' '!H1537,-3) -> 0 | H60: =ROUND(' '!H1537,-3) -> 0 | I60: =ROUND(' '!H1537,-3) -> 0
D61: Ganancias ocasionales no gravadas y exentas | E61: 82 | G61: =ROUND(' '!H1538,-3) -> 0 | H61: =ROUND(' '!H1538,-3) -> 0 | I61: =ROUND(' '!H1538,-3) -> 0
D62: Ganancias ocasionales gravables | E62: 83 | G62: =ROUND(' '!H1541,-3) -> 0 | H62: =ROUND(' '!H1541,-3) -> 0 | I62: =ROUND(' '!H1541,-3) -> 0
B63: Liquidación privada
C64: Impuesto sobre las rentas líquidas gravables
D65: Sobre la renta líquida gravable | E65: 84 | G65: =ROUND(' '!D2735,-3) -> 0 | H65: =ROUND(' '!D2735,-3) -> 0 | I65: =ROUND(' '!E2735,-3) -> 0
D66: Sobretasa (puntos adicionales a la tarifa del impuesto de renta) | E66: 85 | G66: =ROUND(IF(AND(' '!D245="Entidades financieras",Resumen!G57>=(120000*' '!C169)),Resumen!G57*3%,0),-3) -> 0 | H66: =ROUND(IF(AND(' '!D245="Entidades financieras",Resumen!G57>=(120000*' '!C169)),Resumen!G57*3%,0),-3) -> 0 | I66: =ROUND(IF(AND(' '!D245="Entidades financieras",Resumen!I57>=(120000*' '!C169)),Resumen!I57*3%,0),-3) -> 0
D67: De dividendos y/o participaciones gravadas a la tarifa del 10% (base casilla 54) | E67: 86 | G67: =ROUND(' '!C2740,-3) -> 0 | H67: =ROUND(' '!C2740,-3) -> 0 | I67: =ROUND(' '!C2740,-3) -> 0
D68: De dividendos y/o participaciones gravadas a la tarifa del artículo 240 E.T. (base casilla 55) | E68: 87 | G68: =ROUND(' '!C2745,-3) -> 0 | H68: =ROUND(' '!C2745,-3) -> 0 | I68: =ROUND(' '!C2745,-3) -> 0
D69: De dividendos y/o participaciones gravadas a la tarifa del 27% (base casilla 56) | E69: 88 | G69: =ROUND(' '!C2750,-3) -> 0 | H69: =ROUND(' '!C2750,-3) -> 0 | I69: =ROUND(' '!C2750,-3) -> 0
D70: De dividendos y/o participaciones gravadas a la tarifa del artículo 240 ET (base casilla 53) | E70: 89 | G70: =ROUND(' '!C2755,-3) -> 0 | H70: =ROUND(' '!C2755,-3) -> 0 | I70: =ROUND(' '!C2755,-3) -> 0
D71: De dividendos y/o participaciones gravadas a la tarifa del 33% (base casilla 52) | E71: 90 | G71: =ROUND(' '!C2760,-3) -> 0 | H71: =ROUND(' '!C2760,-3) -> 0 | I71: =ROUND(' '!C2760,-3) -> 0
C72: Total impuesto sobre las rentas líquidas gravables | E72: 91 | G72: =ROUND(SUM(G65:G71),-3) -> 0 | H72: =ROUND(SUM(G65:G71),-3) -> 0 | I72: =ROUND(SUM(I65:I71),-3) -> 0
C73: Valor a adicionar (VAA) | E73: 92 | G73: =+IF(' '!D2489>0,' '!D2489,0) -> 0 | H73: =+IF(' '!D2489>0,' '!D2489,0) -> 0 | I73: =+IF(' '!D2489>0,' '!D2489,0) -> 0
C74: Descuentos tributarios | E74: 93 | G74: =ROUND(' '!E3091,-3) -> 0 | H74: =ROUND(' '!E3091,-3) -> 0 | I74: =ROUND(' '!F3091,-3) -> 0
C75: Impuesto neto de renta (sin impuesto adicionado) | E75: 94 | G75: =ROUND(IF((G72+G73-G74)>0,(G72+G73-G74),0),-3) -> 0 | H75: =ROUND(IF((H72+H73-H74)>0,(H72+H73-H74),0),-3) -> 0 | I75: =ROUND(IF((I72+I73-I74)>0,(I72+I73-I74),0),-3) -> 0
C76: Impuesto a adicionar (IA) | E76: 95 | H76: =' '!C2727 -> 0
C77: Impuesto neto de renta (con impuesto adicionado) | E77: 96 | G77: =+G75+G76 -> 0 | H77: =+H75+H76 -> 0 | I77: =+I75+I76 -> 0
C78: Impuesto de ganancias ocasionales | E78: 97 | G78: =ROUND((' '!H1544+' '!H1545),-3) -> 0 | H78: =ROUND((' '!H1544+' '!H1545),-3) -> 0 | I78: =ROUND((' '!H1544+' '!H1545),-3) -> 0
C79: Descuento por impuestos pagados en el exterior por ganancias ocasionales | E79: 98 | G79: =ROUND((' '!D3009),-3) -> 0 | H79: =ROUND((' '!D3009),-3) -> 0 | I79: =ROUND((' '!D3009),-3) -> 0
C80: Total impuesto a cargo | E80: 99 | G80: =ROUND(IF((G77+G78-G79)>0,(G77+G78-G79),0),-3) -> 0 | H80: =ROUND(IF((H77+H78-H79)>0,(H77+H78-H79),0),-3) -> 0 | I80: =ROUND(IF((I77+I78-I79)>0,(I77+I78-I79),0),-3) -> 0
C81: Valor inversión obras por impuestos hasta del 50% del valor de la casilla 99 (Modalidad de pago 1) | E81: 100 | G81: =ROUND(IF(AND(G32>=(33610*' '!C169),' '!D266="Sí",' '!D268="Modalidad de pago 1"),IF(' '!D267>(Resumen!G80*50%),(Resumen!G80*50%),' '!D267),0),-3) -> 0 | H81: =ROUND(IF(AND(G32>=(33610*' '!C169),' '!D266="Sí",' '!D268="Modalidad de pago 1"),IF(' '!D267>(Resumen!G80*50%),(Resumen!G80*50%),' '!D267),0),-3) -> 0 | I81: =ROUND(IF(AND(I32>=(33610*' '!C169),' '!D266="Sí",' '!D268="Modalidad de pago 1"),IF(' '!D267>(Resumen!I80*50%),(Resumen!I80*50%),' '!D267),0),-3) -> 0
C82: Descuento efectivo inversión obras por impuestos (Modalidad de pago 2) | E82: 101 | G82: =ROUND(IF(AND(G32>=(33610*' '!C169),' '!D266="Sí",' '!D268="Modalidad de pago 2"),IF(' '!D267>(Resumen!G80*50%),(Resumen!G80*50%),' '!D267),0),-3) -> 0 | H82: =ROUND(IF(AND(G32>=(33610*' '!C169),' '!D266="Sí",' '!D268="Modalidad de pago 2"),IF(' '!D267>(Resumen!G80*50%),(Resumen!G80*50%),' '!D267),0),-3) -> 0 | I82: =ROUND(IF(AND(I32>=(33610*' '!C169),' '!D266="Sí",' '!D268="Modalidad de pago 2"),IF(' '!D267>(Resumen!I80*50%),(Resumen!I80*50%),' '!D267),0),-3) -> 0
C83: Crédito fiscal artículo 256-1 E.T. | E83: 102 | G83: =ROUND(IF(' '!D271="Sí",' '!D272*50%,0),-3) -> 0 | H83: =ROUND(IF(' '!D271="Sí",' '!D272*50%,0),-3) -> 0 | I83: =ROUND(IF(' '!D271="Sí",' '!D272*50%,0),-3) -> 0
C84: Anticipo renta liquidado año gravable anterior | E84: 103 | G84: =ROUND(' '!D257,-3) -> 0 | H84: =ROUND(' '!D257,-3) -> 0 | I84: =ROUND(' '!D257,-3) -> 0
C85: Saldo a favor año gravable anterior sin solicitud de devolución y/o compensación | E85: 104 | G85: =ROUND(' '!D256,-3) -> 0 | H85: =ROUND(' '!D256,-3) -> 0 | I85: =ROUND(' '!D256,-3) -> 0
C86: Retenciones
D87: Autorretenciones | E87: 105 | G87: =ROUND((' '!D2466),-3) -> 0 | H87: =ROUND((' '!D2466),-3) -> 0 | I87: =ROUND((' '!D2466),-3) -> 0
D88: Otras retenciones | E88: 106 | G88: =ROUND((' '!D2407),-3) -> 0 | H88: =ROUND((' '!D2407),-3) -> 0 | I88: =ROUND((' '!D2407),-3) -> 0
D89: Total retenciones año gravable a declarar | E89: 107 | G89: =ROUND((G87+G88),-3) -> 0 | H89: =ROUND((G87+G88),-3) -> 0 | I89: =ROUND((I87+I88),-3) -> 0
C90: Anticipo renta para el año gravable siguiente | E90: 108 | H90: =ROUND(IF(MIN(' '!E2771,' '!E2772)>0,MIN(' '!E2771,' '!E2772),0),-3) -> 0 | I90: =ROUND(IF(MIN(' '!F2771,' '!F2772)>0,MIN(' '!F2771,' '!F2772),0),-3) -> 0
C91: Anticipo puntos adicionales año gravable anterior | E91: 109 | G91: =ROUND(' '!D258,-3) -> 0 | H91: =ROUND(' '!D258,-3) -> 0 | I91: =ROUND(' '!D258,-3) -> 0
C92: Anticipo puntos adicionales año gravable siguiente | E92: 110 | G92: =ROUND(IF(AND(' '!D245="Entidades financieras",Resumen!G57>=(120000*' '!C169)),Resumen!G57*5%,IF(AND(' '!D245="Generación de energía eléctrica a través de recursos hídricos ",' '!D279="No",Resumen!G57>=(30000*' '!C169)),Resumen!G57*3%,0)),-3) -> 0 | H92: =ROUND(IF(AND(' '!D245="Entidades financieras",Resumen!G57>=(120000*' '!C169)),Resumen!G57*5%,IF(AND(' '!D245="Generación de energía eléctrica a través de recursos hídricos ",' '!D279="No",Resumen!G57>=(30000*' '!C169)),Resumen!G57*3%,0)),-3) -> 0 | I92: =ROUND(IF(AND(' '!D245="Entidades financieras",Resumen!I57>=(120000*' '!C169)),Resumen!I57*5%,IF(AND(' '!D245="Generación de energía eléctrica a través de recursos hídricos ",' '!D279="No",Resumen!I57>=(30000*' '!C169)),Resumen!I57*3%,0)),-3) -> 0
C93: Saldo a pagar por impuesto | E93: 111 | G93: =ROUND(IF((G80+G90+G92-G81-G82-G83-G84-G85-G89-G91)>0,(G80+G90+G92-G81-G82-G83-G84-G85-G89-G91),0),-3) -> 0 | H93: =ROUND(IF((H80+H90+H92-H81-H82-H83-H84-H85-H89-H91)>0,(H80+H90+H92-H81-H82-H83-H84-H85-H89-H91),0),-3) -> 0 | I93: =ROUND(IF((I80+I90+I92-I81-I82-I83-I84-I85-I89-I91)>0,(I80+I90+I92-I81-I82-I83-I84-I85-I89-I91),0),-3) -> 0
C94: Sanciones | E94: 112 | G94: =ROUND(IF(OR(' '!E2882="",' '!E2893=""),' '!E2879,IF(OR(' '!E2882="Sí",' '!E2893="Sí"),IF(' '!E2882="Sí",' '!E2891,IF(' '!E2893="Sí",' '!E2902,0)))),3) -> 0 | H94: =ROUND(IF(OR(' '!E2882="",' '!E2893=""),' '!E2879,IF(OR(' '!E2882="Sí",' '!E2893="Sí"),IF(' '!E2882="Sí",' '!E2891,IF(' '!E2893="Sí",' '!E2902,0)))),3) -> 0 | I94: =ROUND(IF(OR(' '!E2882="",' '!E2893=""),' '!E2879,IF(OR(' '!E2882="Sí",' '!E2893="Sí"),IF(' '!E2882="Sí",' '!E2891,IF(' '!E2893="Sí",' '!E2902,0)))),3) -> 0
C95: Total saldo a pagar | E95: 113 | G95: =ROUND(IF((G80+G90+G92+G94-G81-G82-G83-G84-G85-G89-G91)>0,(G80+G90+G92+G94-G81-G82-G83-G84-G85-G89-G91),0),-3) -> 0 | H95: =ROUND(IF((H80+H90+H92+H94-H81-H82-H83-H84-H85-H89-H91)>0,(H80+H90+H92+H94-H81-H82-H83-H84-H85-H89-H91),0),-3) -> 0 | I95: =ROUND(IF((I80+I90+I92+I94-I81-I82-I83-I84-I85-I89-I91)>0,(I80+I90+I92+I94-I81-I82-I83-I84-I85-I89-I91),0),-3) -> 0
C96: Total saldo a favor | E96: 114 | G96: =ROUND(IF((G81+G82+G83+G84+G85+G89+G91-G80-G90-G92-G94)>0,(G81+G82+G83+G84+G85+G89+G91-G80-G90-G92-G94),0),-3) -> 0 | H96: =ROUND(IF((H81+H82+H83+H84+H85+H89+H91-H80-H90-H92-H94)>0,(H81+H82+H83+H84+H85+H89+H91-H80-H90-H92-H94),0),-3) -> 0 | I96: =ROUND(IF((I81+I82+I83+I84+I85+I89+I91-I80-I90-I92-I94)>0,(I81+I82+I83+I84+I85+I89+I91-I80-I90-I92-I94),0),-3) -> 0
B97: Valor impuesto exigible por Obras por Impuestos Modalidad de pago 1 | E97: 115 | G97: =ROUND(IF(' '!D268="Modalidad de pago 1",' '!D269,0),-3) -> 0 | H97: =ROUND(IF(' '!D268="Modalidad de pago 1",' '!D269,0),-3) -> 0 | I97: =ROUND(IF(' '!D268="Modalidad de pago 1",' '!D269,0),-3) -> 0
B98: Valor total proyecto Obras por impuestos modalidad de pago 2 | E98: 116 | G98: =ROUND(IF(' '!D268="Modalidad de pago 2",' '!D270,0),-3) -> 0 | H98: =ROUND(IF(' '!D268="Modalidad de pago 2",' '!D270,0),-3) -> 0 | I98: =ROUND(IF(' '!D268="Modalidad de pago 2",' '!D270,0),-3) -> 0
B99: Aporte voluntario Artículo 244-1 del ET | E99: 117 | G99: =+IFERROR(IF(' '!D277="Sí",' '!D278,0),0) -> 0 | H99: =+IFERROR(IF(' '!D277="Sí",' '!D278,0),0) -> 0 | I99: =+IFERROR(IF(' '!D277="Sí",' '!D278,0),0) -> 0
D105: Activos
D106: Concepto | E106: Valores fiscales
D107: Efectivo y Equivalentes del Efectivo | E107: =+' '!H315 -> 0
D108: Inversiones e Instrumentos Derivados | E108: =+' '!H366 -> 0
D109: Cuentas por Cobrar | E109: =+' '!H415 -> 0
D110: Inventarios | E110: =+' '!H459 -> 0
D111: Propiedades, Planta y Equipo | E111: =+' '!H495 -> 0
D112: Activos Intangibles - Distintos a la plusvalía | E112: =+' '!H530 -> 0
D113: Activos Intangibles - Plusvalía o Good Will | E113: =+' '!H553 -> 0
D114: Propiedades de Inversión | E114: =+' '!H574 -> 0
D115: Activos Biológicos | E115: =+' '!H609 -> 0
D116: Activos no corrientes mantenidos para la venta y/o para distribuir a propietarios | E116: =+' '!H622 -> 0
D117: Otros Activos | E117: =+' '!H650 -> 0
D118: Total activos a 31 de diciembre de 2024 | E118: =SUM(E107:E117) -> 0
D119: Pasivos
D120: Concepto | E120: Valores fiscales
D121: Pasivos Financieros y Cuentas por Pagar | E121: =+' '!H694 -> 0
D122: Arrendamientos por pagar | E122: =+' '!H708 -> 0
D123: Impuestos, Gravámenes y Tasas | E123: =+' '!H724 -> 0
D124: Otros pasivos financieros | E124: =+' '!H744 -> 0
D125: Beneficios a empleados | E125: =+' '!H761 -> 0
D126: Provisiones | E126: =+' '!H799 -> 0
D127: Pasivos por ingresos diferidos | E127: =+' '!H816 -> 0
D128: Otros Pasivos | E128: =+' '!H845 -> 0
D129: Total pasivos a 31 de diciembre de 2024 | E129: =SUM(E121:E128) -> 0
D131: Ingresos
D132: Concepto | E132: Valores fiscales
D133: Ingresos brutos Actividad Industrial, Comercial y Servicios - Venta de bienes | E133: =+' '!H998 -> 0
D134: Ingresos brutos Actividad Industrial, Comercial y Servicios - Prestación de servicios (diferentes a honorarios profesionales) | E134: =+' '!H1021 -> 0
D135: Ingresos Brutos Actividad Industrial, Comercial y Servicios - Otros ingresos | E135: =+' '!H1056 -> 0
D136: Ingresos financieros | E136: =+' '!E4301 -> 0
D137: Dividendos | E137: =+' '!H1153 -> 0
D138: Venta de activos poseídos por menos de dos años | E138: =+' '!H1359 -> 0
D139: Rentas Pasivas ECE | E139: =+' '!H1388 -> 0
D140: Otros ingresos | E140: =+' '!H1205+' '!H1222+' '!H1248+' '!H1299+' '!H1319 -> 0
D141: Venta de bienes poseídos por dos o más años | E141: =+' '!H1431 -> 0
D142: Donaciones | E142: =+' '!H1465 -> 0
D143: Premios obtenidos en juegos de suerte y azar | E143: =+' '!H1485 -> 0
D144: Otras ganancias ocasionales | E144: =+' '!H1502 -> 0
D147: INCRNGO, rentas exentas y descuentos tributarios
D148: Concepto | E148: Valores
D149: Ingresos no constitutivos de renta ni ganancia ocasional | E149: =+Resumen!G34+Resumen!G61 -> 0
D150: Rentas exentas | E150: =+Resumen!G54 -> 0
D151: Descuentos tributarios | E151: =+Resumen!G74+Resumen!G79 -> 0
D152: Total INCRNGO | E152: =SUM(E149:E151) -> 0

Sheet Comentarios (hidden)
A1: RUTA | B1: Formulada | C1: Comentario | D1: Largo | E1: Segmento | F1: Color
A2: =SUBSTITUTE(SUBSTITUTE(_xlfn.FORMULATEXT(Comentarios[[#This Row],[Formulada]]),"=",""),"'","") -> !$C$171 | B2: =' '!$C$171 -> 0.0321 | C2: Artículo 1.2.1.7.5 del Decreto 1625 de 2016, modificado por el artículo 1 del Decreto 728 de 2022. | D2: 98 | E2: =OFFSET(Ref_Segmento,ROW(INDIRECT(IF(SUBSTITUTE(Comentarios[[#This Row],[RUTA]]," ","")=Comentarios[[#This Row],[RUTA]],Comentarios[[#This Row],[RUTA]],"'"&SUBSTITUTE(Comentarios[[#This Row],[RUTA]],"!","'!"))))-1,0) -> Cifras e Indicadores | F2: Azul
A3: =SUBSTITUTE(SUBSTITUTE(_xlfn.FORMULATEXT(Comentarios[[#This Row],[Formulada]]),"=",""),"'","") -> !$D$171 | B3: =' '!$D$171 -> 0.137 | C3: Artículo 1.2.1.7.5 del Decreto 1625 de 2016, modificado por el artículo 1 del Decreto 848 de 2023. | D3: 98 | E3: =OFFSET(Ref_Segmento,ROW(INDIRECT(IF(SUBSTITUTE(Comentarios[[#This Row],[RUTA]]," ","")=Comentarios[[#This Row],[RUTA]],Comentarios[[#This Row],[RUTA]],"'"&SUBSTITUTE(Comentarios[[#This Row],[RUTA]],"!","'!"))))-1,0) -> Cifras e Indicadores | F3: Azul
A4: =SUBSTITUTE(SUBSTITUTE(_xlfn.FORMULATEXT(Comentarios[[#This Row],[Formulada]]),"=",""),"'","") -> !$B$180 | B4: =' '!$B$180 -> Impuesto de renta año gravable 2024 - Personas Jurídicas y demás contribuyentes | C4: Artículo 1.6.1.13.2.11 del Decreto 1625 de 2016. | D4: 49 | E4: =OFFSET(Ref_Segmento,ROW(INDIRECT(IF(SUBSTITUTE(Comentarios[[#This Row],[RUTA]]," ","")=Comentarios[[#This Row],[RUTA]],Comentarios[[#This Row],[RUTA]],"'"&SUBSTITUTE(Comentarios[[#This Row],[RUTA]],"!","'!"))))-1,0) -> Vencimientos | F4: Azul
A5: =SUBSTITUTE(SUBSTITUTE(_xlfn.FORMULATEXT(Comentarios[[#This Row],[Formulada]]),"=",""),"'","") -> !$E$180 | B5: =' '!$E$180 -> Impuesto de renta año gravable 2024 - Grandes Contribuyentes | C5: Artículo 1.6.1.13.2.11 del Decreto 1625 de 2016. | D5: 49 | E5: =OFFSET(Ref_Segmento,ROW(INDIRECT(IF(SUBSTITUTE(Comentarios[[#This Row],[RUTA]]," ","")=Comentarios[[#This Row],[RUTA]],Comentarios[[#This Row],[RUTA]],"'"&SUBSTITUTE(Comentarios[[#This Row],[RUTA]],"!","'!"))))-1,0) -> Vencimientos | F5: Azul
A6: =SUBSTITUTE(SUBSTITUTE(_xlfn.FORMULATEXT(Comentarios[[#This Row],[Formulada]]),"=",""),"'","") -> !$B$182 | B6: =' '!$B$182 -> Declaración y pago primera cuota | C6: Artículo 1.6.1.13.2.12 del Decreto 1625 de 2016. | D6: 49 | E6: =OFFSET(Ref_Segmento,ROW(INDIRECT(IF(SUBSTITUTE(Comentarios[[#This Row],[RUTA]]," ","")=Comentarios[[#This Row],[RUTA]],Comentarios[[#This Row],[RUTA]],"'"&SUBSTITUTE(Comentarios[[#This Row],[RUTA]],"!","'!"))))-1,0) -> Vencimientos | F6: Azul
A7: =SUBSTITUTE(SUBSTITUTE(_xlfn.FORMULATEXT(Comentarios[[#This Row],[Formulada]]),"=",""),"'","") -> !$E$182 | B7: =' '!$E$182 -> Pago primera cuota | C7: El valor de la primera cuota no podrá ser inferior al 20% del saldo a pagar del año gravable 2021. | D7: 98 | E7: =OFFSET(Ref_Segmento,ROW(INDIRECT(IF(SUBSTITUTE(Comentarios[[#This Row],[RUTA]]," ","")=Comentarios[[#This Row],[RUTA]],Comentarios[[#This Row],[RUTA]],"'"&SUBSTITUTE(Comentarios[[#This Row],[RUTA]],"!","'!"))))-1,0) -> Vencimientos | F7: Azul
A8: =SUBSTITUTE(SUBSTITUTE(_xlfn.FORMULATEXT(Comentarios[[#This Row],[Formulada]]),"=",""),"'","") -> !$E$192 | B8: =' '!$E$192 -> Declaración y pago segunda cuota | C8: Una vez liquidado el impuesto y el anticipo del impuesto sobre la renta en la respectiva declaración, del valor a pagar, se restará lo pagado en la primera cuota y el saldo se cancelará de la siguiente manera, de acuerdo con la cuota de pago así: - Segunda cuota: 50% - Tercera cuota: 50% (Parágrafo 1 del artículo 1.6.1.13.2.11 del Decreto 1625 de 2016). | D8: 357 | E8: =OFFSET(Ref_Segmento,ROW(INDIRECT(IF(SUBSTITUTE(Comentarios[[#This Row],[RUTA]]," ","")=Comentarios[[#This Row],[RUTA]],Comentarios[[#This Row],[RUTA]],"'"&SUBSTITUTE(Comentarios[[#This Row],[RUTA]],"!","'!"))))-1,0) -> Vencimientos | F8: Azul
A9: =SUBSTITUTE(SUBSTITUTE(_xlfn.FORMULATEXT(Comentarios[[#This Row],[Formulada]]),"=",""),"'","") -> !$E$202 | B9: =' '!$E$202 -> Pago tercera cuota | C9: Tercera cuota: 50% (Parágrafo 1 del artículo 1.6.1.13.2.11 del Decreto 1625 de 2016). | D9: 86 | E9: =OFFSET(Ref_Segmento,ROW(INDIRECT(IF(SUBSTITUTE(Comentarios[[#This Row],[RUTA]]," ","")=Comentarios[[#This Row],[RUTA]],Comentarios[[#This Row],[RUTA]],"'"&SUBSTITUTE(Comentarios[[#This Row],[RUTA]],"!","'!"))))-1,0) -> Vencimientos | F9: Azul
A10: =SUBSTITUTE(SUBSTITUTE(_xlfn.FORMULATEXT(Comentarios[[#This Row],[Formulada]]),"=",""),"'","") -> !$C$230 | B10: =' '!$C$230 -> Mega inversiones en actividades comerciales, industriales y/o de servicios | C10: Debe tenerse en cuenta que, el último inciso del artículo 96 de la Ley 2277 de 2022 mediante el cual se derogó el artículo 235-3 del ET, establece que: “Los contribuyentes que hubieren acreditado las condiciones para acceder a las tarifas diferenciales y demás beneficios tributarios derogados o limitados mediante la presente ley, podrán disfrutar del respectivo tratamiento durante la totalidad del término otorgado en la legislación bajo la cual se consolidaron las respectivas situaciones jurídicas, en cuanto ello corresponda”. | D10: 533 | E10: =OFFSET(Ref_Segmento,ROW(INDIRECT(IF(SUBSTITUTE(Comentarios[[#This Row],[RUTA]]," ","")=Comentarios[[#This Row],[RUTA]],Comentarios[[#This Row],[RUTA]],"'"&SUBSTITUTE(Comentarios[[#This Row],[RUTA]],"!","'!"))))-1,0) -> Tarifas de Impuestos | F10: Azul
A11: =SUBSTITUTE(SUBSTITUTE(_xlfn.FORMULATEXT(Comentarios[[#This Row],[Formulada]]),"=",""),"'","") -> !$C$237 | B11: =' '!$C$237 -> Razón social del contribuyente | C11: Esta información debe coincidir con los datos consignados en la casilla 35 del RUT (actualizado) | D11: 96 | E11: =OFFSET(Ref_Segmento,ROW(INDIRECT(IF(SUBSTITUTE(Comentarios[[#This Row],[RUTA]]," ","")=Comentarios[[#This Row],[RUTA]],Comentarios[[#This Row],[RUTA]],"'"&SUBSTITUTE(Comentarios[[#This Row],[RUTA]],"!","'!"))))-1,0) -> Datos básicos contribuyente | F11: Azul
A12: =SUBSTITUTE(SUBSTITUTE(_xlfn.FORMULATEXT(Comentarios[[#This Row],[Formulada]]),"=",""),"'","") -> !$D$245 | B12: =' '!$D$245 -> 0 | C12: En caso de seleccionar la opción "Otra tarifa del impuesto de renta", tenga en cuenta que deberá ingresar dicha tarifa en la sección "Tarifas de renta", opción "Otra tarifa del impuesto de renta". | D12: 196 | E12: =OFFSET(Ref_Segmento,ROW(INDIRECT(IF(SUBSTITUTE(Comentarios[[#This Row],[RUTA]]," ","")=Comentarios[[#This Row],[RUTA]],Comentarios[[#This Row],[RUTA]],"'"&SUBSTITUTE(Comentarios[[#This Row],[RUTA]],"!","'!"))))-1,0) -> Datos básicos contribuyente | F12: Azul
A13: =SUBSTITUTE(SUBSTITUTE(_xlfn.FORMULATEXT(Comentarios[[#This Row],[Formulada]]),"=",""),"'","") -> !$D$269 | B13: =' '!$D$269 -> 0 | C13: Esta valor hace referencia a la inversión directa que realiza el contribuyente, una vez aprobada por la Agencia de Renovación del Territorio - ART, la vinculación del pago del impuesto al proyecto o proyectos seleccionados. Este valor será la base para constituir la obligación tributaria pendiente de cancelación, hasta la recepción de la certificación de la entrega de la obra por parte de la entidad nacional competente, de acuerdo con lo establecido en el artículo 1.6.5.4.1 del Decreto 1625 de 2016. | D13: 507 | E13: =OFFSET(Ref_Segmento,ROW(INDIRECT(IF(SUBSTITUTE(Comentarios[[#This Row],[RUTA]]," ","")=Comentarios[[#This Row],[RUTA]],Comentarios[[#This Row],[RUTA]],"'"&SUBSTITUTE(Comentarios[[#This Row],[RUTA]],"!","'!"))))-1,0) -> Datos básicos contribuyente | F13: Azul
A14: =SUBSTITUTE(SUBSTITUTE(_xlfn.FORMULATEXT(Comentarios[[#This Row],[Formulada]]),"=",""),"'","") -> !$D$270 | B14: =' '!$D$270 -> 0 | C14: Este valor es informativo y corresponde al total del proyecto aprobado por la entidad nacional competente, según el objeto del mismo. | D14: 134 | E14: =OFFSET(Ref_Segmento,ROW(INDIRECT(IF(SUBSTITUTE(Comentarios[[#This Row],[RUTA]]," ","")=Comentarios[[#This Row],[RUTA]],Comentarios[[#This Row],[RUTA]],"'"&SUBSTITUTE(Comentarios[[#This Row],[RUTA]],"!","'!"))))-1,0) -> Datos básicos contribuyente | F14: Azul
A15: =SUBSTITUTE(SUBSTITUTE(_xlfn.FORMULATEXT(Comentarios[[#This Row],[Formulada]]),"=",""),"'","") -> !$C$271 | B15: =' '!$C$271 -> ¿El contribuyente cuenta con un crédito fiscal otorgado en los términos del artículo 256-1 del ET? | C15: De acuerdo con el artículo 256-1 del ET, las inversiones que realicen las micro, pequeñas y medianas empresas en proyectos calificados como de Investigación, Desarrollo Tecnológico e Innovación, de acuerdo con los criterios y condiciones definidas por el Consejo Nacional de Beneficios Tributarios en Ciencia, Tecnología e Innovación - CNBT, podrán acceder a un crédito fiscal por un valor del 50% de la inversión realizada y certificada por el CNBT aplicable para la compensación de impuestos nacionales. Lo anterior también será aplicable a la remuneración correspondiente a la vinculación de personal con título de doctorado en las Mipymes, siempre y cuando se cumplan con los criterios y condiciones definidos por el CNBT para tal fin y su vinculación esté asociada al desarrollo de actividades de I+D+i. El crédito fiscal corresponde al 50% de la remuneración efectivamente pagada durante la vigencia fiscal y deberá solicitarse cada año una vez demostrada la vinculación del personal con título de doctorado. Para el caso de títulos de doctorado obtenidos en el exterior, se deberán cumplir los requisitos de convalidación previstos en la normatividad vigente, de manera previa a su vinculación. Debe tenerse en cuenta que, el crédito fiscal no genera saldo a favor susceptible de devolución; sin embargo, las micro, pequeñas y medianas empresas que cuenten con créditos fiscales vigentes superiores a mil UVT (1000 UVT) por inversiones en proyectos calificados como de Investigación, Desarrollo Tecnológico e Innovación, de acuerdo con los criterios y condiciones definidas por el Consejo Nacional de Beneficios Tributarios en Ciencia, Tecnología e Innovación (CNBT), podrán solicitar TIDIS por el valor del crédito fiscal. Asimismo, la remuneración pagada por la vinculación de personal con título de doctorado en las Mipymes podrá ser solicitada como TIDIS siempre y cuando se cumplan con los criterios y condiciones definidos por el Consejo Nacional de Beneficios Tributarios y cuenten con un crédito fiscal vigente superior a los 1000 UVT. Cabe señalar que, los proyectos presentados y calificados bajo la modalidad de crédito fiscal no podrán acceder a la deducción y descuento definido en el artículo 158-1 y 256 del ET, respectivamente. Igual tratamiento aplica para la remuneración derivada de la vinculación del nuevo personal con título de doctorado. Los créditos fiscales tendrán una vigencia de dos años una vez expedido el respectivo certificado. Debe tenerse en cuenta que, el parágrafo 1 del artículo 256-1 del ET fue modificado por el artículo 22 de la Ley 2277 de 2022, indicando que, los proyectos presentados y calificados bajo la modalidad de crédito fiscal no podrán acceder al descuento definido en el Artículo 256 del ET, y que, el mismo tratamiento aplica para la remuneración derivada de la vinculación del nuevo personal con título de doctorado. | D15: 2882 | E15: =OFFSET(Ref_Segmento,ROW(INDIRECT(IF(SUBSTITUTE(Comentarios[[#This Row],[RUTA]]," ","")=Comentarios[[#This Row],[RUTA]],Comentarios[[#This Row],[RUTA]],"'"&SUBSTITUTE(Comentarios[[#This Row],[RUTA]],"!","'!"))))-1,0) -> Datos básicos contribuyente | F15: Azul
A16: =SUBSTITUTE(SUBSTITUTE(_xlfn.FORMULATEXT(Comentarios[[#This Row],[Formulada]]),"=",""),"'","") -> !$C$272 | B16: =' '!$C$272 -> Registre el valor del crédito fiscal | C16: Registre el valor total de la inversión realizada en proyectos calificados como de Investigación, Desarrollo Tecnológico, e Innovación, debidamente certificada por el CNBT, o el valor de la remuneración efectivamente pagada durante la vigencia fiscal por la vinculación de personal con título de doctorado en las Mipymes, según corresponda. | D16: 340 | E16: =OFFSET(Ref_Segmento,ROW(INDIRECT(IF(SUBSTITUTE(Comentarios[[#This Row],[RUTA]]," ","")=Comentarios[[#This Row],[RUTA]],Comentarios[[#This Row],[RUTA]],"'"&SUBSTITUTE(Comentarios[[#This Row],[RUTA]],"!","'!"))))-1,0) -> Datos básicos contribuyente | F16: Azul
A17: =SUBSTITUTE(SUBSTITUTE(_xlfn.FORMULATEXT(Comentarios[[#This Row],[Formulada]]),"=",""),"'","") -> !$D$273 | B17: =' '!$D$273 -> 0 | C17: Las inversiones a que hace referencia esta pregunta, son aquellas mencionadas en el artículo 1.2.1.5.1.22 del Decreto 1625 de 2016, es decir, aquellas dirigidas al fortalecimiento del patrimonio que no sean susceptibles de amortización ni depreciación de acuerdo con las reglas señaladas en el Estatuto Tributario, y que generan rendimientos para el desarrollo de las actividades meritorias de los contribuyentes relacionadas con salud, educación, cultura, ciencia, tecnología e innovación y/o protección del medio ambiente. Cabe mencionar que, el valor de estas inversiones no puede exceder el resultado del beneficio neto o excedente, determinado antes de descontar la inversión. | D17: 684 | E17: =OFFSET(Ref_Segmento,ROW(INDIRECT(IF(SUBSTITUTE(Comentarios[[#This Row],[RUTA]]," ","")=Comentarios[[#This Row],[RUTA]],Comentarios[[#This Row],[RUTA]],"'"&SUBSTITUTE(Comentarios[[#This Row],[RUTA]],"!","'!"))))-1,0) -> Datos básicos contribuyente | F17: Azul
A18: =SUBSTITUTE(SUBSTITUTE(_xlfn.FORMULATEXT(Comentarios[[#This Row],[Formulada]]),"=",""),"'","") -> !$D$275 | B18: =' '!$D$275 -> 0 | C18: Corresponde al valor de las inversiones constituidas en periodos anteriores, liquidadas en el periodo gravable, que deben ser incluidas para la determinación de excedente neto del periodo. | D18: 189 | E18: =OFFSET(Ref_Segmento,ROW(INDIRECT(IF(SUBSTITUTE(Comentarios[[#This Row],[RUTA]]," ","")=Comentarios[[#This Row],[RUTA]],Comentarios[[#This Row],[RUTA]],"'"&SUBSTITUTE(Comentarios[[#This Row],[RUTA]],"!","'!"))))-1,0) -> Datos básicos contribuyente | F18: Azul
A19: =SUBSTITUTE(SUBSTITUTE(_xlfn.FORMULATEXT(Comentarios[[#This Row],[Formulada]]),"=",""),"'","") -> !$D$277 | B19: =' '!$D$277 -> 0 | C19: El artículo 20 de la Ley 2277 de 2022 adicionó el artículo 244-1 del ET, en el cual quedó establecido que, los contribuyentes podrán realizar de manera libre un aporte voluntario, que se podrá liquidar como porcentaje del impuesto a pagar o como un valor en pesos, el cual se liquidará al momento de presentación de la declaración del impuesto de renta y se recaudará al momento del respectivo pago. Debe tenerse en cuenta que, independientemente que se liquide un saldo a pagar o un saldo a favor, el contribuyente podrá realizar el aporte voluntario y, si no hay valor a pagar o saldo a favor, el contribuyente podrá pagar únicamente el aporte voluntario. Cabe mencionar que, el valor del aporte voluntario no podrá ser tratado como un ingreso no constitutivo de renta ni ganancia ocasional ni dará lugar a ningún beneficio tributario; tampoco se tendrá en cuenta para la causación de sanciones ni intereses, no dará lugar a saldo a favor ni podrá ser solicitado en devolución. El recaudo de este aporte voluntario se destinará para programas sociales de reducción de la pobreza extrema al igual que a programas de atención a las personas en condición de discapacidad física a través de sus cuidadores y al mejoramiento de la calidad de vida del adulto mayor, priorizando la población socioeconómica más vulnerable y con altos grados de discapacidad visual absoluto o parálisis que afecten a tres (3) o más extremidades y personas con movilidad reducida. | D19: 1458 | E19: =OFFSET(Ref_Segmento,ROW(INDIRECT(IF(SUBSTITUTE(Comentarios[[#This Row],[RUTA]]," ","")=Comentarios[[#This Row],[RUTA]],Comentarios[[#This Row],[RUTA]],"'"&SUBSTITUTE(Comentarios[[#This Row],[RUTA]],"!","'!"))))-1,0) -> Datos básicos contribuyente | F19: Azul
A20: =SUBSTITUTE(SUBSTITUTE(_xlfn.FORMULATEXT(Comentarios[[#This Row],[Formulada]]),"=",""),"'","") -> !$C$279 | B20: =' '!$C$279 -> ¿El contribuyente es una pequeña central hidroeléctrica con capacidad instalada igual o menor a mil Kilovatios (1.000Kw)? | C20: El artículo 10 de la Ley 2277 de 2022, modificó entre otros, el parágrafo 4 del artículo 240 del ET indicando que, los contribuyentes cuya actividad económica principal sea la generación de energía eléctrica a través de recursos hídricos deberán liquidar tres (3) puntos adicionales al impuesto de renta durante los periodos gravables 2023, 2024, 2025 y 2026, siendo en total la tarifa del treinta y ocho por ciento (38%). Los puntos adicionales solo son aplicables a las personas jurídicas que, en el año gravable correspondiente, tengan una renta gravable igual o superior a treinta mil (30.000) UVT. Estos puntos adicionales no deberán ser calculados por las Pequeñas Centrales Hidroeléctricas cuya capacidad instalada sea igual o menor a mil Kilovatios (1.000Kw). Debe tenerse en cuenta que, esta sobretasa está sujeta a un anticipo del 100% del valor de la misma, calculado sobre la base gravable del impuesto de renta y sobre la cual el contribuyente liquidó el mencionado impuesto para el año gravable inmediatamente anterior. | D20: 1036 | E20: =OFFSET(Ref_Segmento,ROW(INDIRECT(IF(SUBSTITUTE(Comentarios[[#This Row],[RUTA]]," ","")=Comentarios[[#This Row],[RUTA]],Comentarios[[#This Row],[RUTA]],"'"&SUBSTITUTE(Comentarios[[#This Row],[RUTA]],"!","'!"))))-1,0) -> Datos básicos contribuyente | F20: Azul
A21: =SUBSTITUTE(SUBSTITUTE(_xlfn.FORMULATEXT(Comentarios[[#This Row],[Formulada]]),"=",""),"'","") -> !$D$286 | B21: =' '!$D$286 ->  | C21: Debe tenerse en cuenta que en algunos casos los meses o fracción de meses de extemporaneidad no son exactos; por esto aunque es un cálculo automático, se sugiere hacer una revisión manual. | D21: 188 | E21: =OFFSET(Ref_Segmento,ROW(INDIRECT(IF(SUBSTITUTE(Comentarios[[#This Row],[RUTA]]," ","")=Comentarios[[#This Row],[RUTA]],Comentarios[[#This Row],[RUTA]],"'"&SUBSTITUTE(Comentarios[[#This Row],[RUTA]],"!","'!"))))-1,0) -> Datos básicos contribuyente | F21: Azul
A22: =SUBSTITUTE(SUBSTITUTE(_xlfn.FORMULATEXT(Comentarios[[#This Row],[Formulada]]),"=",""),"'","") -> !$D$296 | B22: =' '!$D$296 ->  | C22: Debe tenerse en cuenta que en algunos casos los meses o fracción de meses de extemporaneidad no son exactos; por esto aunque es un cálculo automático, se sugiere hacer una revisión manual. | D22: 188 | E22: =OFFSET(Ref_Segmento,ROW(INDIRECT(IF(SUBSTITUTE(Comentarios[[#This Row],[RUTA]]," ","")=Comentarios[[#This Row],[RUTA]],Comentarios[[#This Row],[RUTA]],"'"&SUBSTITUTE(Comentarios[[#This Row],[RUTA]],"!","'!"))))-1,0) -> Datos básicos contribuyente | F22: Azul
A23: =SUBSTITUTE(SUBSTITUTE(_xlfn.FORMULATEXT(Comentarios[[#This Row],[Formulada]]),"=",""),"'","") -> !$B$303 | B23: =' '!$B$303 -> Efectivo y Equivalentes del Efectivo | C23: El efectivo y los equivalentes del efectivo se deben reconocer y medir siguiendo los lineamientos señalados en la Sección 11 - Instrumentos Financieros Básicos. | D23: 160 | E23: =OFFSET(Ref_Segmento,ROW(INDIRECT(IF(SUBSTITUTE(Comentarios[[#This Row],[RUTA]]," ","")=Comentarios[[#This Row],[RUTA]],Comentarios[[#This Row],[RUTA]],"'"&SUBSTITUTE(Comentarios[[#This Row],[RUTA]],"!","'!"))))-1,0) -> Activos | F23: Azul
A24: =SUBSTITUTE(SUBSTITUTE(_xlfn.FORMULATEXT(Comentarios[[#This Row],[Formulada]]),"=",""),"'","") -> !$B$324 | B24: =' '!$B$324 -> Inversiones en subsidiarias, asociadas y negocios conjuntos medidas a valor razonable con cambios en resultados | C24: El parágrafo 6 de artículo 21-1 del ET señala que, para efectos fiscales, las mediciones que se efectúen a valor presente o valor razonable de acuerdo con los marcos técnicos normativos contables, deben reconocerse al costo, precio de adquisición o valor nominal, siempre y cuando no exista un tratamiento diferente en el estatuto. Por lo tanto, las diferencias que resulten del sistema de medición contable y fiscal no tendrán efectos en el impuesto de renta hasta que la transacción se realice mediante la transferencia económica del activo o la extinción del pasivo, según corresponda (ver también el numeral 5 del artículo 28 del ET; numeral 4 del artículo 33 del ET; literal c del numeral 1 del artículo 59 del ET; numeral 4 del artículo 93 del ET; artículo 94 del ET; literal b del numeral 1 del artículo 105 del ET). | D24: 824 | E24: =OFFSET(Ref_Segmento,ROW(INDIRECT(IF(SUBSTITUTE(Comentarios[[#This Row],[RUTA]]," ","")=Comentarios[[#This Row],[RUTA]],Comentarios[[#This Row],[RUTA]],"'"&SUBSTITUTE(Comentarios[[#This Row],[RUTA]],"!","'!"))))-1,0) -> Activos | F24: Azul
A25: =SUBSTITUTE(SUBSTITUTE(_xlfn.FORMULATEXT(Comentarios[[#This Row],[Formulada]]),"=",""),"'","") -> !$B$327 | B25: =' '!$B$327 -> Inversiones en subsidiarias, asociadas y negocios conjuntos medidas a valor razonable con cambios en el ORI | C25: El parágrafo 6 de artículo 21-1 del ET señala que, para efectos fiscales, las mediciones que se efectúen a valor presente o valor razonable de acuerdo con los marcos técnicos normativos contables, deben reconocerse al costo, precio de adquisición o valor nominal, siempre y cuando no exista un tratamiento diferente en el estatuto. Por lo tanto, las diferencias que resulten del sistema de medición contable y fiscal no tendrán efectos en el impuesto de renta hasta que la transacción se realice mediante la transferencia económica del activo o la extinción del pasivo, según corresponda (ver también: numeral 5 del artículo 28 del ET; numeral 4 del artículo 33 del ET; literal c del numeral 1 del artículo 59 del ET; numeral 4 del artículo 93 del ET; artículo 94 del ET; literal b del numeral 1 del artículo 105 del ET). | D25: 822 | E25: =OFFSET(Ref_Segmento,ROW(INDIRECT(IF(SUBSTITUTE(Comentarios[[#This Row],[RUTA]]," ","")=Comentarios[[#This Row],[RUTA]],Comentarios[[#This Row],[RUTA]],"'"&SUBSTITUTE(Comentarios[[#This Row],[RUTA]],"!","'!"))))-1,0) -> Activos | F25: Azul
A26: =SUBSTITUTE(SUBSTITUTE(_xlfn.FORMULATEXT(Comentarios[[#This Row],[Formulada]]),"=",""),"'","") -> !$B$330 | B26: =' '!$B$330 -> Inversiones en subsidiarias, asociadas y negocios conjuntos medidas con método de participación | C26: De acuerdo con el numeral 4 del artículo 28 y el literal a del numeral 2 de artículo 105 del ET, los valores que se registran contablemente por la aplicación del método de participación patrimonial no son objeto del impuesto de renta. | D26: 234 | E26: =OFFSET(Ref_Segmento,ROW(INDIRECT(IF(SUBSTITUTE(Comentarios[[#This Row],[RUTA]]," ","")=Comentarios[[#This Row],[RUTA]],Comentarios[[#This Row],[RUTA]],"'"&SUBSTITUTE(Comentarios[[#This Row],[RUTA]],"!","'!"))))-1,0) -> Activos | F26: Azul
A27: =SUBSTITUTE(SUBSTITUTE(_xlfn.FORMULATEXT(Comentarios[[#This Row],[Formulada]]),"=",""),"'","") -> !$B$342 | B27: =' '!$B$342 -> Instrumentos de deuda o patrimonio al costo | C27: De acuerdo con el artículo 271 del ET, para efectos fiscales, a los bonos, CDT, títulos y otras inversiones que sí coticen en bolsa, se les debe ajustar su valor patrimonial para que queden declarados según los índices de cotización en bolsa a diciembre 31 de 2024. | D27: 265 | E27: =OFFSET(Ref_Segmento,ROW(INDIRECT(IF(SUBSTITUTE(Comentarios[[#This Row],[RUTA]]," ","")=Comentarios[[#This Row],[RUTA]],Comentarios[[#This Row],[RUTA]],"'"&SUBSTITUTE(Comentarios[[#This Row],[RUTA]],"!","'!"))))-1,0) -> Activos | F27: Azul
A28: =SUBSTITUTE(SUBSTITUTE(_xlfn.FORMULATEXT(Comentarios[[#This Row],[Formulada]]),"=",""),"'","") -> !$B$346 | B28: =' '!$B$346 -> Instrumentos de deuda o patrimonio al valor razonable con cambios en resultados | C28: El parágrafo 6 de artículo 21-1 del ET señala que, para efectos fiscales, las mediciones que se efectúen a valor presente o valor razonable de acuerdo con los marcos técnicos normativos contables, deben reconocerse al costo, precio de adquisición o valor nominal, siempre y cuando no exista un tratamiento diferente en el estatuto. Por lo tanto, las diferencias que resulten del sistema de medición contable y fiscal no tendrán efectos en el impuesto de renta hasta que la transacción se realice mediante la transferencia económica del activo o la extinción del pasivo, según corresponda (ver también: numeral 5 del artículo 28 del ET; numeral 4 del artículo 33 del ET; literal c del numeral 1 del artículo 59 del ET; numeral 4 del artículo 93 del ET; artículo 94 del ET; literal b del numeral 1 del artículo 105 del ET). | D28: 822 | E28: =OFFSET(Ref_Segmento,ROW(INDIRECT(IF(SUBSTITUTE(Comentarios[[#This Row],[RUTA]]," ","")=Comentarios[[#This Row],[RUTA]],Comentarios[[#This Row],[RUTA]],"'"&SUBSTITUTE(Comentarios[[#This Row],[RUTA]],"!","'!"))))-1,0) -> Activos | F28: Azul
A29: =SUBSTITUTE(SUBSTITUTE(_xlfn.FORMULATEXT(Comentarios[[#This Row],[Formulada]]),"=",""),"'","") -> !$B$349 | B29: =' '!$B$349 -> Instrumentos de deuda o patrimonio al valor razonable con cambios en el ORI | C29: El parágrafo 6 de artículo 21-1 del ET señala que, para efectos fiscales, las mediciones que se efectúen a valor presente o valor razonable de acuerdo con los marcos técnicos normativos contables, deben reconocerse al costo, precio de adquisición o valor nominal, siempre y cuando no exista un tratamiento diferente en el estatuto. Por lo tanto, las diferencias que resulten del sistema de medición contable y fiscal no tendrán efectos en el impuesto de renta hasta que la transacción se realice mediante la transferencia económica del activo o la extinción del pasivo, según corresponda (ver también: numeral 5 del artículo 28 del ET; numeral 4 del artículo 33 del ET; literal c del numeral 1 del artículo 59 del ET; numeral 4 del artículo 93 del ET; artículo 94 del ET; literal b del numeral 1 del artículo 105 del ET). | D29: 822 | E29: =OFFSET(Ref_Segmento,ROW(INDIRECT(IF(SUBSTITUTE(Comentarios[[#This Row],[RUTA]]," ","")=Comentarios[[#This Row],[RUTA]],Comentarios[[#This Row],[RUTA]],"'"&SUBSTITUTE(Comentarios[[#This Row],[RUTA]],"!","'!"))))-1,0) -> Activos | F29: Azul
A30: =SUBSTITUTE(SUBSTITUTE(_xlfn.FORMULATEXT(Comentarios[[#This Row],[Formulada]]),"=",""),"'","") -> !$B$352 | B30: =' '!$B$352 -> Instrumentos financieros derivados con fines de negociación | C30: De acuerdo con el artículo 271 del ET, para efectos fiscales, a los bonos, CDT, títulos y otras inversiones que sí coticen en bolsa, se les debe ajustar su valor patrimonial para que queden declarados según los índices de cotización en bolsa a diciembre 31 de 2024. | D30: 265 | E30: =OFFSET(Ref_Segmento,ROW(INDIRECT(IF(SUBSTITUTE(Comentarios[[#This Row],[RUTA]]," ","")=Comentarios[[#This Row],[RUTA]],Comentarios[[#This Row],[RUTA]],"'"&SUBSTITUTE(Comentarios[[#This Row],[RUTA]],"!","'!"))))-1,0) -> Activos | F30: Azul
A31: =SUBSTITUTE(SUBSTITUTE(_xlfn.FORMULATEXT(Comentarios[[#This Row],[Formulada]]),"=",""),"'","") -> !$B$355 | B31: =' '!$B$355 -> Instrumentos financieros derivados con fines de cobertura | C31: De acuerdo con el artículo 271 del ET, para efectos fiscales, a los bonos, CDT, títulos y otras inversiones que sí coticen en bolsa, se les debe ajustar su valor patrimonial para que queden declarados según los índices de cotización en bolsa a diciembre 31 de 2024. | D31: 265 | E31: =OFFSET(Ref_Segmento,ROW(INDIRECT(IF(SUBSTITUTE(Comentarios[[#This Row],[RUTA]]," ","")=Comentarios[[#This Row],[RUTA]],Comentarios[[#This Row],[RUTA]],"'"&SUBSTITUTE(Comentarios[[#This Row],[RUTA]],"!","'!"))))-1,0) -> Activos | F31: Azul
A32: =SUBSTITUTE(SUBSTITUTE(_xlfn.FORMULATEXT(Comentarios[[#This Row],[Formulada]]),"=",""),"'","") -> !$B$584 | B32: =' '!$B$584 -> Animales productores medidos al valor razonable menos costos de venta | C32: El parágrafo 6 de artículo 21-1 del ET señala que, para efectos fiscales, las mediciones que se efectúen a valor presente o valor razonable de acuerdo con los marcos técnicos normativos contables, deben reconocerse al costo, precio de adquisición o valor nominal, siempre y cuando no exista un tratamiento diferente en el estatuto. Por lo tanto, las diferencias que resulten del sistema de medición contable y fiscal no tendrán efectos en el impuesto sobre la renta hasta que la transacción se realice mediante la transferencia económica del activo o la extinción del pasivo, según corresponda (ver también: numeral 5 del artículo 28 del ET; numeral 4 del artículo 33 del ET; literal c del numeral artículo 59 del ET; numeral 4 del artículo 93 del ET; artículo 94 del ET; literal b del numeral 1 del artículo 105 del ET). | D32: 822 | E32: =OFFSET(Ref_Segmento,ROW(INDIRECT(IF(SUBSTITUTE(Comentarios[[#This Row],[RUTA]]," ","")=Comentarios[[#This Row],[RUTA]],Comentarios[[#This Row],[RUTA]],"'"&SUBSTITUTE(Comentarios[[#This Row],[RUTA]],"!","'!"))))-1,0) -> Activos | F32: Azul
A33: =SUBSTITUTE(SUBSTITUTE(_xlfn.FORMULATEXT(Comentarios[[#This Row],[Formulada]]),"=",""),"'","") -> !$B$591 | B33: =' '!$B$591 -> Animales consumibles medidos al valor razonable menos costos de venta | C33: El parágrafo 6 de artículo 21-1 del ET señala que, para efectos fiscales, las mediciones que se efectúen a valor presente o valor razonable de acuerdo con los marcos técnicos normativos contables, deben reconocerse al costo, precio de adquisición o valor nominal, siempre y cuando no exista un tratamiento diferente en el estatuto. Por lo tanto, las diferencias que resulten del sistema de medición contable y fiscal no tendrán efectos en el impuesto sobre la renta hasta que la transacción se realice mediante la transferencia económica del activo o la extinción del pasivo, según corresponda (ver también: numeral 5 del artículo 28 del ET; numeral 4 del artículo 33 del ET; literal c del numeral artículo 59 del ET; numeral 4 del artículo 93 del ET; artículo 94 del ET; literal b del numeral 1 del artículo 105 del ET). | D33: 822 | E33: =OFFSET(Ref_Segmento,ROW(INDIRECT(IF(SUBSTITUTE(Comentarios[[#This Row],[RUTA]]," ","")=Comentarios[[#This Row],[RUTA]],Comentarios[[#This Row],[RUTA]],"'"&SUBSTITUTE(Comentarios[[#This Row],[RUTA]],"!","'!"))))-1,0) -> Activos | F33: Azul
A34: =SUBSTITUTE(SUBSTITUTE(_xlfn.FORMULATEXT(Comentarios[[#This Row],[Formulada]]),"=",""),"'","") -> !$B$599 | B34: =' '!$B$599 -> Plantas productoras medidas al valor razonable | C34: El parágrafo 6 de artículo 21-1 del ET señala que, para efectos fiscales, las mediciones que se efectúen a valor presente o valor razonable de acuerdo con los marcos técnicos normativos contables, deben reconocerse al costo, precio de adquisición o valor nominal, siempre y cuando no exista un tratamiento diferente en el estatuto. Por lo tanto, las diferencias que resulten del sistema de medición contable y fiscal no tendrán efectos en el impuesto sobre la renta hasta que la transacción se realice mediante la transferencia económica del activo o la extinción del pasivo, según corresponda (ver también: numeral 5 del artículo 28 del ET; numeral 4 del artículo 33 del ET; literal c del numeral artículo 59 del ET; numeral 4 del artículo 93 del ET; artículo 94 del ET; literal b del numeral 1 del artículo 105 del ET). | D34: 822 | E34: =OFFSET(Ref_Segmento,ROW(INDIRECT(IF(SUBSTITUTE(Comentarios[[#This Row],[RUTA]]," ","")=Comentarios[[#This Row],[RUTA]],Comentarios[[#This Row],[RUTA]],"'"&SUBSTITUTE(Comentarios[[#This Row],[RUTA]],"!","'!"))))-1,0) -> Activos | F34: Azul
A35: =SUBSTITUTE(SUBSTITUTE(_xlfn.FORMULATEXT(Comentarios[[#This Row],[Formulada]]),"=",""),"'","") -> !$B$606 | B35: =' '!$B$606 -> Cultivos consumibles medidos al valor razonable menos costos de venta | C35: El parágrafo 6 de artículo 21-1 del ET señala que, para efectos fiscales, las mediciones que se efectúen a valor presente o valor razonable de acuerdo con los marcos técnicos normativos contables, deben reconocerse al costo, precio de adquisición o valor nominal, siempre y cuando no exista un tratamiento diferente en el estatuto. Por lo tanto, las diferencias que resulten del sistema de medición contable y fiscal no tendrán efectos en el impuesto sobre la renta hasta que la transacción se realice mediante la transferencia económica del activo o la extinción del pasivo, según corresponda (ver también: numeral 5 del artículo 28 del ET; numeral 4 del artículo 33 del ET; literal c del numeral artículo 59 del ET; numeral 4 del artículo 93 del ET; artículo 94 del ET; literal b del numeral 1 del artículo 105 del ET). | D35: 822 | E35: =OFFSET(Ref_Segmento,ROW(INDIRECT(IF(SUBSTITUTE(Comentarios[[#This Row],[RUTA]]," ","")=Comentarios[[#This Row],[RUTA]],Comentarios[[#This Row],[RUTA]],"'"&SUBSTITUTE(Comentarios[[#This Row],[RUTA]],"!","'!"))))-1,0) -> Activos | F35: Azul
A36: =SUBSTITUTE(SUBSTITUTE(_xlfn.FORMULATEXT(Comentarios[[#This Row],[Formulada]]),"=",""),"'","") -> !$B$763 | B36: =' '!$B$763 -> Provisiones | C36: De acuerdo con el numeral literal d del numeral 1 del artículo 105 del ET y el artículo 286 del ET, los pasivos por provisiones, por ser simplemente estimados o no tener un beneficiario externo real, son pasivos que no son aceptados fiscalmente. | D36: 245 | E36: =OFFSET(Ref_Segmento,ROW(INDIRECT(IF(SUBSTITUTE(Comentarios[[#This Row],[RUTA]]," ","")=Comentarios[[#This Row],[RUTA]],Comentarios[[#This Row],[RUTA]],"'"&SUBSTITUTE(Comentarios[[#This Row],[RUTA]],"!","'!"))))-1,0) -> Pasivos | F36: Azul
A37: =SUBSTITUTE(SUBSTITUTE(_xlfn.FORMULATEXT(Comentarios[[#This Row],[Formulada]]),"=",""),"'","") -> !$B$2268 | B37: =' '!$B$2268 -> Límite para compensación de pérdidas fiscales | C37: El artículo 147 del ET indica que las sociedades pueden compensar las pérdidas fiscales, con las rentas líquidas ordinarias que obtuvieron en los 12 periodos gravables siguientes, sin perjuicio de la renta presuntiva del ejercicio. Los socios no podrán deducir ni compensar las pérdidas de las sociedades contra sus propias rentas líquidas. Debe tenerse en cuenta que, las pérdidas fiscales originadas en ingresos no constitutivos de renta ni de ganancia ocasional, y en costos y deducciones que no tengan relación de causalidad con la generación de la renta gravable, en ningún caso podrán ser compensadas con las rentas líquidas del contribuyente, salvo las generadas en la deducción por inversión en activos fijos a que se refiere el artículo 158-3 del ET. El término de firmeza de las declaraciones de renta y sus correcciones en las que se determinen o compensen pérdidas fiscales será de 6 años contados a partir de la fecha de su presentación. | D37: 952 | E37: =OFFSET(Ref_Segmento,ROW(INDIRECT(IF(SUBSTITUTE(Comentarios[[#This Row],[RUTA]]," ","")=Comentarios[[#This Row],[RUTA]],Comentarios[[#This Row],[RUTA]],"'"&SUBSTITUTE(Comentarios[[#This Row],[RUTA]],"!","'!"))))-1,0) -> Compensaciones | F37: Azul
A38: =SUBSTITUTE(SUBSTITUTE(_xlfn.FORMULATEXT(Comentarios[[#This Row],[Formulada]]),"=",""),"'","") -> !$B$2277 | B38: =' '!$B$2277 -> Límite para compensación por exceso de renta presuntiva | C38: Debe tenerse en cuenta que, el exceso de renta presuntiva se puede compensar con la renta líquida ordinaria del ejercicio; sin embargo, a este valor debe restarse, si es el caso, el valor correspondiente a la compensación por pérdidas fiscales de años anteriores, siendo la diferencia el valor límite para compensar el exceso de renta presuntiva. | D38: 346 | E38: =OFFSET(Ref_Segmento,ROW(INDIRECT(IF(SUBSTITUTE(Comentarios[[#This Row],[RUTA]]," ","")=Comentarios[[#This Row],[RUTA]],Comentarios[[#This Row],[RUTA]],"'"&SUBSTITUTE(Comentarios[[#This Row],[RUTA]],"!","'!"))))-1,0) -> Compensaciones | F38: Azul
A39: =SUBSTITUTE(SUBSTITUTE(_xlfn.FORMULATEXT(Comentarios[[#This Row],[Formulada]]),"=",""),"'","") -> !$B$2312 | B39: =' '!$B$2312 -> Otras rentas líquidas gravables | C39: De acuerdo con el artículo 239-1 del ET, los contribuyentes pueden incluir como renta líquida gravable en la declaración de renta, el valor de los activos omitidos y los pasivos inexistentes originados en periodos no revisables, adicionando el correspondiente valor como renta líquida gravable y liquidando el respectivo impuesto, sin que se genere renta por diferencia patrimonial. Debe tenerse en cuenta que, cuando en desarrollo de las acciones de fiscalización, la DIAN detecte pasivos inexistentes o activos omitidos por el contribuyente, el valor de los mismos constituirá renta líquida gravable en el periodo gravable objeto de revisión. El mayor valor del impuesto a cargo determinado por este concepto generará la sanción por inexactitud. De igual manera, cuando el contribuyente incluya activos omitidos o excluya pasivos inexistentes sin declararlos como renta líquida gravable, la DIAN procederá a adicionar la renta líquida gravable por tales valores y aplicará la sanción por inexactitud. | D39: 1003 | E39: =OFFSET(Ref_Segmento,ROW(INDIRECT(IF(SUBSTITUTE(Comentarios[[#This Row],[RUTA]]," ","")=Comentarios[[#This Row],[RUTA]],Comentarios[[#This Row],[RUTA]],"'"&SUBSTITUTE(Comentarios[[#This Row],[RUTA]],"!","'!"))))-1,0) -> Otras rentas líq. gravab. | F39: Azul
A40: =SUBSTITUTE(SUBSTITUTE(_xlfn.FORMULATEXT(Comentarios[[#This Row],[Formulada]]),"=",""),"'","") -> !$B$2315 | B40: =' '!$B$2315 -> Activos omitidos | C40: Registre en esta sección los activos omitidos en declaraciones de periodos anteriores. Tenga en cuenta que, los valores que registre en esta sección debe igualmente estar incluidos en la sección del patrimonio. Los valor que se incluyan en esta sección tendrán el tratamiento de renta líquida gravable, sobre la cual se determinará el impuesto de renta que corresponda. | D40: 372 | E40: =OFFSET(Ref_Segmento,ROW(INDIRECT(IF(SUBSTITUTE(Comentarios[[#This Row],[RUTA]]," ","")=Comentarios[[#This Row],[RUTA]],Comentarios[[#This Row],[RUTA]],"'"&SUBSTITUTE(Comentarios[[#This Row],[RUTA]],"!","'!"))))-1,0) -> Otras rentas líq. gravab. | F40: Azul
A41: =SUBSTITUTE(SUBSTITUTE(_xlfn.FORMULATEXT(Comentarios[[#This Row],[Formulada]]),"=",""),"'","") -> !$B$2318 | B41: =' '!$B$2318 -> Pasivos inexistentes | C41: Registre en esta sección los pasivos inexistentes en declaraciones de periodos anteriores. Tenga en cuenta que, los valores que registre en esta sección debe igualmente estar incluidos en la sección del patrimonio. Los valor que se incluyan en esta sección tendrán el tratamiento de renta líquida gravable, sobre la cual se determinará el impuesto de renta que corresponda. | D41: 376 | E41: =OFFSET(Ref_Segmento,ROW(INDIRECT(IF(SUBSTITUTE(Comentarios[[#This Row],[RUTA]]," ","")=Comentarios[[#This Row],[RUTA]],Comentarios[[#This Row],[RUTA]],"'"&SUBSTITUTE(Comentarios[[#This Row],[RUTA]],"!","'!"))))-1,0) -> Otras rentas líq. gravab. | F41: Azul
A42: =SUBSTITUTE(SUBSTITUTE(_xlfn.FORMULATEXT(Comentarios[[#This Row],[Formulada]]),"=",""),"'","") -> !$B$2332 | B42: =' '!$B$2332 -> Otras rentas líquidas gravables ESAL | C42: De acuerdo con el artículo 239-1 del ET, los contribuyentes pueden incluir como renta líquida gravable en la declaración de renta, el valor de los activos omitidos y los pasivos inexistentes originados en periodos no revisables, adicionando el correspondiente valor como renta líquida gravable y liquidando el respectivo impuesto, sin que se genere renta por diferencia patrimonial. Debe tenerse en cuenta que, cuando en desarrollo de las acciones de fiscalización, la DIAN detecte pasivos inexistentes o activos omitidos por el contribuyente, el valor de los mismos constituirá renta líquida gravable en el periodo gravable objeto de revisión. El mayor valor del impuesto a cargo determinado por este concepto generará la sanción por inexactitud. De igual manera, cuando el contribuyente incluya activos omitidos o excluya pasivos inexistentes sin declararlos como renta líquida gravable, la DIAN procederá a adicionar la renta líquida gravable por tales valores y aplicará la sanción por inexactitud. | D42: 1003 | E42: =OFFSET(Ref_Segmento,ROW(INDIRECT(IF(SUBSTITUTE(Comentarios[[#This Row],[RUTA]]," ","")=Comentarios[[#This Row],[RUTA]],Comentarios[[#This Row],[RUTA]],"'"&SUBSTITUTE(Comentarios[[#This Row],[RUTA]],"!","'!"))))-1,0) -> OtrasRentasLiqGravaESAL | F42: Azul
A43: =SUBSTITUTE(SUBSTITUTE(_xlfn.FORMULATEXT(Comentarios[[#This Row],[Formulada]]),"=",""),"'","") -> !$B$2471 | B43: =' '!$B$2471 -> INCRNGO, Deduciones especiales, Rentas Exentas y Descuentos Tributarios que se someten al límite | C43: El artículo 259-1 del ET indica que, para las sociedades nacionales y sus asimiladas, los establecimientos permanentes de entidades del exterior y las personas jurídicas extranjeras con o sin residencia en el país contribuyentes del impuesto sobre la renta y complementarios, el valor de los ingresos no constitutivos de renta ni ganancia ocasional, deducciones especiales, rentas exentas y descuentos tributarios establecidos en los artículos 107-2, 255 257-1 del ET; 124 de la Ley 30 de 1992, 56 de la Ley 397 de 1997, 44 de la Ley 789 de 2002, 23 de la Ley 1257 de 2008 y 4o de la Ley 1493 de 2011; no podrá exceder el tres por ciento (3%) anual de su renta líquida ordinaria antes de detraer las deducciones especiales antes mencionadas. Para efectos del cálculo del impuesto a pagar, se debe adicionar al impuesto a cargo del respectivo año gravable, siempre que sea positivo, el valor resultante de la siguiente fórmula: VAA = (DE+ RE+ INCRNGO) * TRPJ + DT - 3%RLO* Donde: - VAA: corresponde al valor a adicionar. - DE: corresponde a las deducciones especiales sujetas al límite previsto. - RE: corresponde a las rentas exentas sujetas al límite previsto. - INCRNGO: corresponde a los ingresos no constitucionales de renta ni ganancia ocasional sujetos al límite previsto. - TRRJ: corresponde a la tarifa del impuesto sobre la renta aplicable - DT: corresponde a los descuentos tributarios sujetos al límite previsto. - RLO*: corresponde a la renta líquida ordinaria anual del contribuyente, calculada antes de detraer las deducciones especiales sujetas al límite. Los Ingresos no constitutivos de renta ni ganancia ocasional, deducciones especiales rentas exentas y descuentos tributarios que no se encuentren señalados en el presente artículo, no estarán sujetos al límite. | D43: 1792 | E43: =OFFSET(Ref_Segmento,ROW(INDIRECT(IF(SUBSTITUTE(Comentarios[[#This Row],[RUTA]]," ","")=Comentarios[[#This Row],[RUTA]],Comentarios[[#This Row],[RUTA]],"'"&SUBSTITUTE(Comentarios[[#This Row],[RUTA]],"!","'!"))))-1,0) -> Valor a Adicionar | F43: Azul
A44: =SUBSTITUTE(SUBSTITUTE(_xlfn.FORMULATEXT(Comentarios[[#This Row],[Formulada]]),"=",""),"'","") -> !$D$2489 | B44: =' '!$D$2489 -> 0 | C44: En caso de que el Valor a Adicionar (VAA) sea menor o igual a cero (VAA<=0), el valor a adicionar no se sumará al impuesto a cargo calculado para el contribuyente. En caso contrario, el VAA será sumado al impuesto a cargo. | D44: 222 | E44: =OFFSET(Ref_Segmento,ROW(INDIRECT(IF(SUBSTITUTE(Comentarios[[#This Row],[RUTA]]," ","")=Comentarios[[#This Row],[RUTA]],Comentarios[[#This Row],[RUTA]],"'"&SUBSTITUTE(Comentarios[[#This Row],[RUTA]],"!","'!"))))-1,0) -> Valor a Adicionar | F44: Azul
A45: =SUBSTITUTE(SUBSTITUTE(_xlfn.FORMULATEXT(Comentarios[[#This Row],[Formulada]]),"=",""),"'","") -> !$E$2489 | B45: =' '!$E$2489 -> 0 | C45: En caso de que el Valor a Adicionar (VAA) sea menor o igual a cero (VAA<=0), el valor a adicionar no se sumará al impuesto a cargo calculado para el contribuyente. En caso contrario, el VAA será sumado al impuesto a cargo. | D45: 222 | E45: =OFFSET(Ref_Segmento,ROW(INDIRECT(IF(SUBSTITUTE(Comentarios[[#This Row],[RUTA]]," ","")=Comentarios[[#This Row],[RUTA]],Comentarios[[#This Row],[RUTA]],"'"&SUBSTITUTE(Comentarios[[#This Row],[RUTA]],"!","'!"))))-1,0) -> Valor a Adicionar | F45: Azul
A46: =SUBSTITUTE(SUBSTITUTE(_xlfn.FORMULATEXT(Comentarios[[#This Row],[Formulada]]),"=",""),"'","") -> !$B$2732 | B46: =' '!$B$2732 -> Sobre la renta líquida gravable | C46: El contribuyente deberá tomar el valor de la casilla 79 - "Renta Líquida Gravable", y multiplicarlo por la tarifa que corresponda. | D46: 130 | E46: =OFFSET(Ref_Segmento,ROW(INDIRECT(IF(SUBSTITUTE(Comentarios[[#This Row],[RUTA]]," ","")=Comentarios[[#This Row],[RUTA]],Comentarios[[#This Row],[RUTA]],"'"&SUBSTITUTE(Comentarios[[#This Row],[RUTA]],"!","'!"))))-1,0) -> Cálculo impto | F46: Azul
A47: =SUBSTITUTE(SUBSTITUTE(_xlfn.FORMULATEXT(Comentarios[[#This Row],[Formulada]]),"=",""),"'","") -> !$B$2737 | B47: =' '!$B$2737 -> De dividendos y/o participaciones gravadas a la tarifa del 10% | C47: El contribuyente deberá tomar el valor de la casilla 79 - "Renta Líquida Gravable", y multiplicarlo por la tarifa que corresponda. | D47: 130 | E47: =OFFSET(Ref_Segmento,ROW(INDIRECT(IF(SUBSTITUTE(Comentarios[[#This Row],[RUTA]]," ","")=Comentarios[[#This Row],[RUTA]],Comentarios[[#This Row],[RUTA]],"'"&SUBSTITUTE(Comentarios[[#This Row],[RUTA]],"!","'!"))))-1,0) -> Cálculo impto | F47: Azul
A48: =SUBSTITUTE(SUBSTITUTE(_xlfn.FORMULATEXT(Comentarios[[#This Row],[Formulada]]),"=",""),"'","") -> !$B$2742 | B48: =' '!$B$2742 -> De dividendos y/o participaciones gravadas a la tarifa del artículo 240 ET (base casilla 55) | C48: El contribuyente deberá tomar el valor de la casilla 79 - "Renta Líquida Gravable", y multiplicarlo por la tarifa que corresponda. | D48: 130 | E48: =OFFSET(Ref_Segmento,ROW(INDIRECT(IF(SUBSTITUTE(Comentarios[[#This Row],[RUTA]]," ","")=Comentarios[[#This Row],[RUTA]],Comentarios[[#This Row],[RUTA]],"'"&SUBSTITUTE(Comentarios[[#This Row],[RUTA]],"!","'!"))))-1,0) -> Cálculo impto | F48: Azul
A49: =SUBSTITUTE(SUBSTITUTE(_xlfn.FORMULATEXT(Comentarios[[#This Row],[Formulada]]),"=",""),"'","") -> !$B$2747 | B49: =' '!$B$2747 -> De dividendos y/o participaciones gravadas a la tarifa del 27% | C49: El contribuyente deberá tomar el valor de la casilla 79 - "Renta Líquida Gravable", y multiplicarlo por la tarifa que corresponda. | D49: 130 | E49: =OFFSET(Ref_Segmento,ROW(INDIRECT(IF(SUBSTITUTE(Comentarios[[#This Row],[RUTA]]," ","")=Comentarios[[#This Row],[RUTA]],Comentarios[[#This Row],[RUTA]],"'"&SUBSTITUTE(Comentarios[[#This Row],[RUTA]],"!","'!"))))-1,0) -> Cálculo impto | F49: Azul
A50: =SUBSTITUTE(SUBSTITUTE(_xlfn.FORMULATEXT(Comentarios[[#This Row],[Formulada]]),"=",""),"'","") -> !$B$2752 | B50: =' '!$B$2752 -> De dividendos y/o participaciones gravadas a la tarifa del artículo 240 ET (base casilla 53) | C50: El contribuyente deberá tomar el valor de la casilla 79 - "Renta Líquida Gravable", y multiplicarlo por la tarifa que corresponda. | D50: 130 | E50: =OFFSET(Ref_Segmento,ROW(INDIRECT(IF(SUBSTITUTE(Comentarios[[#This Row],[RUTA]]," ","")=Comentarios[[#This Row],[RUTA]],Comentarios[[#This Row],[RUTA]],"'"&SUBSTITUTE(Comentarios[[#This Row],[RUTA]],"!","'!"))))-1,0) -> Cálculo impto | F50: Azul
A51: =SUBSTITUTE(SUBSTITUTE(_xlfn.FORMULATEXT(Comentarios[[#This Row],[Formulada]]),"=",""),"'","") -> !$B$2757 | B51: =' '!$B$2757 -> De dividendos y/o participaciones gravadas a la tarifa del 33% (base casilla 52) | C51: El contribuyente deberá tomar el valor de la casilla 79 - "Renta Líquida Gravable", y multiplicarlo por la tarifa que corresponda. | D51: 130 | E51: =OFFSET(Ref_Segmento,ROW(INDIRECT(IF(SUBSTITUTE(Comentarios[[#This Row],[RUTA]]," ","")=Comentarios[[#This Row],[RUTA]],Comentarios[[#This Row],[RUTA]],"'"&SUBSTITUTE(Comentarios[[#This Row],[RUTA]],"!","'!"))))-1,0) -> Cálculo impto | F51: Azul
A52: =SUBSTITUTE(SUBSTITUTE(_xlfn.FORMULATEXT(Comentarios[[#This Row],[Formulada]]),"=",""),"'","") -> !$C$2883 | B52: =' '!$C$2883 -> ¿En los dos años anteriores a la generación de esta sanción por extemporaneidad, el contribuyente incurrió en la misma conducta sancionable? | C52: Mediante el numeral 1.1 del Concepto 14116 de 2017 (Concepto Unificado sobre Procedimiento Tributario), la DIAN precisa que en lo correspondiente a las sanciones por extemporaneidad (artículos 641, 642 y 645 del ET), por no declarar (artículo 643 del ET) y por corrección (artículos 644, 645 y 647-1 del ET), para efectos de la aplicación del artículo 640 del ET, es necesario verificar si la misma conducta sancionable se cometió en el pasado, independientemente del impuesto sobre el cual versa la declaración tributaria. | D52: 524 | E52: =OFFSET(Ref_Segmento,ROW(INDIRECT(IF(SUBSTITUTE(Comentarios[[#This Row],[RUTA]]," ","")=Comentarios[[#This Row],[RUTA]],Comentarios[[#This Row],[RUTA]],"'"&SUBSTITUTE(Comentarios[[#This Row],[RUTA]],"!","'!"))))-1,0) -> Sanciones | F52: Azul
A53: =SUBSTITUTE(SUBSTITUTE(_xlfn.FORMULATEXT(Comentarios[[#This Row],[Formulada]]),"=",""),"'","") -> !$B$2888 | B53: =' '!$B$2888 -> ¿Aplica reducción de la sanción al 50%? | C53: De acuerdo con el numeral 1 del artículo 640 del ET, cuando la sanción deba ser liquidada por el contribuyente, podrá ser reducida al 50%, siempre y cuando se cumplan las siguientes condiciones: - Que dentro de los dos (2) años anteriores a la fecha de la comisión de la conducta sancionable no se hubiere cometido la misma; y - Que la Administración Tributaria no haya proferido pliego de cargos, requerimiento especial o emplazamiento previo por no declarar, según el caso. En caso de que no se cumplan las dos condiciones, el contribuyente no podrá acogerse al beneficio de la reducción de la sanción al 50%. | D53: 613 | E53: =OFFSET(Ref_Segmento,ROW(INDIRECT(IF(SUBSTITUTE(Comentarios[[#This Row],[RUTA]]," ","")=Comentarios[[#This Row],[RUTA]],Comentarios[[#This Row],[RUTA]],"'"&SUBSTITUTE(Comentarios[[#This Row],[RUTA]],"!","'!"))))-1,0) -> Sanciones | F53: Azul
A54: =SUBSTITUTE(SUBSTITUTE(_xlfn.FORMULATEXT(Comentarios[[#This Row],[Formulada]]),"=",""),"'","") -> !$B$2889 | B54: =' '!$B$2889 -> ¿Aplica reducción de la sanción al 75%? | C54: El numeral 2 del artículo 640 del ET establece que, cuando la sanción deba ser liquidada por el contribuyente, podrá ser reducida al 75%, siempre y cuando se cumplan las siguientes condiciones: - Que dentro del año (1) año anterior a la fecha de la comisión de la conducta sancionable no se hubiere cometido la misma; y - Que la Administración Tributaria no haya proferido pliego de cargos, requerimiento especial o emplazamiento previo por no declarar, según el caso. En caso de que no se cumplan las dos condiciones, el contribuyente no podrá acogerse al beneficio de la reducción de la sanción al 75%. | D54: 606 | E54: =OFFSET(Ref_Segmento,ROW(INDIRECT(IF(SUBSTITUTE(Comentarios[[#This Row],[RUTA]]," ","")=Comentarios[[#This Row],[RUTA]],Comentarios[[#This Row],[RUTA]],"'"&SUBSTITUTE(Comentarios[[#This Row],[RUTA]],"!","'!"))))-1,0) -> Sanciones | F54: Azul
A55: =SUBSTITUTE(SUBSTITUTE(_xlfn.FORMULATEXT(Comentarios[[#This Row],[Formulada]]),"=",""),"'","") -> !$B$2899 | B55: =' '!$B$2899 -> ¿Aplica reducción de la sanción al 50%? | C55: De acuerdo con el numeral 3 del artículo 640 del ET, cuando la sanción sea propuesta o determinada por la DIAN, podrá ser reducida al 50%, siempre y cuando se cumplan las siguientes condiciones: - Que dentro de los cuatro (4) años anteriores a la fecha de la comisión de la conducta sancionable no se hubiere cometido la misma, y esta se hubiere sancionado mediante acto administrativo en firme; y - Que la sanción sea aceptada y la infracción subsanada de conformidad con lo establecido en el tipo sancionatorio correspondiente. En caso de que no se cumplan las dos condiciones, el contribuyente no podrá acogerse al beneficio de la reducción de la sanción al 50%. | D55: 667 | E55: =OFFSET(Ref_Segmento,ROW(INDIRECT(IF(SUBSTITUTE(Comentarios[[#This Row],[RUTA]]," ","")=Comentarios[[#This Row],[RUTA]],Comentarios[[#This Row],[RUTA]],"'"&SUBSTITUTE(Comentarios[[#This Row],[RUTA]],"!","'!"))))-1,0) -> Sanciones | F55: Azul
A56: =SUBSTITUTE(SUBSTITUTE(_xlfn.FORMULATEXT(Comentarios[[#This Row],[Formulada]]),"=",""),"'","") -> !$B$2900 | B56: =' '!$B$2900 -> ¿Aplica reducción de la sanción al 75%? | C56: El numeral 4 del artículo 640 del ET establece que, cuando la sanción sea propuesta o liquidada por la DIAN, podrá ser reducida al 75%, siempre y cuando se cumplan las siguientes condiciones: - Que dentro de los dos (2) años anteriores a la fecha de la comisión de la conducta sancionable no se hubiere cometido la misma, y esta se hubiere sancionado mediante acto administrativo en firme; y - Que la sanción sea aceptada y la infracción subsanada de conformidad con lo establecido en el tipo sancionatorio correspondiente. En caso de que no se cumplan las dos condiciones, el contribuyente no podrá acogerse al beneficio de la reducción de la sanción al 75%. | D56: 661 | E56: =OFFSET(Ref_Segmento,ROW(INDIRECT(IF(SUBSTITUTE(Comentarios[[#This Row],[RUTA]]," ","")=Comentarios[[#This Row],[RUTA]],Comentarios[[#This Row],[RUTA]],"'"&SUBSTITUTE(Comentarios[[#This Row],[RUTA]],"!","'!"))))-1,0) -> Sanciones | F56: Azul
A57: =SUBSTITUTE(SUBSTITUTE(_xlfn.FORMULATEXT(Comentarios[[#This Row],[Formulada]]),"=",""),"'","") -> !$C$2975 | B57: =' '!$C$2975 -> 0 | C57: De acuerdo con el artículo 236 del ET, cuando la suma de la renta gravable, las rentas exentas y la ganancia ocasional neta, sea inferior a la diferencia entre el patrimonio líquido del último periodo gravable y el patrimonio líquido del periodo inmediatamente anterior, dicha diferencia se considera renta gravable, a menos que el contribuyente demuestre que el aumento patrimonial obedece a causas justificadas. | D57: 413 | E57: =OFFSET(Ref_Segmento,ROW(INDIRECT(IF(SUBSTITUTE(Comentarios[[#This Row],[RUTA]]," ","")=Comentarios[[#This Row],[RUTA]],Comentarios[[#This Row],[RUTA]],"'"&SUBSTITUTE(Comentarios[[#This Row],[RUTA]],"!","'!"))))-1,0) -> Conciliación Patrimonial | F57: Azul
A58: =SUBSTITUTE(SUBSTITUTE(_xlfn.FORMULATEXT(Comentarios[[#This Row],[Formulada]]),"=",""),"'","") -> !$D$2992 | B58: =' '!$D$2992 -> 0 | C58: Tenga en cuenta que este valor corresponde al impuesto a pagar determinado de la siguiente manera: Al impuesto a cargo, se le suma el anticipo de renta para el año gravable siguiente y el anticipo de las sobretasas determinado para el año gravable siguiente (si corresponde); al valor obtenido se le resta el "Valor inversión obras por impuestos ", el "descuento efectivo inversión obras por impuestos", el "crédito fiscal", el "anticipo de renta liquidado el año gravable anterior", el "saldo a favor obtenido en el año gravable anterior sin devolución y/o compensación", las retenciones en la fuente que le fueron practicadas durante el año" y el "anticipo de las sobretasas liquidado el año gravable anterior". | D58: 715 | E58: =OFFSET(Ref_Segmento,ROW(INDIRECT(IF(SUBSTITUTE(Comentarios[[#This Row],[RUTA]]," ","")=Comentarios[[#This Row],[RUTA]],Comentarios[[#This Row],[RUTA]],"'"&SUBSTITUTE(Comentarios[[#This Row],[RUTA]],"!","'!"))))-1,0) -> Conciliación Patrimonial | F58: Azul
A59: =SUBSTITUTE(SUBSTITUTE(_xlfn.FORMULATEXT(Comentarios[[#This Row],[Formulada]]),"=",""),"'","") -> !$D$2993 | B59: =' '!$D$2993 -> 0 | C59: Este valor se incluye de forma discriminada en el cálculo de la renta por comparación patrimonial, debido a que se excluye en la operación para determinar el total del impuesto a pagar. | D59: 185 | E59: =OFFSET(Ref_Segmento,ROW(INDIRECT(IF(SUBSTITUTE(Comentarios[[#This Row],[RUTA]]," ","")=Comentarios[[#This Row],[RUTA]],Comentarios[[#This Row],[RUTA]],"'"&SUBSTITUTE(Comentarios[[#This Row],[RUTA]],"!","'!"))))-1,0) -> Conciliación Patrimonial | F59: Azul
A60: =SUBSTITUTE(SUBSTITUTE(_xlfn.FORMULATEXT(Comentarios[[#This Row],[Formulada]]),"=",""),"'","") -> !$D$2995 | B60: =' '!$D$2995 -> 0 | C60: Si el resultado de esta casilla es cero ($0) o menor a cero ($0), NO existe renta por comparación patrimonial, pues la variación presentada en el patrimonio líquido del año gravable 2024 con respecto al patrimonio líquido del año anterior, se encuentra justificada con las rentas percibidas en el año. En caso de que esta casilla sea mayor a cero ($0), SÍ existe renta por comparación patrimonial, es decir que, la variación presentada en el patrimonio líquido del año gravable 2024 con respecto al patrimonio líquido del año anterior, no se encuentra justificada con las rentas percibidas en el año, y por lo tanto, la variación no justificada debe ser reporta como renta líquida gravable en la casilla 78 del formulario, sin que sea posible disminuirla con deducciones y renta exenta (se sugiere hacer una revisión de los activos, deudas e ingresos registrados para validar que no hay omisión de algún dato o información). | D60: 925 | E60: =OFFSET(Ref_Segmento,ROW(INDIRECT(IF(SUBSTITUTE(Comentarios[[#This Row],[RUTA]]," ","")=Comentarios[[#This Row],[RUTA]],Comentarios[[#This Row],[RUTA]],"'"&SUBSTITUTE(Comentarios[[#This Row],[RUTA]],"!","'!"))))-1,0) -> Conciliación Patrimonial | F60: Azul
A61: =SUBSTITUTE(SUBSTITUTE(_xlfn.FORMULATEXT(Comentarios[[#This Row],[Formulada]]),"=",""),"'","") -> !$B$3000 | B61: =' '!$B$3000 -> Impuestos pagados en el exterior | C61: De acuerdo con el artículo 254 del ET “las personas naturales residentes en el país, que sean contribuyentes del impuesto de renta y que perciban rentas de fuente extranjera sujetas al impuesto de renta en el país de origen, tienen derecho a descontar del monto del impuesto colombiano de renta, el impuesto sobre la renta pagado en el extranjero, cualquiera que sea la denominación, liquidado sobre esas mismas rentas, siempre que el descuento no exceda del monto del impuesto que deba pagar el contribuyente en Colombia por esas mismas rentas". En consecuencia, en aquellos casos en que el impuesto pagado en el exterior sea superior a aquel que se generaría en Colombia por esas mismas rentas, el excedente no podrás ser aprovechado como descuento tributario; por lo anterior, es necesario hacer el cálculo correspondiente del impuesto de renta que se generaría en Colombia sobre las rentas que dieron origen al impuesto pagado en el exterior, y de esta manera, determinar el valor por descuento tributario que procede. | D61: 1023 | E61: =OFFSET(Ref_Segmento,ROW(INDIRECT(IF(SUBSTITUTE(Comentarios[[#This Row],[RUTA]]," ","")=Comentarios[[#This Row],[RUTA]],Comentarios[[#This Row],[RUTA]],"'"&SUBSTITUTE(Comentarios[[#This Row],[RUTA]],"!","'!"))))-1,0) -> Descuentos Tributarios | F61: Azul
A62: =SUBSTITUTE(SUBSTITUTE(_xlfn.FORMULATEXT(Comentarios[[#This Row],[Formulada]]),"=",""),"'","") -> !$B$3014 | B62: =' '!$B$3014 -> Inversiones en empresas de acueducto y alcantarillado por parte de empresas prestadoras de servicios domiciliarios | C62: De acuerdo con el artículo 104 de la Ley 788 de 2002: "Las empresas de servicios públicos domiciliarios que presten los servicios de acueducto y alcantarillado, podrán solicitar un descuento equivalente al 40% del valor de la inversión que realicen en el respectivo año gravable, en empresas de acueducto y alcantarillado del orden regional diferentes a la empresa beneficiaria del descuento. En todos los casos la inversión debe garantizar una ampliación de la cobertura del servicio, en los términos que establezca el reglamento. Este descuento no podrá exceder del 50% del impuesto neto de renta del respectivo período". Al respecto, debe tenerse en cuenta que, el artículo 1.2.1.24.5 del Decreto 1625 de 2016 indica que, a este descuento no le es aplicable la limitación señalada en el inciso segundo del artículo 259 del ET (Ver Oficio DIAN 001187 de enero 16 de 2019). | D62: 875 | E62: =OFFSET(Ref_Segmento,ROW(INDIRECT(IF(SUBSTITUTE(Comentarios[[#This Row],[RUTA]]," ","")=Comentarios[[#This Row],[RUTA]],Comentarios[[#This Row],[RUTA]],"'"&SUBSTITUTE(Comentarios[[#This Row],[RUTA]],"!","'!"))))-1,0) -> Descuentos Tributarios | F62: Azul
A63: =SUBSTITUTE(SUBSTITUTE(_xlfn.FORMULATEXT(Comentarios[[#This Row],[Formulada]]),"=",""),"'","") -> !$B$3015 | B63: =' '!$B$3015 -> Concepto | C63: El artículo 256 del ET señala que, las personas que realicen inversiones en proyectos calificados por el Consejo Nacional de Beneficios Tributarios en Ciencia y Tecnología en Innovación como de investigación, desarrollo tecnológico o innovación, de acuerdo con los criterios y condiciones definidas por dicho Consejo, pueden tomar como descuento tributario en el impuesto de renta el 25% del valor invertido en dichos proyectos en el periodo gravable en que se realizó la donación o inversión. Debe tenerse que en cuenta que, el valor de este descuento en conjunto con los otros descuentos señalados en el artículo 256 del ET y aquellos mencionados en el artículo 257 del ET, no pueden exceder el 25% del impuesto de renta a cargo del respectivo año gravable (artículo 258 del ET). El exceso de descuento que se presente podrá ser tomado dentro de los cuatro años gravables siguientes a aquel en el que se realizó la donación o inversión en investigación, desarrollo e innovación. Adicionalmente, se deberá considerar el límite general de los descuentos tributarios señalados en el artículo 259 del ET. | D63: 1105 | E63: =OFFSET(Ref_Segmento,ROW(INDIRECT(IF(SUBSTITUTE(Comentarios[[#This Row],[RUTA]]," ","")=Comentarios[[#This Row],[RUTA]],Comentarios[[#This Row],[RUTA]],"'"&SUBSTITUTE(Comentarios[[#This Row],[RUTA]],"!","'!"))))-1,0) -> Descuentos Tributarios | F63: Azul
A64: =SUBSTITUTE(SUBSTITUTE(_xlfn.FORMULATEXT(Comentarios[[#This Row],[Formulada]]),"=",""),"'","") -> !$B$3022 | B64: =' '!$B$3022 -> IVA pagado en la importación, formación, construcción o adquisición de activos fijos reales productivos | C64: El artículo 258-1 del ET señala que los responsable del IVA podrán descontar del impuesto sobre la renta a cargo, el IVA pagado por la adquisición, construcción o formación e importación de activos fijos reales productivos, incluyendo el asociado a los servicios necesarios para ponerlos en condiciones de utilización, en año gravable en que se realice el pago o en cualquiera de los periodos gravables siguientes. En el caso de los activos fijos reales productivos formados o construidos, el impuesto sobre las ventas podrá descontarse en el año gravable en que dicho activo se active y comience a depreciarse o amortizarse, o en cualquiera de los periodos gravables siguientes. Debe tenerse en cuenta que, mediante la Sentencia C-379 de 2020, la Corte Constitucional declaró exequible la expresión "Los responsables del Impuesto sobre las Ventas (IVA)” contenida en el artículo 258-1 del ET, en el entendido de que al beneficio tributario contemplado dicha norma también pueden acceder aquellos sujetos que no son responsables del IVA. En consecuencia, este beneficio también podrá ser tomado por las personas naturales no obligadas a llevar contabilidad. | D64: 1159 | E64: =OFFSET(Ref_Segmento,ROW(INDIRECT(IF(SUBSTITUTE(Comentarios[[#This Row],[RUTA]]," ","")=Comentarios[[#This Row],[RUTA]],Comentarios[[#This Row],[RUTA]],"'"&SUBSTITUTE(Comentarios[[#This Row],[RUTA]],"!","'!"))))-1,0) -> Descuentos Tributarios | F64: Azul
A65: =SUBSTITUTE(SUBSTITUTE(_xlfn.FORMULATEXT(Comentarios[[#This Row],[Formulada]]),"=",""),"'","") -> !$B$3028 | B65: =' '!$B$3028 -> Donaciones y/o inversiones | C65: El artículo 257-1 del ET indica que, los valores a tomar por los descuentos tributarios señalados en los artículo 255, 256, 257 y 257-1 del ET, no pueden exceder el 30% del impuesto sobre la renta a cargo del contribuyente en el respectivo año gravable. De acuerdo con el artículo 258 del ET, el exceso no descontado en el año podrá ser tratado de la siguiente manera: 1. El exceso originado en los descuentos señalados en el artículo 255 del ET, podrá tomarse dentro de los 4 periodos gravables siguientes a aquel en que se efectuó la inversión en control y mejoramiento del medio ambiente. 2. El exceso originado en el descuento señalado en el artículo 256 del ET, podrá tomarse dentro de los 4 periodos gravables siguientes a aquel en que se efectuó la inversión en investigación, desarrollo e innovación. 3. El exceso originado en el descuento señalado en el artículo 257 del ET, podrá tomarse dentro del periodo gravable siguiente a aquel en que se efectuó la donación. Adicionalmente, se deberá tener en cuenta el límite general aplicable a los descuentos, señalado en el artículo 259 del ET. | D65: 1103 | E65: =OFFSET(Ref_Segmento,ROW(INDIRECT(IF(SUBSTITUTE(Comentarios[[#This Row],[RUTA]]," ","")=Comentarios[[#This Row],[RUTA]],Comentarios[[#This Row],[RUTA]],"'"&SUBSTITUTE(Comentarios[[#This Row],[RUTA]],"!","'!"))))-1,0) -> Descuentos Tributarios | F65: Azul
A66: =SUBSTITUTE(SUBSTITUTE(_xlfn.FORMULATEXT(Comentarios[[#This Row],[Formulada]]),"=",""),"'","") -> !$B$3030 | B66: =' '!$B$3030 -> Inversiones realizadas en control, conservación y mejoramiento del medio ambiente | C66: El inciso 1 del artículo 255 del ET señala que, las personas jurídicas que realicen directamente inversiones en control, conservación y mejoramiento del medio ambiente, tendrán derecho a descontar de su impuesto de renta a cargo el 25% de las inversiones que hayan realizado en el respectivo año gravable, previa acreditación que efectúe la autoridad ambiental respectiva, en la cual deberá tenerse en cuenta los beneficios ambientales directos asociados a dichas inversiones. El tratamiento de descuento tributario no es aplicable a las inversiones realizadas por mandato de una autoridad ambiental para mitigar el impacto ambiental producido por la obra o actividad objeto de una licencia ambiental. | D66: 701 | E66: =OFFSET(Ref_Segmento,ROW(INDIRECT(IF(SUBSTITUTE(Comentarios[[#This Row],[RUTA]]," ","")=Comentarios[[#This Row],[RUTA]],Comentarios[[#This Row],[RUTA]],"'"&SUBSTITUTE(Comentarios[[#This Row],[RUTA]],"!","'!"))))-1,0) -> Descuentos Tributarios | F66: Azul
A67: =SUBSTITUTE(SUBSTITUTE(_xlfn.FORMULATEXT(Comentarios[[#This Row],[Formulada]]),"=",""),"'","") -> !$B$3034 | B67: =' '!$B$3034 -> Inversiones realizadas en control, conservación y mejoramiento del medio ambiente en actividades turísticas | C67: El parágrafo 2 del artículo 255 del ET señala que, para efectos de acceder al descuento para Inversiones realizadas en control, conservación y mejoramiento del medio ambiente se considerará inversión en mejoramiento ambiental la adquisición de predios destinados a la ejecución de actividades de conservación y restauración de recursos naturales renovables, aun cuando en estos se desarrollen actividades turísticas. Esto siempre y cuando la actividad turística sea compatible con la conservación y restauración de la diversidad biológica, los recursos naturales renovables y el medio ambiente. | D67: 594 | E67: =OFFSET(Ref_Segmento,ROW(INDIRECT(IF(SUBSTITUTE(Comentarios[[#This Row],[RUTA]]," ","")=Comentarios[[#This Row],[RUTA]],Comentarios[[#This Row],[RUTA]],"'"&SUBSTITUTE(Comentarios[[#This Row],[RUTA]],"!","'!"))))-1,0) -> Descuentos Tributarios | F67: Azul
A68: =SUBSTITUTE(SUBSTITUTE(_xlfn.FORMULATEXT(Comentarios[[#This Row],[Formulada]]),"=",""),"'","") -> !$B$3038 | B68: =' '!$B$3038 -> Inversiones realizadas en investigación, desarrollo tecnológico o innovación | C68: El artículo 256 del ET señala que, los contribuyentes que realicen inversiones en proyectos calificados por el Consejo Nacional de Beneficios Tributarios en Ciencia y Tecnología en Innovación como de investigación, desarrollo tecnológico o innovación, de acuerdo con los criterios y condiciones definidas por dicho Consejo, pueden tomar como descuento tributario en el impuesto de renta el 25% del valor invertido en dichos proyectos en el periodo gravable en que se realizó la donación o inversión. | D68: 500 | E68: =OFFSET(Ref_Segmento,ROW(INDIRECT(IF(SUBSTITUTE(Comentarios[[#This Row],[RUTA]]," ","")=Comentarios[[#This Row],[RUTA]],Comentarios[[#This Row],[RUTA]],"'"&SUBSTITUTE(Comentarios[[#This Row],[RUTA]],"!","'!"))))-1,0) -> Descuentos Tributarios | F68: Azul
A69: =SUBSTITUTE(SUBSTITUTE(_xlfn.FORMULATEXT(Comentarios[[#This Row],[Formulada]]),"=",""),"'","") -> !$B$3042 | B69: =' '!$B$3042 -> Donaciones hechas a programas creados por las instituciones de educación superior o por el ICETEX | C69: El numeral 1 del parágrafo 2 del artículo 256 del ET indica que, los contribuyentes que realicen donaciones a programas creados por las instituciones de educación superior o por el Icetex, dirigidas a programas de becas o créditos condonables aprobados por el Ministerio de Educación Nacional y que beneficien a estudiantes de estratos 1, 2 y 3 a través de becas de estudio total o parcial o créditos condonables que incluyan manutención, hospedaje, transporte, matrícula, útiles y/o libros; pueden tomar el 25% del valor donado en el respectivo año gravable. | D69: 559 | E69: =OFFSET(Ref_Segmento,ROW(INDIRECT(IF(SUBSTITUTE(Comentarios[[#This Row],[RUTA]]," ","")=Comentarios[[#This Row],[RUTA]],Comentarios[[#This Row],[RUTA]],"'"&SUBSTITUTE(Comentarios[[#This Row],[RUTA]],"!","'!"))))-1,0) -> Descuentos Tributarios | F69: Azul
A70: =SUBSTITUTE(SUBSTITUTE(_xlfn.FORMULATEXT(Comentarios[[#This Row],[Formulada]]),"=",""),"'","") -> !$B$3046 | B70: =' '!$B$3046 -> Donaciones al Fondo Nacional de Financiamiento para la Ciencia, la Tecnología y la Innovación, Fondo Francisco José de Caldas | C70: El numeral 2 del parágrafo 2 del artículo 256 del ET indica que, los contribuyentes que realicen donaciones al Fondo Nacional de Financiamiento para la Ciencia, la Tecnología y la Innovación, Fondo Francisco José de Caldas, y que sean destinadas al financiamiento de Programas y/o Proyectos de Ciencia, Tecnología e Innovación, de acuerdo con los criterios y las condiciones señaladas por el Consejo Nacional de Beneficios Tributarios en Ciencia, Tecnología e Innovación (CNBT); pueden tomar el 25% del valor donado en el respectivo año gravable. | D70: 546 | E70: =OFFSET(Ref_Segmento,ROW(INDIRECT(IF(SUBSTITUTE(Comentarios[[#This Row],[RUTA]]," ","")=Comentarios[[#This Row],[RUTA]],Comentarios[[#This Row],[RUTA]],"'"&SUBSTITUTE(Comentarios[[#This Row],[RUTA]],"!","'!"))))-1,0) -> Descuentos Tributarios | F70: Azul
A71: =SUBSTITUTE(SUBSTITUTE(_xlfn.FORMULATEXT(Comentarios[[#This Row],[Formulada]]),"=",""),"'","") -> !$B$3050 | B71: =' '!$B$3050 -> Remuneración por vinculación de personal con título de doctorado | C71: El numeral 3 del parágrafo 2 del artículo 256 del ET indica que, la remuneración correspondiente a la vinculación de personal con título de doctorado en las empresas contribuyentes de renta, que se realice con posterioridad a la expedición de la Ley 2130 de 2021, siempre y cuando se cumplan con los criterios y condiciones definidos por el CNBT para tal fin y su vinculación esté asociada al desarrollo de actividades de I+D+i; pueden tomar el 25% del valor donado en el respectivo año gravable. Para el caso de la vinculación de persona con títulos de Doctorado obtenidos en el exterior, se deberán cumplir los requisitos de convalidación previstos en la normatividad vigente, de manera previa a su vinculación. | D71: 713 | E71: =OFFSET(Ref_Segmento,ROW(INDIRECT(IF(SUBSTITUTE(Comentarios[[#This Row],[RUTA]]," ","")=Comentarios[[#This Row],[RUTA]],Comentarios[[#This Row],[RUTA]],"'"&SUBSTITUTE(Comentarios[[#This Row],[RUTA]],"!","'!"))))-1,0) -> Descuentos Tributarios | F71: Azul
A72: =SUBSTITUTE(SUBSTITUTE(_xlfn.FORMULATEXT(Comentarios[[#This Row],[Formulada]]),"=",""),"'","") -> !$B$3054 | B72: =' '!$B$3054 -> Donaciones realizadas a través del ICETEX para el financiamiento de educación de quienes ingresen a la Fuerza Publica | C72: El numeral 4 del parágrafo 2 del artículo 256 del ET indica que, las donaciones realizadas por intermedio del Icetex, dirigidas a programas de becas que financien la formación y educación de quienes ingresen a la Fuerza Pública que pertenezcan a los estratos 1, 2 y 3 y a los alumnos que, una vez ya vinculados a los programas, apliquen al programa de becas y cumplan con las exigencias académicas; pueden tomar el 25% del valor donado en el respectivo año gravable. | D72: 467 | E72: =OFFSET(Ref_Segmento,ROW(INDIRECT(IF(SUBSTITUTE(Comentarios[[#This Row],[RUTA]]," ","")=Comentarios[[#This Row],[RUTA]],Comentarios[[#This Row],[RUTA]],"'"&SUBSTITUTE(Comentarios[[#This Row],[RUTA]],"!","'!"))))-1,0) -> Descuentos Tributarios | F72: Azul
A73: =SUBSTITUTE(SUBSTITUTE(_xlfn.FORMULATEXT(Comentarios[[#This Row],[Formulada]]),"=",""),"'","") -> !$B$3058 | B73: =' '!$B$3058 -> Donaciones a entidades sin ánimo de lucro pertenecientes al régimen especial | C73: El inciso 1 del artículo 257 del ET indica que, los contribuyentes que realicen donaciones a entidades calificadas en el del régimen tributario especial, pueden tomar el 25% del valor donado como descuento tributario en el periodo gravable. El artículo 1.2.4.1.3 del Decreto 1625 de 2016, indica que, para que el descuento tributario proceda, las entidades que reciban las donaciones deben cumplir los requisitos señalados en el artículo 125-1 del ET. | D73: 451 | E73: =OFFSET(Ref_Segmento,ROW(INDIRECT(IF(SUBSTITUTE(Comentarios[[#This Row],[RUTA]]," ","")=Comentarios[[#This Row],[RUTA]],Comentarios[[#This Row],[RUTA]],"'"&SUBSTITUTE(Comentarios[[#This Row],[RUTA]],"!","'!"))))-1,0) -> Descuentos Tributarios | F73: Azul
A74: =SUBSTITUTE(SUBSTITUTE(_xlfn.FORMULATEXT(Comentarios[[#This Row],[Formulada]]),"=",""),"'","") -> !$B$3062 | B74: =' '!$B$3062 -> Donaciones a entidades sin ánimo de lucro no contribuyente del impuesto de renta (artículos 22 y 23 del ET) | C74: El inciso 1 del artículo 257 del ET indica que, los contribuyentes que realicen donaciones a entidades calificadas en el del régimen tributario especial, pueden tomar el 25% del valor donado como descuento tributario en el periodo gravable. El artículo 1.2.4.1.3 del Decreto 1625 de 2016, indica que, para que el descuento tributario proceda, las entidades que reciban las donaciones deben cumplir los requisitos señalados en el artículo 125-1 del ET. | D74: 451 | E74: =OFFSET(Ref_Segmento,ROW(INDIRECT(IF(SUBSTITUTE(Comentarios[[#This Row],[RUTA]]," ","")=Comentarios[[#This Row],[RUTA]],Comentarios[[#This Row],[RUTA]],"'"&SUBSTITUTE(Comentarios[[#This Row],[RUTA]],"!","'!"))))-1,0) -> Descuentos Tributarios | F74: Azul
A75: =SUBSTITUTE(SUBSTITUTE(_xlfn.FORMULATEXT(Comentarios[[#This Row],[Formulada]]),"=",""),"'","") -> !$B$3066 | B75: =' '!$B$3066 -> Donaciones de alimentos aptos para el consumo humano así como bienes de higiene y aseo | C75: El artículo 2 de la Ley 2380 de 2024, adicionó un parágrafo al artículo 257 del ET que indica que, las donaciones de alimentos aptos para el consumo humano así como bienes de higiene y aseo, a los bancos de alimentos que se encuentren constituidos como entidades sin ánimo de lucro del Régimen Tributario Especial, los bancos de alimentos que bajo la misma personería jurídica posea lo iglesia a confesión religiosa reconocida por el Ministerio del Inferior o por la ley y las asociaciones de bancos de alimentos podrán aplicar un descuento de máximo un 37% del valor donado en el año o período gravable. El valor del descuento incluye los costes y gastos de transporte incurridos para poner los alimentos en disposición del donatario, los cuales serón incluidos y desagregados por el donatario en el certificado de donación. Si el beneficio no se aplica durante el año o período gravable en el que se generó, el contribuyente podrá imputarlo dentro de su liquidación privada del mismo impuesto en periodos gravables siguientes, hasta un máximo cíe de cuatro (4) periodos. | D75: 1074 | E75: =OFFSET(Ref_Segmento,ROW(INDIRECT(IF(SUBSTITUTE(Comentarios[[#This Row],[RUTA]]," ","")=Comentarios[[#This Row],[RUTA]],Comentarios[[#This Row],[RUTA]],"'"&SUBSTITUTE(Comentarios[[#This Row],[RUTA]],"!","'!"))))-1,0) -> Descuentos Tributarios | F75: Azul
A76: =SUBSTITUTE(SUBSTITUTE(_xlfn.FORMULATEXT(Comentarios[[#This Row],[Formulada]]),"=",""),"'","") -> !$B$3070 | B76: =' '!$B$3070 -> Donaciones para el financiamiento y sostenimiento de las Instituciones Públicas de Educación Superior | C76: El parágrafo 2 del artículo 257 del ET señala que los contribuyentes que realicen donaciones para el financiamiento y sostenimiento de las instituciones públicas de educación superior a través de los cajeros automáticos, páginas web y plataformas digitales de entidades financieras vigiladas por la Superintendencia Financiera, pueden tomar el 25% del valor donado como descuento tributario en el periodo gravable. | D76: 415 | E76: =OFFSET(Ref_Segmento,ROW(INDIRECT(IF(SUBSTITUTE(Comentarios[[#This Row],[RUTA]]," ","")=Comentarios[[#This Row],[RUTA]],Comentarios[[#This Row],[RUTA]],"'"&SUBSTITUTE(Comentarios[[#This Row],[RUTA]],"!","'!"))))-1,0) -> Descuentos Tributarios | F76: Azul
A77: =SUBSTITUTE(SUBSTITUTE(_xlfn.FORMULATEXT(Comentarios[[#This Row],[Formulada]]),"=",""),"'","") -> !$B$3074 | B77: =' '!$B$3074 -> Convenios con Coldeportes para asignar becas de estudio y manutención a deportistas talento o reserva deportiva | C77: El artículo 257-1 del ET señala que, los contribuyentes del impuesto de renta pueden celebrar convenios con Coldeportes para asignar becas de estudio y manutención a deportistas talento o reserva deportiva, por las que recibirán a cambio títulos negociables para el pago del impuesto sobre la renta. Adicionalmente indica que, este descuento y en conjunto los que tratan los artículos 255, 256 y 257 del ET no podrán exceder en un 30% del impuesto de renta a cargo del contribuyente en el respectivo año gravable. | D77: 514 | E77: =OFFSET(Ref_Segmento,ROW(INDIRECT(IF(SUBSTITUTE(Comentarios[[#This Row],[RUTA]]," ","")=Comentarios[[#This Row],[RUTA]],Comentarios[[#This Row],[RUTA]],"'"&SUBSTITUTE(Comentarios[[#This Row],[RUTA]],"!","'!"))))-1,0) -> Descuentos Tributarios | F77: Azul
A78: =SUBSTITUTE(SUBSTITUTE(_xlfn.FORMULATEXT(Comentarios[[#This Row],[Formulada]]),"=",""),"'","") -> !$B$3107 | B78: =' '!$B$3107 -> 29. Tarifas | C78: Corresponde a la tarifa del impuesto sobre la renta y complementario a la que debe liquidar el impuesto; coloque equis (X) en la casilla o casillas correspondiente a la tasa o tasas que le apliquen según el caso. Si selecciona varias tarifas, entonces el prevalidador de la Dian (pero no este archivo simple de Excel) habilitará la sección "RENTA LÍQUIDA POR TARIFA" en la parte derecha de la sección 3 ERI - Renta Líquida | D78: 422 | E78: =OFFSET(Ref_Segmento,ROW(INDIRECT(IF(SUBSTITUTE(Comentarios[[#This Row],[RUTA]]," ","")=Comentarios[[#This Row],[RUTA]],Comentarios[[#This Row],[RUTA]],"'"&SUBSTITUTE(Comentarios[[#This Row],[RUTA]],"!","'!"))))-1,0) -> H1 Carátula | F78: Azul
A79: =SUBSTITUTE(SUBSTITUTE(_xlfn.FORMULATEXT(Comentarios[[#This Row],[Formulada]]),"=",""),"'","") -> !$F$3183 | B79: =' '!$F$3183 -> Cuentas por cobrar en acuerdos de concesión (modelo del activo financiero) | C79: Ver artículo 32 del ET y el Decreto 2235 de diciembre de 2017 | D79: 62 | E79: =OFFSET(Ref_Segmento,ROW(INDIRECT(IF(SUBSTITUTE(Comentarios[[#This Row],[RUTA]]," ","")=Comentarios[[#This Row],[RUTA]],Comentarios[[#This Row],[RUTA]],"'"&SUBSTITUTE(Comentarios[[#This Row],[RUTA]],"!","'!"))))-1,0) -> H2 ESF Patrimonio | F79: Azul
A80: =SUBSTITUTE(SUBSTITUTE(_xlfn.FORMULATEXT(Comentarios[[#This Row],[Formulada]]),"=",""),"'","") -> !$M$3443 | B80: =' '!$M$3443 -> 0 | C80: En el prevalidador diseñado por la Dian no se anularon las celdas de la columna "Valor fiscal" para este renglón y para el siguiente. Pero lo cierto es que fiscalmente no se toman en cuenta (ver artículo 28 del ET) | D80: 215 | E80: =OFFSET(Ref_Segmento,ROW(INDIRECT(IF(SUBSTITUTE(Comentarios[[#This Row],[RUTA]]," ","")=Comentarios[[#This Row],[RUTA]],Comentarios[[#This Row],[RUTA]],"'"&SUBSTITUTE(Comentarios[[#This Row],[RUTA]],"!","'!"))))-1,0) -> H3 ERI Renta líquida | F80: Azul
A81: =SUBSTITUTE(SUBSTITUTE(_xlfn.FORMULATEXT(Comentarios[[#This Row],[Formulada]]),"=",""),"'","") -> !$M$3473 | B81: =' '!$M$3473 -> 0 | C81: Estas operaciones deben quedar reflejadas solamente en la zona de "ganancias ocasionales", filas 507 a 515 | D81: 107 | E81: =OFFSET(Ref_Segmento,ROW(INDIRECT(IF(SUBSTITUTE(Comentarios[[#This Row],[RUTA]]," ","")=Comentarios[[#This Row],[RUTA]],Comentarios[[#This Row],[RUTA]],"'"&SUBSTITUTE(Comentarios[[#This Row],[RUTA]],"!","'!"))))-1,0) -> H3 ERI Renta líquida | F81: Azul
A82: =SUBSTITUTE(SUBSTITUTE(_xlfn.FORMULATEXT(Comentarios[[#This Row],[Formulada]]),"=",""),"'","") -> !$M$3482 | B82: =' '!$M$3482 -> 0 | C82: En el prevalidador diseñado por la Dian no se anularon las celdas de la columna "Valor fiscal" para este tipo de ingresos contables. Pero lo cierto es que fiscalmente no se toman en cuenta (ver artículo 28 del ET) | D82: 213 | E82: =OFFSET(Ref_Segmento,ROW(INDIRECT(IF(SUBSTITUTE(Comentarios[[#This Row],[RUTA]]," ","")=Comentarios[[#This Row],[RUTA]],Comentarios[[#This Row],[RUTA]],"'"&SUBSTITUTE(Comentarios[[#This Row],[RUTA]],"!","'!"))))-1,0) -> H3 ERI Renta líquida | F82: Azul
A83: =SUBSTITUTE(SUBSTITUTE(_xlfn.FORMULATEXT(Comentarios[[#This Row],[Formulada]]),"=",""),"'","") -> !$M$3496 | B83: =' '!$M$3496 -> 0 | C83: En el prevalidador diseñado por la Dian no se anularon las celdas de la columna "Valor fiscal" para este renglón y para los siguiente. Pero lo cierto es que fiscalmente no se toman en cuenta (ver artículo 28 del ET) | D83: 217 | E83: =OFFSET(Ref_Segmento,ROW(INDIRECT(IF(SUBSTITUTE(Comentarios[[#This Row],[RUTA]]," ","")=Comentarios[[#This Row],[RUTA]],Comentarios[[#This Row],[RUTA]],"'"&SUBSTITUTE(Comentarios[[#This Row],[RUTA]],"!","'!"))))-1,0) -> H3 ERI Renta líquida | F83: Azul
A84: =SUBSTITUTE(SUBSTITUTE(_xlfn.FORMULATEXT(Comentarios[[#This Row],[Formulada]]),"=",""),"'","") -> !$L$3518 | B84: =' '!$L$3518 -> 0 | C84: Este valor se refiere a la recuperación de deducciones efectuadas en el periodo, que deben ser reconocidas en la declaración de renta, pero que no tienen incidencia contable, bien sea porque su registro contable se realiza en un periodo distinto o porque la deducción solamente había tenido incidencia fiscal; siempre y cuando no hayan sido incluidas en los ajustes de otras partidas. Estos valores no se suman en la columna fiscal, porque se deben trasladar a la fila “Renta Líquida por recuperación de deducciones”. | D84: 518 | E84: =OFFSET(Ref_Segmento,ROW(INDIRECT(IF(SUBSTITUTE(Comentarios[[#This Row],[RUTA]]," ","")=Comentarios[[#This Row],[RUTA]],Comentarios[[#This Row],[RUTA]],"'"&SUBSTITUTE(Comentarios[[#This Row],[RUTA]],"!","'!"))))-1,0) -> H3 ERI Renta líquida | F84: Azul
A85: =SUBSTITUTE(SUBSTITUTE(_xlfn.FORMULATEXT(Comentarios[[#This Row],[Formulada]]),"=",""),"'","") -> !$M$3522 | B85: =' '!$M$3522 -> 0 | C85: Este renglón NO lo deben utilizar las entidades del régimen especial (ver parágrafo del artículo 1.2.1.5.1.20 del DUT 1625 de 2016 luego de ser modificado con el decreto 2150 de diciembre 20 de 2017; ver también la página 18 de la "guía para diligenciamiento del formato 2516 | D85: 277 | E85: =OFFSET(Ref_Segmento,ROW(INDIRECT(IF(SUBSTITUTE(Comentarios[[#This Row],[RUTA]]," ","")=Comentarios[[#This Row],[RUTA]],Comentarios[[#This Row],[RUTA]],"'"&SUBSTITUTE(Comentarios[[#This Row],[RUTA]],"!","'!"))))-1,0) -> H3 ERI Renta líquida | F85: Azul
A86: =SUBSTITUTE(SUBSTITUTE(_xlfn.FORMULATEXT(Comentarios[[#This Row],[Formulada]]),"=",""),"'","") -> !$M$3549 | B86: =' '!$M$3549 -> 0 | C86: En el prevalidador diseñado por la Dian no se anularon las celdas de la columna "Valor fiscal" para este tipo costos contables. Pero lo cierto es que fiscalmente no se toman en cuenta (ver artículo 59 del ET) | D86: 209 | E86: =OFFSET(Ref_Segmento,ROW(INDIRECT(IF(SUBSTITUTE(Comentarios[[#This Row],[RUTA]]," ","")=Comentarios[[#This Row],[RUTA]],Comentarios[[#This Row],[RUTA]],"'"&SUBSTITUTE(Comentarios[[#This Row],[RUTA]],"!","'!"))))-1,0) -> H3 ERI Renta líquida | F86: Azul
A87: =SUBSTITUTE(SUBSTITUTE(_xlfn.FORMULATEXT(Comentarios[[#This Row],[Formulada]]),"=",""),"'","") -> !$M$3617 | B87: =' '!$M$3617 -> 0 | C87: En el prevalidador diseñado por la Dian no se anularon las celdas de la columna "Valor fiscal" para este tipo costos contables. Pero lo cierto es que fiscalmente no se toman en cuenta (ver artículo 59 del ET) | D87: 209 | E87: =OFFSET(Ref_Segmento,ROW(INDIRECT(IF(SUBSTITUTE(Comentarios[[#This Row],[RUTA]]," ","")=Comentarios[[#This Row],[RUTA]],Comentarios[[#This Row],[RUTA]],"'"&SUBSTITUTE(Comentarios[[#This Row],[RUTA]],"!","'!"))))-1,0) -> H3 ERI Renta líquida | F87: Azul
A88: =SUBSTITUTE(SUBSTITUTE(_xlfn.FORMULATEXT(Comentarios[[#This Row],[Formulada]]),"=",""),"'","") -> !$M$3627 | B88: =' '!$M$3627 -> 0 | C88: En el prevalidador diseñado por la Dian no se anularon las celdas de la columna "Valor fiscal" para este tipo costos contables por deterioros. Pero lo cierto es que fiscalmente no se toman en cuenta (ver artículo 59 del ET) | D88: 224 | E88: =OFFSET(Ref_Segmento,ROW(INDIRECT(IF(SUBSTITUTE(Comentarios[[#This Row],[RUTA]]," ","")=Comentarios[[#This Row],[RUTA]],Comentarios[[#This Row],[RUTA]],"'"&SUBSTITUTE(Comentarios[[#This Row],[RUTA]],"!","'!"))))-1,0) -> H3 ERI Renta líquida | F88: Azul
A89: =SUBSTITUTE(SUBSTITUTE(_xlfn.FORMULATEXT(Comentarios[[#This Row],[Formulada]]),"=",""),"'","") -> !$M$3672 | B89: =' '!$M$3672 -> 0 | C89: En el prevalidador diseñado por la Dian no se anularon las celdas de la columna "Valor fiscal" para este tipo gastos contables por este tipo de depreciaciones. Pero lo cierto es que fiscalmente no se toman en cuenta (ver artículo 105 del ET) | D89: 242 | E89: =OFFSET(Ref_Segmento,ROW(INDIRECT(IF(SUBSTITUTE(Comentarios[[#This Row],[RUTA]]," ","")=Comentarios[[#This Row],[RUTA]],Comentarios[[#This Row],[RUTA]],"'"&SUBSTITUTE(Comentarios[[#This Row],[RUTA]],"!","'!"))))-1,0) -> H3 ERI Renta líquida | F89: Azul
A90: =SUBSTITUTE(SUBSTITUTE(_xlfn.FORMULATEXT(Comentarios[[#This Row],[Formulada]]),"=",""),"'","") -> !$M$3711 | B90: =' '!$M$3711 -> 0 | C90: En el prevalidador diseñado por la Dian no se anularon las celdas de la columna "Valor fiscal" para este tipo gasto contable y el de los 4 renglones siguientes Pero lo cierto es que fiscalmente no se toman en cuenta (ver artículo 105 del ET) | D90: 243 | E90: =OFFSET(Ref_Segmento,ROW(INDIRECT(IF(SUBSTITUTE(Comentarios[[#This Row],[RUTA]]," ","")=Comentarios[[#This Row],[RUTA]],Comentarios[[#This Row],[RUTA]],"'"&SUBSTITUTE(Comentarios[[#This Row],[RUTA]],"!","'!"))))-1,0) -> H3 ERI Renta líquida | F90: Azul
A91: =SUBSTITUTE(SUBSTITUTE(_xlfn.FORMULATEXT(Comentarios[[#This Row],[Formulada]]),"=",""),"'","") -> !$D$3716 | B91: =' '!$D$3716 -> Pérdida en la venta o enajenación de activos fijos | C91: Acá se terminarán relacionando las "pérdidas en venta de activo fijo" sin importar la cantidad de años que se hubiera poseído el activo | D91: 135 | E91: =OFFSET(Ref_Segmento,ROW(INDIRECT(IF(SUBSTITUTE(Comentarios[[#This Row],[RUTA]]," ","")=Comentarios[[#This Row],[RUTA]],Comentarios[[#This Row],[RUTA]],"'"&SUBSTITUTE(Comentarios[[#This Row],[RUTA]],"!","'!"))))-1,0) -> H3 ERI Renta líquida | F91: Azul
A92: =SUBSTITUTE(SUBSTITUTE(_xlfn.FORMULATEXT(Comentarios[[#This Row],[Formulada]]),"=",""),"'","") -> !$M$3727 | B92: =' '!$M$3727 -> 0 | C92: En el prevalidador diseñado por la DIAN no se anularon las celdas de la columna "Valor fiscal" para este tipo gasto contable y el de los renglones siguientes Pero lo cierto es que fiscalmente no se toman en cuenta (ver artículo 105 del ET) | D92: 242 | E92: =OFFSET(Ref_Segmento,ROW(INDIRECT(IF(SUBSTITUTE(Comentarios[[#This Row],[RUTA]]," ","")=Comentarios[[#This Row],[RUTA]],Comentarios[[#This Row],[RUTA]],"'"&SUBSTITUTE(Comentarios[[#This Row],[RUTA]],"!","'!"))))-1,0) -> H3 ERI Renta líquida | F92: Azul
A93: =SUBSTITUTE(SUBSTITUTE(_xlfn.FORMULATEXT(Comentarios[[#This Row],[Formulada]]),"=",""),"'","") -> !$M$3743 | B93: =' '!$M$3743 -> 0 | C93: En esta casilla el formato 2516 termina reflejando TODAS las rentas líquidas incluyendo los valores de los renglones 51 a 56. Pero en el renglón 72 del formulario 110 solo se se refleja la renta líquida gravable SIN INCLUIR los valores de los renglones 51 a 56 | D93: 262 | E93: =OFFSET(Ref_Segmento,ROW(INDIRECT(IF(SUBSTITUTE(Comentarios[[#This Row],[RUTA]]," ","")=Comentarios[[#This Row],[RUTA]],Comentarios[[#This Row],[RUTA]],"'"&SUBSTITUTE(Comentarios[[#This Row],[RUTA]],"!","'!"))))-1,0) -> H3 ERI Renta líquida | F93: Azul
A94: =SUBSTITUTE(SUBSTITUTE(_xlfn.FORMULATEXT(Comentarios[[#This Row],[Formulada]]),"=",""),"'","") -> !$F$4015 | B94: =' '!$F$4015 -> Tipo de diferencia | C94: Seleccione el tipo de diferencia que corresponda para cada una de las partidas. Tenga en cuenta que, las diferencias temporarias son las que dan lugar al cálculo del impuesto diferido, en tanto que, las diferencias permanentes son aquellas sobre las que no se calcula impuesto diferido, bien sea porque no procede o porque la contribuyente estima que por sus condiciones específicas no puede revertir la diferencia temporaria. | D94: 426 | E94: =OFFSET(Ref_Segmento,ROW(INDIRECT(IF(SUBSTITUTE(Comentarios[[#This Row],[RUTA]]," ","")=Comentarios[[#This Row],[RUTA]],Comentarios[[#This Row],[RUTA]],"'"&SUBSTITUTE(Comentarios[[#This Row],[RUTA]],"!","'!"))))-1,0) -> H4 Impuesto diferido | F94: Azul
A95: =SUBSTITUTE(SUBSTITUTE(_xlfn.FORMULATEXT(Comentarios[[#This Row],[Formulada]]),"=",""),"'","") -> !$G$4015 | B95: =' '!$G$4015 -> Diferencia Temporaria | C95: Las diferencias que presenten las bases contables y las bases fiscales y que sean catalogadas como "temporarias", son las que dan lugar al cálculo del impuesto diferido. | D95: 169 | E95: =OFFSET(Ref_Segmento,ROW(INDIRECT(IF(SUBSTITUTE(Comentarios[[#This Row],[RUTA]]," ","")=Comentarios[[#This Row],[RUTA]],Comentarios[[#This Row],[RUTA]],"'"&SUBSTITUTE(Comentarios[[#This Row],[RUTA]],"!","'!"))))-1,0) -> H4 Impuesto diferido | F95: Azul
A96: =SUBSTITUTE(SUBSTITUTE(_xlfn.FORMULATEXT(Comentarios[[#This Row],[Formulada]]),"=",""),"'","") -> !$I$4015 | B96: =' '!$I$4015 -> Saldo impuesto diferido a 31 -DIC vigencia actual | C96: Los datos reportados en estas columnas deben corresponder a los saldos contables durante esta vigencia, para el caso, año gravable 2024. | D96: 136 | E96: =OFFSET(Ref_Segmento,ROW(INDIRECT(IF(SUBSTITUTE(Comentarios[[#This Row],[RUTA]]," ","")=Comentarios[[#This Row],[RUTA]],Comentarios[[#This Row],[RUTA]],"'"&SUBSTITUTE(Comentarios[[#This Row],[RUTA]],"!","'!"))))-1,0) -> H4 Impuesto diferido | F96: Azul
A97: =SUBSTITUTE(SUBSTITUTE(_xlfn.FORMULATEXT(Comentarios[[#This Row],[Formulada]]),"=",""),"'","") -> !$J$4015 | B97: =' '!$J$4015 -> Saldo impuesto diferido a 31 -DIC vigencia anterior | C97: Los datos reportados en estas columnas deben corresponder a los saldos contables durante la vigencia anterior, para el caso, año gravable 2023. | D97: 143 | E97: =OFFSET(Ref_Segmento,ROW(INDIRECT(IF(SUBSTITUTE(Comentarios[[#This Row],[RUTA]]," ","")=Comentarios[[#This Row],[RUTA]],Comentarios[[#This Row],[RUTA]],"'"&SUBSTITUTE(Comentarios[[#This Row],[RUTA]],"!","'!"))))-1,0) -> H4 Impuesto diferido | F97: Azul
A98: =SUBSTITUTE(SUBSTITUTE(_xlfn.FORMULATEXT(Comentarios[[#This Row],[Formulada]]),"=",""),"'","") -> !$K$4015 | B98: =' '!$K$4015 -> Variación | C98: El valor registrado en esta columna corresponde a la diferencia entre los datos reportados en las columnas “Saldo impuesto diferido a 31-DIC vigencia actual” y “Saldo impuesto diferido a 31-DIC vigencia anterior”. | D98: 215 | E98: =OFFSET(Ref_Segmento,ROW(INDIRECT(IF(SUBSTITUTE(Comentarios[[#This Row],[RUTA]]," ","")=Comentarios[[#This Row],[RUTA]],Comentarios[[#This Row],[RUTA]],"'"&SUBSTITUTE(Comentarios[[#This Row],[RUTA]],"!","'!"))))-1,0) -> H4 Impuesto diferido | F98: Azul
A99: =SUBSTITUTE(SUBSTITUTE(_xlfn.FORMULATEXT(Comentarios[[#This Row],[Formulada]]),"=",""),"'","") -> !$L$4015 | B99: =' '!$L$4015 -> Tasa fiscal aplicada | C99: La tasa fiscal aplicada corresponde a la tasa fiscal con la que se espera revertir la diferencia y debe coincidir con el resultado de dividir el valor reportado en la columna “Saldo impuesto diferido a 31-DIC vigencia actual” por el valor de la columna “Diferencia Temporaria”. Registre en cada una de las celdas de esta columna la tarifa del impuesto de renta con la cual se espera revertir la diferencia. | D99: 408 | E99: =OFFSET(Ref_Segmento,ROW(INDIRECT(IF(SUBSTITUTE(Comentarios[[#This Row],[RUTA]]," ","")=Comentarios[[#This Row],[RUTA]],Comentarios[[#This Row],[RUTA]],"'"&SUBSTITUTE(Comentarios[[#This Row],[RUTA]],"!","'!"))))-1,0) -> H4 Impuesto diferido | F99: Azul
A100: =SUBSTITUTE(SUBSTITUTE(_xlfn.FORMULATEXT(Comentarios[[#This Row],[Formulada]]),"=",""),"'","") -> !$J$4068 | B100: =' '!$J$4068 -> Pérdida fiscal acumulada por compensar al final del periodo | C100: El valor registrado en esta columna se determina automáticamente y corresponde al resultado de sumar el saldo por compensar al inicio del periodo, la pérdida fiscal generada en el periodo y el mayor valor por correcciones de las declaraciones y restar la pérdida fiscal compensada en el periodo, el valor no compensado por caducidad del término para compensar y el menor valor producto de correcciones a las declaraciones. | D100: 422 | E100: =OFFSET(Ref_Segmento,ROW(INDIRECT(IF(SUBSTITUTE(Comentarios[[#This Row],[RUTA]]," ","")=Comentarios[[#This Row],[RUTA]],Comentarios[[#This Row],[RUTA]],"'"&SUBSTITUTE(Comentarios[[#This Row],[RUTA]],"!","'!"))))-1,0) -> H4 Impuesto diferido | F100: Azul
A101: =SUBSTITUTE(SUBSTITUTE(_xlfn.FORMULATEXT(Comentarios[[#This Row],[Formulada]]),"=",""),"'","") -> !$K$4068 | B101: =' '!$K$4068 -> Saldo activo por impuesto diferido al final del periodo | C101: La columna “Saldo activo por impuesto diferido al final del periodo” corresponde al valor calculado y contabilizado de conformidad con el tratamiento previsto para el impuesto a las ganancias contemplados en la NIC 12 y en la Sección 29 de la NIIF para Pymes. | D101: 259 | E101: =OFFSET(Ref_Segmento,ROW(INDIRECT(IF(SUBSTITUTE(Comentarios[[#This Row],[RUTA]]," ","")=Comentarios[[#This Row],[RUTA]],Comentarios[[#This Row],[RUTA]],"'"&SUBSTITUTE(Comentarios[[#This Row],[RUTA]],"!","'!"))))-1,0) -> H4 Impuesto diferido | F101: Azul
A102: =SUBSTITUTE(SUBSTITUTE(_xlfn.FORMULATEXT(Comentarios[[#This Row],[Formulada]]),"=",""),"'","") -> !$B$4070 | B102: =' '!$B$4070 -> 2017 | C102: El saldo acumulado a 31 de diciembre de 2016, resultante de la aplicación del procedimiento de cálculo previsto en el numeral 5 del artículo 290 del ET, debe ser incluido en la celda “Pérdida fiscal acumulada por compensar al inicio del periodo” del año 2017. | D102: 260 | E102: =OFFSET(Ref_Segmento,ROW(INDIRECT(IF(SUBSTITUTE(Comentarios[[#This Row],[RUTA]]," ","")=Comentarios[[#This Row],[RUTA]],Comentarios[[#This Row],[RUTA]],"'"&SUBSTITUTE(Comentarios[[#This Row],[RUTA]],"!","'!"))))-1,0) -> H4 Impuesto diferido | F102: Azul
A103: =SUBSTITUTE(SUBSTITUTE(_xlfn.FORMULATEXT(Comentarios[[#This Row],[Formulada]]),"=",""),"'","") -> !$J$4086 | B103: =' '!$J$4086 -> Pérdida fiscal acumulada por compensar al final del periodo | C103: El valor registrado en esta columna se determina automáticamente y corresponde al resultado de sumar el saldo por compensar al inicio del periodo, la pérdida fiscal generada en el periodo y el mayor valor por correcciones de las declaraciones y restar la pérdida fiscal compensada en el periodo, el valor no compensado por caducidad del término para compensar y el menor valor producto de correcciones a las declaraciones. | D103: 422 | E103: =OFFSET(Ref_Segmento,ROW(INDIRECT(IF(SUBSTITUTE(Comentarios[[#This Row],[RUTA]]," ","")=Comentarios[[#This Row],[RUTA]],Comentarios[[#This Row],[RUTA]],"'"&SUBSTITUTE(Comentarios[[#This Row],[RUTA]],"!","'!"))))-1,0) -> H4 Impuesto diferido | F103: Azul
A104: =SUBSTITUTE(SUBSTITUTE(_xlfn.FORMULATEXT(Comentarios[[#This Row],[Formulada]]),"=",""),"'","") -> !$K$4086 | B104: =' '!$K$4086 -> Saldo activo por impuesto diferido al final del periodo | C104: La columna “Saldo activo por impuesto diferido al final del periodo” corresponde al valor calculado y contabilizado de conformidad con el tratamiento previsto para el impuesto a las ganancias contemplados en la NIC 12 y en la Sección 29 de la NIIF para Pymes. | D104: 259 | E104: =OFFSET(Ref_Segmento,ROW(INDIRECT(IF(SUBSTITUTE(Comentarios[[#This Row],[RUTA]]," ","")=Comentarios[[#This Row],[RUTA]],Comentarios[[#This Row],[RUTA]],"'"&SUBSTITUTE(Comentarios[[#This Row],[RUTA]],"!","'!"))))-1,0) -> H4 Impuesto diferido | F104: Azul
A105: =SUBSTITUTE(SUBSTITUTE(_xlfn.FORMULATEXT(Comentarios[[#This Row],[Formulada]]),"=",""),"'","") -> !$B$4088 | B105: =' '!$B$4088 -> 2017 | C105: El saldo acumulado a 31 de diciembre de 2016, resultante de la aplicación del procedimiento de cálculo previsto en el numeral 5 del artículo 290 del ET, debe ser incluido en la celda “Pérdida fiscal acumulada por compensar al inicio del periodo” del año 2017. | D105: 260 | E105: =OFFSET(Ref_Segmento,ROW(INDIRECT(IF(SUBSTITUTE(Comentarios[[#This Row],[RUTA]]," ","")=Comentarios[[#This Row],[RUTA]],Comentarios[[#This Row],[RUTA]],"'"&SUBSTITUTE(Comentarios[[#This Row],[RUTA]],"!","'!"))))-1,0) -> H4 Impuesto diferido | F105: Azul
A106: =SUBSTITUTE(SUBSTITUTE(_xlfn.FORMULATEXT(Comentarios[[#This Row],[Formulada]]),"=",""),"'","") -> !$D$4105 | B106: =' '!$D$4105 -> Pasivo por ingreso diferido | C106: En esta sección se deben diligenciar los pagos recibidos por anticipado; se deberá registrar: el saldo inicial, su disminución por su reconocimiento como devengo en el ingreso del periodo y su incremento con el valor generado en el periodo, con lo cual se obtiene el saldo al final del mismo. Esta información corresponde a las cifras registradas en la contabilidad. | D106: 367 | E106: =OFFSET(Ref_Segmento,ROW(INDIRECT(IF(SUBSTITUTE(Comentarios[[#This Row],[RUTA]]," ","")=Comentarios[[#This Row],[RUTA]],Comentarios[[#This Row],[RUTA]],"'"&SUBSTITUTE(Comentarios[[#This Row],[RUTA]],"!","'!"))))-1,0) -> H5 Ingresos y fact. | F106: Azul
A107: =SUBSTITUTE(SUBSTITUTE(_xlfn.FORMULATEXT(Comentarios[[#This Row],[Formulada]]),"=",""),"'","") -> !$H$4106 | B107: =' '!$H$4106 -> Devengada como ingreso en periodos anteriores | C107: En esta columna se debe registrar el valor facturado en el periodo que corresponda a ingresos devengados en periodos anteriores. | D107: 129 | E107: =OFFSET(Ref_Segmento,ROW(INDIRECT(IF(SUBSTITUTE(Comentarios[[#This Row],[RUTA]]," ","")=Comentarios[[#This Row],[RUTA]],Comentarios[[#This Row],[RUTA]],"'"&SUBSTITUTE(Comentarios[[#This Row],[RUTA]],"!","'!"))))-1,0) -> H5 Ingresos y fact. | F107: Azul
A108: =SUBSTITUTE(SUBSTITUTE(_xlfn.FORMULATEXT(Comentarios[[#This Row],[Formulada]]),"=",""),"'","") -> !$I$4106 | B108: =' '!$I$4106 -> Devengada como ingresos del periodo | C108: En esta columna se debe registrar el valor facturado y devengado como ingreso en el periodo. | D108: 92 | E108: =OFFSET(Ref_Segmento,ROW(INDIRECT(IF(SUBSTITUTE(Comentarios[[#This Row],[RUTA]]," ","")=Comentarios[[#This Row],[RUTA]],Comentarios[[#This Row],[RUTA]],"'"&SUBSTITUTE(Comentarios[[#This Row],[RUTA]],"!","'!"))))-1,0) -> H5 Ingresos y fact. | F108: Azul
A109: =SUBSTITUTE(SUBSTITUTE(_xlfn.FORMULATEXT(Comentarios[[#This Row],[Formulada]]),"=",""),"'","") -> !$J$4106 | B109: =' '!$J$4106 -> Registrada como pasivo por ingreso diferido | C109: En esta columna se debe registrar el valor facturado en el periodo y que dio origen a pasivo por ingreso diferido, porque no cumplen requisitos para su registro como ingreso devengado en el periodo. | D109: 198 | E109: =OFFSET(Ref_Segmento,ROW(INDIRECT(IF(SUBSTITUTE(Comentarios[[#This Row],[RUTA]]," ","")=Comentarios[[#This Row],[RUTA]],Comentarios[[#This Row],[RUTA]],"'"&SUBSTITUTE(Comentarios[[#This Row],[RUTA]],"!","'!"))))-1,0) -> H5 Ingresos y fact. | F109: Azul
A110: =SUBSTITUTE(SUBSTITUTE(_xlfn.FORMULATEXT(Comentarios[[#This Row],[Formulada]]),"=",""),"'","") -> !$L$4106 | B110: =' '!$L$4106 -> Valor total | C110: En esta columna se debe registrar el valor facturado en el periodo pero que no dio lugar a ingreso diferido (por cuanto no hubo pago o anticipo) ni a ingreso devengado por no cumplir los requisitos para ello. | D110: 208 | E110: =OFFSET(Ref_Segmento,ROW(INDIRECT(IF(SUBSTITUTE(Comentarios[[#This Row],[RUTA]]," ","")=Comentarios[[#This Row],[RUTA]],Comentarios[[#This Row],[RUTA]],"'"&SUBSTITUTE(Comentarios[[#This Row],[RUTA]],"!","'!"))))-1,0) -> H5 Ingresos y fact. | F110: Azul
A111: =SUBSTITUTE(SUBSTITUTE(_xlfn.FORMULATEXT(Comentarios[[#This Row],[Formulada]]),"=",""),"'","") -> !$M$4106 | B111: =' '!$M$4106 -> Sin facturar | C111: En esta columna se debe registrar el valor del ingreso contable devengado en el periodo, pero que no ha sido facturado. | D111: 119 | E111: =OFFSET(Ref_Segmento,ROW(INDIRECT(IF(SUBSTITUTE(Comentarios[[#This Row],[RUTA]]," ","")=Comentarios[[#This Row],[RUTA]],Comentarios[[#This Row],[RUTA]],"'"&SUBSTITUTE(Comentarios[[#This Row],[RUTA]],"!","'!"))))-1,0) -> H5 Ingresos y fact. | F111: Azul
A112: =SUBSTITUTE(SUBSTITUTE(_xlfn.FORMULATEXT(Comentarios[[#This Row],[Formulada]]),"=",""),"'","") -> !$N$4106 | B112: =' '!$N$4106 -> Facturado periodos anteriores | C112: En esta columna se debe registrar el valor del ingreso contable devengado en el periodo, que había sido facturado en periodos anteriores. | D112: 137 | E112: =OFFSET(Ref_Segmento,ROW(INDIRECT(IF(SUBSTITUTE(Comentarios[[#This Row],[RUTA]]," ","")=Comentarios[[#This Row],[RUTA]],Comentarios[[#This Row],[RUTA]],"'"&SUBSTITUTE(Comentarios[[#This Row],[RUTA]],"!","'!"))))-1,0) -> H5 Ingresos y fact. | F112: Azul
A113: =SUBSTITUTE(SUBSTITUTE(_xlfn.FORMULATEXT(Comentarios[[#This Row],[Formulada]]),"=",""),"'","") -> !$I$4109 | B113: =' '!$I$4109 -> 0 | C113: Esta celda se encuentra prediligenciada, edítela si lo considera necesario. | D113: 75 | E113: =OFFSET(Ref_Segmento,ROW(INDIRECT(IF(SUBSTITUTE(Comentarios[[#This Row],[RUTA]]," ","")=Comentarios[[#This Row],[RUTA]],Comentarios[[#This Row],[RUTA]],"'"&SUBSTITUTE(Comentarios[[#This Row],[RUTA]],"!","'!"))))-1,0) -> H5 Ingresos y fact. | F113: Azul
A114: =SUBSTITUTE(SUBSTITUTE(_xlfn.FORMULATEXT(Comentarios[[#This Row],[Formulada]]),"=",""),"'","") -> !$I$4110 | B114: =' '!$I$4110 -> 0 | C114: Esta celda se encuentra prediligenciada, edítela si lo considera necesario. | D114: 75 | E114: =OFFSET(Ref_Segmento,ROW(INDIRECT(IF(SUBSTITUTE(Comentarios[[#This Row],[RUTA]]," ","")=Comentarios[[#This Row],[RUTA]],Comentarios[[#This Row],[RUTA]],"'"&SUBSTITUTE(Comentarios[[#This Row],[RUTA]],"!","'!"))))-1,0) -> H5 Ingresos y fact. | F114: Azul
A115: =SUBSTITUTE(SUBSTITUTE(_xlfn.FORMULATEXT(Comentarios[[#This Row],[Formulada]]),"=",""),"'","") -> !$I$4113 | B115: =' '!$I$4113 -> 0 | C115: Esta celda se encuentra prediligenciada, edítela si lo considera necesario. | D115: 75 | E115: =OFFSET(Ref_Segmento,ROW(INDIRECT(IF(SUBSTITUTE(Comentarios[[#This Row],[RUTA]]," ","")=Comentarios[[#This Row],[RUTA]],Comentarios[[#This Row],[RUTA]],"'"&SUBSTITUTE(Comentarios[[#This Row],[RUTA]],"!","'!"))))-1,0) -> H5 Ingresos y fact. | F115: Azul
A116: =SUBSTITUTE(SUBSTITUTE(_xlfn.FORMULATEXT(Comentarios[[#This Row],[Formulada]]),"=",""),"'","") -> !$D$4121 | B116: =' '!$D$4121 -> DATOS CONTABLES | C116: Para diligenciar esta sección, tenga en cuenta, el importe al comienzo del periodo de cada uno de los elementos que componen la propiedad planta y equipo incluidos los activos adquiridos mediante arrendamiento financiero o leasing, separando el componente del costo de los ajustes por revaluación, así como los incrementos y las disminuciones por transferencias y/o adquisiciones y/o por cambios en el valor razonable que hayan presentado en el periodo. Además, registre según corresponda, el saldo al final del periodo por concepto de depreciación acumulada, así como las estimaciones por deterioro acumuladas, para determinar de esta forma el importe neto al final del periodo, igualmente desagregado en el costo y los ajustes por revaluaciones o re-expresiones. Este resultado debe coincidir con el valor reportado en la sección ESF – Patrimonio. Asimismo, registre el gasto por depreciación del periodo separando el componente del costo de los ajustes por revaluación o reexpresión, así como el gasto por deterioro y los ingresos por recuperación de deterioro, lo cual debe corresponder a la sumatoria de los valores contables registrados por estos mismos conceptos en la sección ERI- Renta Líquida, y que se encuentran desagregados en costos, gastos de administración y gastos de distribución y ventas. | D116: 1313 | E116: =OFFSET(Ref_Segmento,ROW(INDIRECT(IF(SUBSTITUTE(Comentarios[[#This Row],[RUTA]]," ","")=Comentarios[[#This Row],[RUTA]],Comentarios[[#This Row],[RUTA]],"'"&SUBSTITUTE(Comentarios[[#This Row],[RUTA]],"!","'!"))))-1,0) -> H6 Activos Fijos | F116: Azul
A117: =SUBSTITUTE(SUBSTITUTE(_xlfn.FORMULATEXT(Comentarios[[#This Row],[Formulada]]),"=",""),"'","") -> !$X$4121 | B117: =' '!$X$4121 -> DATOS FISCALES | C117: En esta sección se deben reportar los datos fiscales de acuerdo con los conceptos solicitados, considerando las reglas fiscales aplicables para la medición y reconocimiento, tanto de los activos como de su depreciación y amortización. Es importante tener en cuenta el régimen de transición previsto en el artículo 290 del ET, los efectos del estado de situación financiera de apertura (artículo 289 ET) así como las reglas para la medición de los activos y pasivos en moneda extranjera (artículo 288 ET). | D117: 505 | E117: =OFFSET(Ref_Segmento,ROW(INDIRECT(IF(SUBSTITUTE(Comentarios[[#This Row],[RUTA]]," ","")=Comentarios[[#This Row],[RUTA]],Comentarios[[#This Row],[RUTA]],"'"&SUBSTITUTE(Comentarios[[#This Row],[RUTA]],"!","'!"))))-1,0) -> H6 Activos Fijos | F117: Azul
A118: =SUBSTITUTE(SUBSTITUTE(_xlfn.FORMULATEXT(Comentarios[[#This Row],[Formulada]]),"=",""),"'","") -> !$U$4122 | B118: =' '!$U$4122 -> Datos informativos | C118: En las columnas que conforman este segmento, se deberá registrar el valor bruto de los activos que posee la empresa adquiridos mediante arrendamiento financiero o leasing. Igualmente se debe reportar el valor del saldo acumulado por desmantelamiento, así como el valor acumulado del mayor valor de los activos por revaluación, al final del periodo. | D118: 349 | E118: =OFFSET(Ref_Segmento,ROW(INDIRECT(IF(SUBSTITUTE(Comentarios[[#This Row],[RUTA]]," ","")=Comentarios[[#This Row],[RUTA]],Comentarios[[#This Row],[RUTA]],"'"&SUBSTITUTE(Comentarios[[#This Row],[RUTA]],"!","'!"))))-1,0) -> H6 Activos Fijos | F118: Azul
A119: =SUBSTITUTE(SUBSTITUTE(_xlfn.FORMULATEXT(Comentarios[[#This Row],[Formulada]]),"=",""),"'","") -> !$AE$4122 | B119: =' '!$AE$4122 -> Datos Informativos: Valor activos adquiridos mediante arrendamiento financiero | C119: En las columnas de esta sección se debe registrar el valor fiscal de los activos que posee la empresa y que fueron adquiridos mediante arrendamiento financiero, así como el valor de la depreciación y /o amortización acumulada al final del periodo, y el valor del gasto solicitado fiscalmente por concepto de depreciación para esta clase de activos. | D119: 348 | E119: =OFFSET(Ref_Segmento,ROW(INDIRECT(IF(SUBSTITUTE(Comentarios[[#This Row],[RUTA]]," ","")=Comentarios[[#This Row],[RUTA]],Comentarios[[#This Row],[RUTA]],"'"&SUBSTITUTE(Comentarios[[#This Row],[RUTA]],"!","'!"))))-1,0) -> H6 Activos Fijos | F119: Azul
A120: =SUBSTITUTE(SUBSTITUTE(_xlfn.FORMULATEXT(Comentarios[[#This Row],[Formulada]]),"=",""),"'","") -> !$B$4384 | B120: =' '!$B$4384 -> ¿La declaración de renta del año gravable del 2024 puede quedar en firme dentro de los 6 meses siguientes a su presentación? | C120: Mediante el artículo 69 de la Ley 2294 de 2023, se prorrogó el beneficio de auditoría establecido en el artículo 689-3 del ET, el cual indica que, los contribuyentes del impuesto de renta que incrementen su impuesto neto de renta en por lo menos un porcentaje mínimo del 35%, en relación con el impuesto neto de renta del año inmediatamente anterior, quedará en firme si dentro de los seis (6) meses siguientes a la fecha de su presentación no se hubiere notificado emplazamiento para corregir o requerimiento especial o emplazamiento especial o liquidación provisional, siempre que la declaración sea debidamente presentada en forma oportuna y el pago se realice en los plazos que para tal efecto fije el Gobierno nacional. Para que este beneficio proceda, también es necesario que el impuesto neto de renta del año gravable 2023 haya sido igual o superior al equivalente de 71 UVT. | D120: 884 | E120: =OFFSET(Ref_Segmento,ROW(INDIRECT(IF(SUBSTITUTE(Comentarios[[#This Row],[RUTA]]," ","")=Comentarios[[#This Row],[RUTA]],Comentarios[[#This Row],[RUTA]],"'"&SUBSTITUTE(Comentarios[[#This Row],[RUTA]],"!","'!"))))-1,0) -> Beneficios de Auditoría | F120: Azul
A121: =SUBSTITUTE(SUBSTITUTE(_xlfn.FORMULATEXT(Comentarios[[#This Row],[Formulada]]),"=",""),"'","") -> !$B$4385 | B121: =' '!$B$4385 -> ¿La declaración de renta del año gravable del 2024 puede quedar en firme dentro de los 12 meses siguientes a su presentación? | C121: Mediante el artículo 69 de la Ley 2294 de 2023, se prorrogó el beneficio de auditoría establecido en el artículo 689-3 del ET, el cual indica que, los contribuyentes del impuesto de renta que incrementen su impuesto neto de renta en por lo menos un porcentaje mínimo del 25%, en relación con el impuesto neto de renta del año inmediatamente anterior, quedará en firme si dentro de los doce (12) meses siguientes a la fecha de su presentación no se hubiere notificado emplazamiento para corregir o requerimiento especial o emplazamiento especial o liquidación provisional, siempre que la declaración sea debidamente presentada en forma oportuna y el pago se realice en los plazos que para tal efecto fije el Gobierno nacional. Para que este beneficio proceda, también es necesario que el impuesto neto de renta del año gravable 2023 haya sido igual o superior al equivalente de 71 UVT. | D121: 885 | E121: =OFFSET(Ref_Segmento,ROW(INDIRECT(IF(SUBSTITUTE(Comentarios[[#This Row],[RUTA]]," ","")=Comentarios[[#This Row],[RUTA]],Comentarios[[#This Row],[RUTA]],"'"&SUBSTITUTE(Comentarios[[#This Row],[RUTA]],"!","'!"))))-1,0) -> Beneficios de Auditoría | F121: Azul

Sheet 
BC1: Conteo | BD1: Segmento | BE1: Visible | BF1: Alto_Celdas | BG1: Celda_Filtro
BE2: 1 | BF2: 15 | BG2: 1
BE3: 1 | BF3: 15 | BG3: 1
BE4: 1 | BF4: 15 | BG4: 1
BE5: 1 | BF5: 12 | BG5: 1
A6: 1 | B6: 3 | C6: 35 | D6: 11 | E6: 4 | F6: 10 | G6: 5 | H6: 11 | I6: 11 | J6: 11 | K6: 12 | L6: 10 | M6: 13 | N6: 13 | O6: 20 | P6: 11 | Q6: 3 | R6: 11 | BD6: Fondo_Menu | BE6: 0 | BG6: =(BD6=Parametros[Segmento])*(BE6>0)*(BF6>0) -> 0
BD7: Fondo_Menu | BE7: 0 | BF7: 20 | BG7: =(BD7=Parametros[Segmento])*(BE7>0)*(BF7>0) -> 0
BD8: Fondo_Menu | BE8: 1 | BF8: 10 | BG8: =(BD8=Parametros[Segmento])*(BE8>0)*(BF8>0) -> 1
BD9: Fondo_Menu | BE9: 1 | BF9: 20 | BG9: =(BD9=Parametros[Segmento])*(BE9>0)*(BF9>0) -> 1
BD10: Fondo_Menu | BE10: 1 | BF10: 20 | BG10: =(BD10=Parametros[Segmento])*(BE10>0)*(BF10>0) -> 1
BD11: Fondo_Menu | BE11: 1 | BF11: 20 | BG11: =(BD11=Parametros[Segmento])*(BE11>0)*(BF11>0) -> 1
BD12: Fondo_Menu | BE12: 1 | BF12: 20 | BG12: =(BD12=Parametros[Segmento])*(BE12>0)*(BF12>0) -> 1
BD13: Fondo_Menu | BE13: 1 | BF13: 20 | BG13: =(BD13=Parametros[Segmento])*(BE13>0)*(BF13>0) -> 1
BD14: Fondo_Menu | BE14: 1 | BF14: 20 | BG14: =(BD14=Parametros[Segmento])*(BE14>0)*(BF14>0) -> 1
BD15: Fondo_Menu | BE15: 1 | BF15: 20 | BG15: =(BD15=Parametros[Segmento])*(BE15>0)*(BF15>0) -> 1
BD16: Fondo_Menu | BE16: 1 | BF16: 20 | BG16: =(BD16=Parametros[Segmento])*(BE16>0)*(BF16>0) -> 1
BD17: Fondo_Menu | BE17: 1 | BF17: 20 | BG17: =(BD17=Parametros[Segmento])*(BE17>0)*(BF17>0) -> 1
BD18: Fondo_Menu | BE18: 1 | BF18: 20 | BG18: =(BD18=Parametros[Segmento])*(BE18>0)*(BF18>0) -> 1
BD19: Fondo_Menu | BE19: 1 | BF19: 20 | BG19: =(BD19=Parametros[Segmento])*(BE19>0)*(BF19>0) -> 1
BD20: Fondo_Menu | BE20: 1 | BF20: 20 | BG20: =(BD20=Parametros[Segmento])*(BE20>0)*(BF20>0) -> 1
BD21: Fondo_Menu | BE21: 1 | BF21: 20 | BG21: =(BD21=Parametros[Segmento])*(BE21>0)*(BF21>0) -> 1
BD22: Fondo_Menu | BE22: 1 | BF22: 20 | BG22: =(BD22=Parametros[Segmento])*(BE22>0)*(BF22>0) -> 1
BD23: Fondo_Menu | BE23: 1 | BF23: 20 | BG23: =(BD23=Parametros[Segmento])*(BE23>0)*(BF23>0) -> 1
BD24: Fondo_Menu | BE24: 1 | BF24: 20 | BG24: =(BD24=Parametros[Segmento])*(BE24>0)*(BF24>0) -> 1
BD25: Fondo_Menu | BE25: 1 | BF25: 20 | BG25: =(BD25=Parametros[Segmento])*(BE25>0)*(BF25>0) -> 1
BD26: Fondo_Menu | BE26: 1 | BF26: 20 | BG26: =(BD26=Parametros[Segmento])*(BE26>0)*(BF26>0) -> 1
BD27: Fondo_Menu | BE27: 1 | BF27: 20 | BG27: =(BD27=Parametros[Segmento])*(BE27>0)*(BF27>0) -> 1
BD28: Fondo_Menu | BE28: 1 | BF28: 20 | BG28: =(BD28=Parametros[Segmento])*(BE28>0)*(BF28>0) -> 1
BD29: Fondo_Menu | BE29: 1 | BF29: 20 | BG29: =(BD29=Parametros[Segmento])*(BE29>0)*(BF29>0) -> 1
BD30: Fondo_Menu | BE30: 1 | BF30: 20 | BG30: =(BD30=Parametros[Segmento])*(BE30>0)*(BF30>0) -> 1
BD31: Fondo_Menu | BE31: 1 | BF31: 20 | BG31: =(BD31=Parametros[Segmento])*(BE31>0)*(BF31>0) -> 1
BD32: Fondo_Menu | BE32: 1 | BF32: 20 | BG32: =(BD32=Parametros[Segmento])*(BE32>0)*(BF32>0) -> 1
BD33: Fondo_Menu | BE33: 1 | BF33: 20 | BG33: =(BD33=Parametros[Segmento])*(BE33>0)*(BF33>0) -> 1
BD34: Fondo_Menu | BE34: 1 | BF34: 20 | BG34: =(BD34=Parametros[Segmento])*(BE34>0)*(BF34>0) -> 1
BD35: Fondo_Menu | BE35: 1 | BF35: 20 | BG35: =(BD35=Parametros[Segmento])*(BE35>0)*(BF35>0) -> 1
BD36: Fondo_Menu | BE36: 1 | BF36: 20 | BG36: =(BD36=Parametros[Segmento])*(BE36>0)*(BF36>0) -> 1
BD37: Fondo_Menu | BE37: 1 | BF37: 20 | BG37: =(BD37=Parametros[Segmento])*(BE37>0)*(BF37>0) -> 1
BD38: Fondo_Menu | BE38: 1 | BF38: 20 | BG38: =(BD38=Parametros[Segmento])*(BE38>0)*(BF38>0) -> 1
BD39: Fondo_Menu | BE39: 1 | BF39: 20 | BG39: =(BD39=Parametros[Segmento])*(BE39>0)*(BF39>0) -> 1
BD40: Fondo_Menu | BE40: 1 | BF40: 20 | BG40: =(BD40=Parametros[Segmento])*(BE40>0)*(BF40>0) -> 1
B41: 2.33 | C41: 34.78 | D41: 21.78 | E41: 21.78 | F41: 21.78 | G41: 21.78 | H41: 21.78 | I41: 21.78 | J41: 21.78 | K41: 21.78 | M41: 0 | N41: 0 | O41: 0 | P41: 0 | Q41: 0 | R41: 0 | S41: 0 | T41: 0 | U41: 0 | V41: 0 | W41: 0 | X41: 0 | Y41: 0 | Z41: 0 | AA41: 0 | AB41: 0 | AC41: 0 | AD41: 0 | AE41: 0 | AF41: 0 | AG41: 0 | BD41: Intereses presuntivos | BE41: 0 | BF41: 20 | BG41: =(BD41=Parametros[Segmento])*(BE41>0)*(BF41>0) -> 0
BD42: Intereses presuntivos | BE42: 1 | BF42: 10 | BG42: =(BD42=Parametros[Segmento])*(BE42>0)*(BF42>0) -> 0
BD43: Intereses presuntivos | BE43: 1 | BF43: 30 | BG43: =(BD43=Parametros[Segmento])*(BE43>0)*(BF43>0) -> 0
C44: Intereses Presuntivos | BD44: Intereses presuntivos | BE44: 1 | BF44: 30 | BG44: =(BD44=Parametros[Segmento])*(BE44>0)*(BF44>0) -> 0
BD45: Intereses presuntivos | BE45: 1 | BF45: 9.6 | BG45: =(BD45=Parametros[Segmento])*(BE45>0)*(BF45>0) -> 0
C46: Tasa de interés presuntivo anual para el año gravable 2024 | K46: 0.1269 | BD46: Intereses presuntivos | BE46: 1 | BF46: 30 | BG46: =(BD46=Parametros[Segmento])*(BE46>0)*(BF46>0) -> 0
C47: Tasa de interés presuntivo mensual para el año gravable 2024 | K47: =+(1+K46)^(1/12)-1 -> 0.0100055996 | BD47: Intereses presuntivos | BE47: 1 | BF47: 30 | BG47: =(BD47=Parametros[Segmento])*(BE47>0)*(BF47>0) -> 0
C48: Tasa de interés presuntivo diario para el año gravable 2024 | K48: =+(1+K47)^(1/30)-1 -> 0.0003319175724 | BD48: Intereses presuntivos | BE48: 1 | BF48: 30 | BG48: =(BD48=Parametros[Segmento])*(BE48>0)*(BF48>0) -> 0
BD49: Intereses presuntivos | BE49: 1 | BF49: 30 | BG49: =(BD49=Parametros[Segmento])*(BE49>0)*(BF49>0) -> 0
C50: Información sobre préstamos a socios o accionistas | BD50: Intereses presuntivos | BE50: 1 | BF50: 30 | BG50: =(BD50=Parametros[Segmento])*(BE50>0)*(BF50>0) -> 0
C51: Préstamos vigentes en el 2024 | D51: Fecha de inicio del préstamo (dd/mm/aaaa) | E51: Fecha de finalización del préstamo (dd/mm/aaaa) | F51: Monto del préstamo pendiente de cobro a 1 de enero de 2024 | G51: Tasa de interés anual | H51: Interés recibido durante el año | I51: Interés presuntivo | J51: Valor a reportar en la declaración de renta | K51: Saldo pendiente de cobro a 31 de diciembre de 2024 | BD51: Intereses presuntivos | BE51: 1 | BF51: 90 | BG51: =(BD51=Parametros[Segmento])*(BE51>0)*(BF51>0) -> 0
I52: =Y52 -> 0 | J52: =+IF(G52>=$K$46,0,IF(G52>0,(I52-H52),I52)) -> 0 | K52: =Z52 -> 0 | BB52: =$C$44 -> Intereses Presuntivos | BC52: =$C$50 -> Información sobre préstamos a socios o accionistas | BD52: Intereses presuntivos | BE52: =(BC52=OFFSET(BC52,1,0))*1 -> 1 | BF52: 30 | BG52: =(BD52=Parametros[Segmento])*(BE52>0)*(BF52>0) -> 0
I53: =Y53 -> 0 | J53: =+IF(G53>=$K$46,0,IF(G53>0,(I53-H53),I53)) -> 0 | K53: =Z53 -> 0 | BB53: =$C$44 -> Intereses Presuntivos | BC53: =$C$50 -> Información sobre préstamos a socios o accionistas | BD53: Intereses presuntivos | BE53: =(BC53=OFFSET(BC53,1,0))*1 -> 0 | BF53: 30 | BG53: =(BD53=Parametros[Segmento])*(BE53>0)*(BF53>0) -> 0
C54: Total intereses presuntivos a reportar | K54: =SUM(J52:J53) -> 0 | BD54: Intereses presuntivos | BE54: 1 | BF54: 30 | BG54: =(BD54=Parametros[Segmento])*(BE54>0)*(BF54>0) -> 0
BD55: Intereses presuntivos | BE55: 1 | BF55: 30 | BG55: =(BD55=Parametros[Segmento])*(BE55>0)*(BF55>0) -> 0
BD56: Intereses presuntivos | BE56: =IFERROR(IF($C$56="",0,1),0) -> 0 | BF56: 30 | BG56: =(BD56=Parametros[Segmento])*(BE56>0)*(BF56>0) -> 0
C57: Fecha inicial (dd/mm/aaaa) | D57: Fecha final (dd/mm/aaaa) | E57: Permanencia en días | F57: Saldo de capital inicial | G57: Abono a capital | H57: Intereses Presuntivos | I57: Total pago recibido en el periodo | J57: Saldo de capital final | BD57: Intereses presuntivos | BE57: =BE56 -> 0 | BF57: 39.9 | BG57: =(BD57=Parametros[Segmento])*(BE57>0)*(BF57>0) -> 0
C58: =IFERROR(IF(OFFSET($D$51,MATCH($C$56,Lista_IntPre_Prestamos,0),0)="","",OFFSET($D$51,MATCH($C$56,Lista_IntPre_Prestamos,0),0)),"") ->  | D58: =IF(C58="","",IF(C59="",OFFSET($E$51,MATCH($C$56,Lista_IntPre_Prestamos,0),0),C59-1)) ->  | E58: =IFERROR(D58-C58+1,0) -> 0 | F58: =IF(AND(IFERROR(OFFSET($F$51,MATCH($C$56,Lista_IntPre_Prestamos,0),0),0)>0,E58>0),IFERROR(OFFSET($F$51,MATCH($C$56,Lista_IntPre_Prestamos,0),0),0),0) -> 0 | H58: =+(F58*E58*$K$48) -> 0 | I58: =+G58+H58 -> 0 | J58: =+F58-G58 -> 0 | BD58: Intereses presuntivos | BE58: =IF(E58=0,0,1) -> 0 | BF58: 30 | BG58: =(BD58=Parametros[Segmento])*(BE58>0)*(BF58>0) -> 0
C59: =IF(C58="","",IF(MONTH(C58)<MONTH(OFFSET($E$51,MATCH($C$56,Lista_IntPre_Prestamos,0),0)),DATE(YEAR(C58),MONTH(C58)+1,1),"")) ->  | E59: 0 | F59: =+J58 -> 0 | H59: 0 | I59: 0 | J59: 0 | BD59: Intereses presuntivos | BE59: =IF(E59=0,0,1) -> 0 | BF59: 30 | BG59: =(BD59=Parametros[Segmento])*(BE59>0)*(BF59>0) -> 0
E60: 0 | F60: 0 | H60: 0 | I60: 0 | J60: 0 | BD60: Intereses presuntivos | BE60: 0 | BF60: 30 | BG60: =(BD60=Parametros[Segmento])*(BE60>0)*(BF60>0) -> 0
E61: 0 | F61: 0 | H61: 0 | I61: 0 | J61: 0 | BD61: Intereses presuntivos | BE61: 0 | BF61: 30 | BG61: =(BD61=Parametros[Segmento])*(BE61>0)*(BF61>0) -> 0
E62: 0 | F62: 0 | H62: 0 | I62: 0 | J62: 0 | BD62: Intereses presuntivos | BE62: 0 | BF62: 30 | BG62: =(BD62=Parametros[Segmento])*(BE62>0)*(BF62>0) -> 0
E63: 0 | F63: 0 | H63: 0 | I63: 0 | J63: 0 | BD63: Intereses presuntivos | BE63: 0 | BF63: 30 | BG63: =(BD63=Parametros[Segmento])*(BE63>0)*(BF63>0) -> 0
E64: 0 | F64: 0 | H64: 0 | I64: 0 | J64: 0 | BD64: Intereses presuntivos | BE64: 0 | BF64: 30 | BG64: =(BD64=Parametros[Segmento])*(BE64>0)*(BF64>0) -> 0
E65: 0 | F65: 0 | H65: 0 | I65: 0 | J65: 0 | BD65: Intereses presuntivos | BE65: 0 | BF65: 30 | BG65: =(BD65=Parametros[Segmento])*(BE65>0)*(BF65>0) -> 0
E66: 0 | F66: 0 | H66: 0 | I66: 0 | J66: 0 | BD66: Intereses presuntivos | BE66: 0 | BF66: 30 | BG66: =(BD66=Parametros[Segmento])*(BE66>0)*(BF66>0) -> 0
E67: 0 | F67: 0 | H67: 0 | I67: 0 | J67: 0 | BD67: Intereses presuntivos | BE67: 0 | BF67: 30 | BG67: =(BD67=Parametros[Segmento])*(BE67>0)*(BF67>0) -> 0
E68: 0 | F68: 0 | H68: 0 | I68: 0 | J68: 0 | BD68: Intereses presuntivos | BE68: 0 | BF68: 30 | BG68: =(BD68=Parametros[Segmento])*(BE68>0)*(BF68>0) -> 0
E69: 0 | F69: 0 | H69: 0 | I69: 0 | J69: 0 | BD69: Intereses presuntivos | BE69: 0 | BF69: 30 | BG69: =(BD69=Parametros[Segmento])*(BE69>0)*(BF69>0) -> 0
I70: Total intereses presuntivos por el préstamo en el año | J70: =SUM(H58:H69) -> 0 | BD70: Intereses presuntivos | BE70: 1 | BF70: 30 | BG70: =(BD70=Parametros[Segmento])*(BE70>0)*(BF70>0) -> 0
I71: Total saldo pendiente de cobro a 31 de diciembre de 2024 | J71: =+J69 -> 0 | BD71: Intereses presuntivos | BE71: 1 | BF71: 30 | BG71: =(BD71=Parametros[Segmento])*(BE71>0)*(BF71>0) -> 0
B72: 2.33 | C72: 19.78 | D72: 19.78 | E72: 19.78 | F72: 19.78 | G72: 19.78 | H72: 19.78 | I72: 19.78 | J72: 19.78 | K72: 0 | L72: 0 | M72: 0 | N72: 0 | O72: 0 | P72: 0 | Q72: 0 | R72: 0 | S72: 0 | T72: 0 | U72: 0 | V72: 0 | W72: 0 | X72: 0 | Y72: 0 | Z72: 0 | AA72: 0 | AB72: 0 | AC72: 0 | AD72: 0 | AE72: 0 | AF72: 0 | AG72: 0 | AH72: 0 | BD72: Subcapitalización | BE72: 0 | BF72: 20 | BG72: =(BD72=Parametros[Segmento])*(BE72>0)*(BF72>0) -> 0
BD73: Subcapitalización | BE73: 1 | BF73: 10 | BG73: =(BD73=Parametros[Segmento])*(BE73>0)*(BF73>0) -> 0
BD74: Subcapitalización | BE74: 1 | BF74: 30 | BG74: =(BD74=Parametros[Segmento])*(BE74>0)*(BF74>0) -> 0
C75: Subcapitalización | BD75: Subcapitalización | BE75: 1 | BF75: 30 | BG75: =(BD75=Parametros[Segmento])*(BE75>0)*(BF75>0) -> 0
BD76: Subcapitalización | BE76: 1 | BF76: 30 | BG76: =(BD76=Parametros[Segmento])*(BE76>0)*(BF76>0) -> 0
C77: Información general de los préstamos con vinculados económicos | BD77: Subcapitalización | BE77: 1 | BF77: 30 | BG77: =(BD77=Parametros[Segmento])*(BE77>0)*(BF77>0) -> 0
C78: Préstamos vigentes en el 2024 | D78: Ubicación vinculado económico | E78: Fecha de inicio del préstamo (dd/mm/aaaa) | F78: Fecha de finalización del préstamo (dd/mm/aaaa) | G78: Tasa de interés anual | H78: Monto del préstamo | I78: Intereses pagados en el año | J78: Saldo pendiente de pago a 31 de dic. de 2024 | BD78: Subcapitalización | BE78: 1 | BF78: 90 | BG78: =(BD78=Parametros[Segmento])*(BE78>0)*(BF78>0) -> 0
I79: =Z79 -> 0 | J79: =AB79 -> 0 | Y79: 0 | Z79: 0 | AA79: 0 | AB79: 0 | BB79: =$C$75 -> Subcapitalización | BC79: =$C$77 -> Información general de los préstamos con vinculados económicos | BD79: Subcapitalización | BE79: =(BC79=OFFSET(BC79,1,0))*1 -> 1 | BF79: 30 | BG79: =(BD79=Parametros[Segmento])*(BE79>0)*(BF79>0) -> 0
I80: =Z80 -> 0 | J80: =AB80 -> 0 | BB80: =$C$75 -> Subcapitalización | BC80: =$C$77 -> Información general de los préstamos con vinculados económicos | BD80: Subcapitalización | BE80: =(BC80=OFFSET(BC80,1,0))*1 -> 0 | BF80: 30 | BG80: =(BD80=Parametros[Segmento])*(BE80>0)*(BF80>0) -> 0
BD81: Subcapitalización | BE81: 1 | BF81: 30 | BG81: =(BD81=Parametros[Segmento])*(BE81>0)*(BF81>0) -> 0
C82: Cálculos | BD82: Subcapitalización | BE82: 1 | BF82: 30 | BG82: =(BD82=Parametros[Segmento])*(BE82>0)*(BF82>0) -> 0
C83: Patrimonio líquido año gravable anterior (AG 2023) | J83: =+' '!D253 -> 0 | BD83: Subcapitalización | BE83: 1 | BF83: 30 | BG83: =(BD83=Parametros[Segmento])*(BE83>0)*(BF83>0) -> 0
C84: Total deuda ponderada | J84: =SUM(AA79:AA80) -> 0 | BD84: Subcapitalización | BE84: 1 | BF84: 30 | BG84: =(BD84=Parametros[Segmento])*(BE84>0)*(BF84>0) -> 0
C85: Total días de permanencia de la deuda en el año | J85: =MIN(SUM(Y79:Y80),365) -> 0 | BD85: Subcapitalización | BE85: 1 | BF85: 30 | BG85: =(BD85=Parametros[Segmento])*(BE85>0)*(BF85>0) -> 0
C86: Total intereses pagado en el año | J86: =+SUM(I79:I80) -> 0 | BD86: Subcapitalización | BE86: 1 | BF86: 30 | BG86: =(BD86=Parametros[Segmento])*(BE86>0)*(BF86>0) -> 0
C87: Monto promedio de las deudas | J87: =IF(J84>0,J84/J85,0) -> 0 | BD87: Subcapitalización | BE87: 1 | BF87: 30 | BG87: =(BD87=Parametros[Segmento])*(BE87>0)*(BF87>0) -> 0
C88: Límite de endeudamiento permitido (Artícul 118-1 del ET) | J88: =+J83*2 -> 0 | BD88: Subcapitalización | BE88: 1 | BF88: 30 | BG88: =(BD88=Parametros[Segmento])*(BE88>0)*(BF88>0) -> 0
C89: Exceso de endeudamiento | J89: =+IF(J87>J88,(J87-J88),0) -> 0 | BD89: Subcapitalización | BE89: 1 | BF89: 30 | BG89: =(BD89=Parametros[Segmento])*(BE89>0)*(BF89>0) -> 0
C90: Porcentaje de intereses no deducible | J90: =+IF(J89>0,J89/J87,0) -> 0 | BD90: Subcapitalización | BE90: 1 | BF90: 30 | BG90: =(BD90=Parametros[Segmento])*(BE90>0)*(BF90>0) -> 0
C91: Intereses no deducibles por exceso de endeudamiento | J91: =+J86*J90 -> 0 | BD91: Subcapitalización | BE91: 1 | BF91: 30 | BG91: =(BD91=Parametros[Segmento])*(BE91>0)*(BF91>0) -> 0
C92: Intereses deducibles - Subcapitalización | J92: =+J86-J91 -> 0 | BD92: Subcapitalización | BE92: 1 | BF92: 30 | BG92: =(BD92=Parametros[Segmento])*(BE92>0)*(BF92>0) -> 0
C93: Porcentaje de intereses deducibles por componente inflacionario | J93: 0.6243 | BD93: Subcapitalización | BE93: 0 | BF93: 30 | BG93: =(BD93=Parametros[Segmento])*(BE93>0)*(BF93>0) -> 0
C94: Porcentaje de intereses deducibles por componente inflacionario - Deudas del exterior | J94: 0.5989 | BD94: Subcapitalización | BE94: 0 | BF94: 30 | BG94: =(BD94=Parametros[Segmento])*(BE94>0)*(BF94>0) -> 0
C95: Intereses a tomar como costo deducible - Componente inflacionario | BD95: Subcapitalización | BE95: 0 | BF95: 30 | BG95: =(BD95=Parametros[Segmento])*(BE95>0)*(BF95>0) -> 0
BD96: Subcapitalización | BE96: 1 | BF96: 30 | BG96: =(BD96=Parametros[Segmento])*(BE96>0)*(BF96>0) -> 0
BD97: Subcapitalización | BE97: =IFERROR(IF($C$97="",0,1),0) -> 0 | BF97: 30 | BG97: =(BD97=Parametros[Segmento])*(BE97>0)*(BF97>0) -> 0
C98: Fecha inicial (dd/mm/aaaa) | D98: Fecha final (dd/mm/aaaa) | E98: Permanencia en días | F98: Saldo de capital inicial | G98: Abono a capital | H98: Intereses | I98: Saldo de capital final | J98: Deuda Ponderada | BD98: Subcapitalización | BE98: =BE97 -> 0 | BF98: 39.9 | BG98: =(BD98=Parametros[Segmento])*(BE98>0)*(BF98>0) -> 0
C99: =IFERROR(IF(OFFSET($E$78,MATCH($C$97,Lista_SubCap_Prestamos,0),0)="","",OFFSET($E$78,MATCH($C$97,Lista_SubCap_Prestamos,0),0)),"") ->  | D99: =IF(C99="","",IF(C100="",OFFSET($F$78,MATCH($C$97,Lista_SubCap_Prestamos,0),0),C100-1)) ->  | E99: =IFERROR(D99-C99+1,0) -> 0 | F99: =IF(AND(IFERROR(OFFSET($H$78,MATCH($C$97,Lista_SubCap_Prestamos,0),0),0)>0,E99>0),IFERROR(OFFSET($H$78,MATCH($C$97,Lista_SubCap_Prestamos,0),0),0),0) -> 0 | H99: =(((1+IFERROR(OFFSET($G$78,MATCH($C$97,Lista_SubCap_Prestamos,0),0),0))^(1/365))-1)*E99*F99 -> 0 | I99: =+F99-G99 -> 0 | J99: =+E99*F99 -> 0 | BD99: Subcapitalización | BE99: =IF(E99=0,0,1) -> 0 | BF99: 30 | BG99: =(BD99=Parametros[Segmento])*(BE99>0)*(BF99>0) -> 0
C100: =IF(C99="","",IF(MONTH(C99)<MONTH(OFFSET($F$78,MATCH($C$97,Lista_SubCap_Prestamos,0),0)),DATE(YEAR(C99),MONTH(C99)+1,1),"")) ->  | E100: 0 | F100: =+I99 -> 0 | H100: 0 | I100: 0 | J100: 0 | BD100: Subcapitalización | BE100: 0 | BF100: 30 | BG100: =(BD100=Parametros[Segmento])*(BE100>0)*(BF100>0) -> 0
E101: 0 | F101: 0 | H101: 0 | I101: 0 | J101: 0 | BD101: Subcapitalización | BE101: 0 | BF101: 30 | BG101: =(BD101=Parametros[Segmento])*(BE101>0)*(BF101>0) -> 0
E102: 0 | F102: 0 | H102: 0 | I102: 0 | J102: 0 | BD102: Subcapitalización | BE102: 0 | BF102: 30 | BG102: =(BD102=Parametros[Segmento])*(BE102>0)*(BF102>0) -> 0
E103: 0 | F103: 0 | H103: 0 | I103: 0 | J103: 0 | BD103: Subcapitalización | BE103: 0 | BF103: 30 | BG103: =(BD103=Parametros[Segmento])*(BE103>0)*(BF103>0) -> 0
E104: 0 | F104: 0 | H104: 0 | I104: 0 | J104: 0 | BD104: Subcapitalización | BE104: 0 | BF104: 30 | BG104: =(BD104=Parametros[Segmento])*(BE104>0)*(BF104>0) -> 0
E105: 0 | F105: 0 | H105: 0 | I105: 0 | J105: 0 | BD105: Subcapitalización | BE105: 0 | BF105: 30 | BG105: =(BD105=Parametros[Segmento])*(BE105>0)*(BF105>0) -> 0
E106: 0 | F106: 0 | H106: 0 | I106: 0 | J106: 0 | BD106: Subcapitalización | BE106: 0 | BF106: 30 | BG106: =(BD106=Parametros[Segmento])*(BE106>0)*(BF106>0) -> 0
E107: 0 | F107: 0 | H107: 0 | I107: 0 | J107: 0 | BD107: Subcapitalización | BE107: 0 | BF107: 30 | BG107: =(BD107=Parametros[Segmento])*(BE107>0)*(BF107>0) -> 0
E108: 0 | F108: 0 | H108: 0 | I108: 0 | J108: 0 | BD108: Subcapitalización | BE108: 0 | BF108: 30 | BG108: =(BD108=Parametros[Segmento])*(BE108>0)*(BF108>0) -> 0
E109: 0 | F109: 0 | H109: 0 | I109: 0 | J109: 0 | BD109: Subcapitalización | BE109: 0 | BF109: 30 | BG109: =(BD109=Parametros[Segmento])*(BE109>0)*(BF109>0) -> 0
